Body Name,Organisational Unit,Business Unit No.,Business Unit Description,Expense Code,Expense Code Description,GL Date,Document No.,Invoice No.,Invoiced Value,Supplier Name,Address Book No.,Proclass Details Level 1,Thomson Classification Description
SHEFFIELD CITY COUNCIL        ,CYPF                          ,39284,INDEPENDENT FOSTERING PLACEMEN,9270,INDEPENDENT FOSTERING         ,09/01/2017,4135420,26999,"3,120.04",REDACTED PERSONAL DATA,521940,,ADOPTION & FOSTERING          
SHEFFIELD CITY COUNCIL        ,PLACE                         ,97551,COUNCIL HSG ACQUISITIONS PROG ,1194,OTHER FEES                    ,03/01/2017,4132848,ERS INVOICE148470        ,"85,000.00",LAMBERT PUGH LLP                        ,624659,,SOLICITORS                    
SHEFFIELD CITY COUNCIL        ,CYPF                          ,36034,PARENT REIMBURSEMENTS         ,7060,EXTERNAL VEHICLE HIRE         ,03/01/2017,4132850,ERS INVOICE148472        ,383.40,REDACTED PERSONAL DATA,532597,Unclassified Non Trade,OUT OF SCOPE FOR SIC MONITORIN
SHEFFIELD CITY COUNCIL        ,RESOURCES                     ,19347,CLAIMS                        ,8740,EMPLOYERS LIABILITY           ,03/01/2017,4132861,ERS INVOICE148485        ,"50,000.00",THOMPSONS CLIENT ACCOUNT                ,505870,,SOLICITORS                    
SHEFFIELD CITY COUNCIL        ,RESOURCES                     ,19347,CLAIMS                        ,8740,PUBLIC LIABILITY              ,03/01/2017,4132862,ERS INVOICE148486        ,942.80,IRWIN MITCHELL                          ,533882,,SOLICITORS                    
SHEFFIELD CITY COUNCIL        ,CYPF                          ,36034,PARENT REIMBURSEMENTS         ,7060,EXTERNAL VEHICLE HIRE         ,03/01/2017,4132870,ERS INVOICE148494        ,349.60,REDACTED PERSONAL DATA,639067,Unclassified Non Trade,OUT OF SCOPE FOR SIC MONITORIN
SHEFFIELD CITY COUNCIL        ,CYPF                          ,38004,BUS PASSES HARDSHIP FUND      ,9120,OTHER AGENCIES                ,03/01/2017,4132871,ERS INVOICE148495        ,300.00,PLACES FOR PEOPLE INDIVIDUAL SUPPORT(SP),351159,,HOME SUPPORT SERVICES         
SHEFFIELD CITY COUNCIL        ,CYPF                          ,38004,BUS PASSES HARDSHIP FUND      ,9120,OTHER AGENCIES                ,03/01/2017,4132872,ERS INVOICE148496        ,885.00,SYHA LTD                                ,385143,,"HOUSING ASSOCIATIONS, SOCIETIE"
SHEFFIELD CITY COUNCIL        ,COMMUNITIES                   ,49704,CENTRAL                       ,8180,GRANTS                        ,03/01/2017,4132945,ERS INVOICE148499        ,250.00,393 CLUB                                ,597887,,"CLUBS & ASSOCIATIONS - SOCIAL,"
SHEFFIELD CITY COUNCIL        ,CYPF                          ,38208,0-4 HEALTHY WEIGHT SERVICE    ,5750,TRAINING EXPENDITURE          ,03/01/2017,4132946,ERS INVOICE148500        ,350.00,JULIE ROBERTS -TRAINING                 ,632115,,TRAINING SERVICES             
SHEFFIELD CITY COUNCIL        ,COMMUNITIES                   ,49352,AREA NORTH                    ,8560,HOUSING AREA CONSULT ALLOWANCE,03/01/2017,4079694,90546676,329.21,AMEY LG LTD                             ,578587,,ROAD CONSTRUCTION CONTRACTORS 
SHEFFIELD CITY COUNCIL        ,PLACE                         ,22245,HIGHWAY MAINTENANCE GENERAL   ,8470,LEGAL FEES                    ,03/01/2017,4083749,85821,950.00,SHARPE PRITCHARD                        ,309039,,SOLICITORS                    
SHEFFIELD CITY COUNCIL        ,RESOURCES                     ,12022,CAPITAL                       ,8010,EQUIPMENT PURCHASE AND REPAIR ,03/01/2017,4119260,INV0393197               ,265.93,POSTURITE LTD                           ,207615,,ERGONOMICS                    
SCR COMBINED AUTHORITY        ,CA LEP                        ,30103,CORE BUSINESS GROWTH          ,7140,PUBLIC TRANSPORT COSTS        ,03/01/2017,4121625,01/7074079               ,518.00,CLARITY TRAVEL MANAGEMENT               ,202987,,TRAVEL AGENTS & HOLIDAY COMPAN
SHEFFIELD CITY COUNCIL        ,PLACE                         ,23004,KENNELLING                    ,8010,EQUIPMENT PURCHASE AND REPAIR ,03/01/2017,4123290,928819108,466.50,ARCO LTD                                ,203022,,SAFETY EQUIPMENT & CLOTHING   
SHEFFIELD CITY COUNCIL        ,CYPF                          ,39193,GIBSON HOUSE                  ,8440,FEE EXPENSES                  ,03/01/2017,4123721,INV-3970                 ,550.00,TEAM TEACH LTD                          ,399353,,TRAINING SERVICES             
SHEFFIELD CITY COUNCIL        ,PLACE                         ,21221,CULTURAL DIRECTOR             ,8440,FEE EXPENSES                  ,03/01/2017,4125848,41018,380.00,CVC EVENT SERVICES LTD                  ,381526,,"EXHIBITION, EVENT & TRADE FAIR"
SHEFFIELD CITY COUNCIL        ,POLICY PERFORMANCE AND COMMS  ,18003,COMMUNICATIONS                ,8550,OTHER SERVICES                ,03/01/2017,4125971,5953,527.00,NEW LEAF SIGN & DESIGN LTD              ,549524,,SIGN & POSTER WRITERS         
SHEFFIELD CITY COUNCIL        ,PLACE                         ,94108,SITE GALLERY IMPROVMENTS      ,1161,NC&A MAIN CONTRACT            ,03/01/2017,4126836,4328,"55,000.00",SITE GALLERY (MAP) LTD                  ,208479,,GALLERIES                     
SHEFFIELD CITY COUNCIL        ,CYPF                          ,36022,SCHOOL DRINKING MILK          ,8140,GROCERIES                     ,03/01/2017,4127233,37,"18,381.29",MEDINA CAPITAL DAIRY CO LTD             ,524568,,DAIRIES                       
SHEFFIELD CITY COUNCIL        ,PLACE                         ,22225,SCHOOL CROSSING PATROLS       ,8110,"CLOTHING, UNIFORM AND LAUNDRY ",03/01/2017,4127250,135316,590.10,KELTIC LTD                              ,404703,,UNIFORMS & STAFF WEAR         
SHEFFIELD CITY COUNCIL        ,CYPF                          ,33040,RED TAPE CENTRAL              ,8490,EXAM FEES                     ,03/01/2017,4129267,100775385,"1,530.55",OCR                                     ,207218,,EXAMINATION BOARDS            
SHEFFIELD CITY COUNCIL        ,CYPF                          ,33040,RED TAPE CENTRAL              ,8490,EXAM FEES                     ,03/01/2017,4129268,100788481,655.95,OCR                                     ,207218,,EXAMINATION BOARDS            
SHEFFIELD CITY COUNCIL        ,CYPF                          ,33040,RED TAPE CENTRAL              ,8490,EXAM FEES                     ,03/01/2017,4129269,100775384,"1,441.55",OCR                                     ,207218,,EXAMINATION BOARDS            
SHEFFIELD CITY COUNCIL        ,CYPF                          ,33040,RED TAPE CENTRAL              ,8490,EXAM FEES                     ,03/01/2017,4129270,804351234,907.00,CITY & GUILDS                           ,424267,,EXAMINATION BOARDS            
SHEFFIELD CITY COUNCIL        ,COMMUNITIES                   ,42076,TUPE COSTS                    ,9190,EX POOL CLIENTS               ,03/01/2017,4129323,629786L2MEH1             ,816.42,COMMUNITY INTEGRATED CARE               ,620703,,SOCIAL SERVICES               
SHEFFIELD CITY COUNCIL        ,CYPF                          ,38143,PEI STRATEGY DEVELOP PERFORM  ,5750,TRAINING EXPENDITURE          ,03/01/2017,4130804,INV-011671               ,"6,000.00",LEARNING POOL LIMITED                   ,535432,,E-LEARNING                    
SHEFFIELD CITY COUNCIL        ,PLACE                         ,94477,PARKWOOD RESOLUTION SITE      ,1193,CONSULTANTS FEES              ,03/01/2017,4130812,1397,"1,625.00",GROUND-GAS SOLUTIONS LIMITED            ,590506,,ENVIRONMENTAL CONSULTANTS     
SHEFFIELD CITY COUNCIL        ,POLICY PERFORMANCE AND COMMS  ,18003,COMMUNICATIONS                ,8550,OTHER SERVICES                ,03/01/2017,4130970,855-38671                ,345.00,GALT SIGNS LTD T/A FASTSIGNS            ,204826,,SIGNS & NAMEPLATES            
SHEFFIELD CITY COUNCIL        ,CYPF                          ,33112,LDD PLACEMENTS AUG16-JUL17    ,9360,FUNDS ALLOCATED TO SCHOOLS    ,03/01/2017,4131155,INV000594                ,"2,205.41",SEVEN HILLS SCHOOL                      ,638617,,SCHOOLS - SPECIAL             
SHEFFIELD CITY COUNCIL        ,CYPF                          ,33018,100 APPRENTICES               ,9120,OTHER AGENCIES                ,03/01/2017,4131415,3,462.00,PREMIUM KITCHEN INSTALLATIONS           ,635371,,KITCHEN PLANNERS & FURNISHERS 
SHEFFIELD CITY COUNCIL        ,CYPF                          ,33018,100 APPRENTICES               ,9120,OTHER AGENCIES                ,03/01/2017,4131416,1,428.40,ST LEONARD'S DAY NURSERY                ,311917,,NURSERIES & CRECHES           
SHEFFIELD CITY COUNCIL        ,CYPF                          ,33018,100 APPRENTICES               ,9120,OTHER AGENCIES                ,03/01/2017,4131418,39084,251.60,SHEFFIELD COMMUNITY TRANSPORT (WORKSHOP),297061,,CHARITIES & VOLUNTARY ORGANISA
SHEFFIELD CITY COUNCIL        ,CYPF                          ,33018,100 APPRENTICES               ,9120,OTHER AGENCIES                ,03/01/2017,4131419,16,277.20,CONCEPT PERFORMANCE LTD                 ,638006,,COMMERCIAL VEHICLE BODYBUILDER
SHEFFIELD CITY COUNCIL        ,CYPF                          ,33018,100 APPRENTICES               ,9120,OTHER AGENCIES                ,03/01/2017,4131424,16/393                   ,265.20,JEWEL CONSTRUCTION LIMITED              ,484143,,CONSTRUCTION CONTRACTORS - GEN
SHEFFIELD CITY COUNCIL        ,CYPF                          ,33018,100 APPRENTICES               ,9120,OTHER AGENCIES                ,03/01/2017,4131425,16/394                   ,296.65,JEWEL CONSTRUCTION LIMITED              ,484143,,CONSTRUCTION CONTRACTORS - GEN
SHEFFIELD CITY COUNCIL        ,CYPF                          ,33018,100 APPRENTICES               ,9120,OTHER AGENCIES                ,03/01/2017,4131428,SC9CBUTLER05/10/98       ,264.00,MMTREESCAPE TREE SERVICES LTD           ,630981,,TREE WORK & FORESTRY SERVICES 
SHEFFIELD CITY COUNCIL        ,CYPF                          ,33112,LDD PLACEMENTS AUG16-JUL17    ,9120,OTHER AGENCIES                ,03/01/2017,4131432,5582,"1,225.00",HEELEY DEVELOPMENT TRUST                ,363241,,CHARITIES & VOLUNTARY ORGANISA
SHEFFIELD CITY COUNCIL        ,CYPF                          ,33007,VSP DELIVER                   ,9120,OTHER AGENCIES                ,03/01/2017,4131468,INV-0018                 ,"4,788.91",ENDEAVOUR TRAINING                      ,347945,,TRAINING SERVICES             
SHEFFIELD CITY COUNCIL        ,CYPF                          ,33018,100 APPRENTICES               ,9120,OTHER AGENCIES                ,03/01/2017,4131469,6,387.75,SHEILA LACEY - ARNOLD                   ,630516,,WINDOW CLEANERS               
SHEFFIELD CITY COUNCIL        ,COMMUNITIES                   ,49142,RESPONSIVE HM&E               ,6020,LEGIONELLA MONITORING         ,03/01/2017,4131544,149179WC                 ,549.08,INTERSERVE FS (UK) LTD                  ,437082,,CLEANING SERVICES - COMMERCIAL
SHEFFIELD CITY COUNCIL        ,PLACE                         ,23038,PEST CONTROL                  ,8010,EQUIPMENT PURCHASE AND REPAIR ,03/01/2017,4131577,928924287,362.86,ARCO LTD                                ,203022,,SAFETY EQUIPMENT & CLOTHING   
SHEFFIELD CITY COUNCIL        ,CYPF                          ,33107,POST 16 HIGH NEEDS SEND       ,9120,OTHER AGENCIES                ,03/01/2017,4131593,SHIFTLDD002              ,"2,222.00",SHEFFIELD INDEPENDENT FILM AND TELEVISIO,303588,,FILM STUDIOS & PRODUCTION SERV
SHEFFIELD CITY COUNCIL        ,CYPF                          ,33107,POST 16 HIGH NEEDS SEND       ,9120,OTHER AGENCIES                ,03/01/2017,4131594,SHIFTLDD001              ,"2,222.00",SHEFFIELD INDEPENDENT FILM AND TELEVISIO,303588,,FILM STUDIOS & PRODUCTION SERV
SHEFFIELD CITY COUNCIL        ,CYPF                          ,33107,POST 16 HIGH NEEDS SEND       ,9120,OTHER AGENCIES                ,03/01/2017,4131595,SHIFTLDD003              ,"2,223.00",SHEFFIELD INDEPENDENT FILM AND TELEVISIO,303588,,FILM STUDIOS & PRODUCTION SERV
SHEFFIELD CITY COUNCIL        ,CYPF                          ,36026,SCHOOL MEALS                  ,8130,CATERING SUPPLIES             ,03/01/2017,4131626,1904/91342305            ,"2,280.73",MITIE PFI LIMITED                       ,472380,,FACILITIES MANAGEMENT         
SHEFFIELD CITY COUNCIL        ,CYPF                          ,36026,SCHOOL MEALS                  ,8150,CONTRACT CATERING - INVOICE   ,03/01/2017,4131626,1904/91342305            ,"10,043.99",MITIE PFI LIMITED                       ,472380,,FACILITIES MANAGEMENT         
SHEFFIELD CITY COUNCIL        ,CYPF                          ,33112,LDD PLACEMENTS AUG16-JUL17    ,9120,OTHER AGENCIES                ,03/01/2017,4131636,1096,"2,250.00",IMAGINATION GAMING                      ,518155,,GAMES SHOPS                   
SHEFFIELD CITY COUNCIL        ,CYPF                          ,32042,MUSIC EDUCATION HUBS 2012-15  ,8440,FEE EXPENSES                  ,03/01/2017,4131704,32130,"1,287.32",MOSTYN MUSIC                            ,632067,,MUSICAL INSTRUMENTS & SHEET MU
SHEFFIELD CITY COUNCIL        ,RESOURCES                     ,17108,MAYORAL SERVICE               ,8350,MISCELLANEOUS EXPENSES        ,03/01/2017,4131714,3044355,300.00,SHEFFIELD INTERNATIONAL VENUES          ,363031,,SPORTS GROUNDS & STADIUMS     
SHEFFIELD CITY COUNCIL        ,PLACE                         ,24410,THE MOOR INDOOR MARKET        ,8060,MATERIALS AND SUPPLIES GENERAL,03/01/2017,4131808,154793,962.80,H HARROLD & SONS LTD                    ,205285,,LOCK SMITHS                   
SHEFFIELD CITY COUNCIL        ,COMMUNITIES                   ,49313,EAST SHEFFIELD                ,8010,EQUIPMENT PURCHASE AND REPAIR ,03/01/2017,4131809,154794,713.52,H HARROLD & SONS LTD                    ,205285,,LOCK SMITHS                   
SHEFFIELD CITY COUNCIL        ,COMMUNITIES                   ,49311,FIRTH PARK & SOUTHEY          ,6060,DECANTING/REMOVAL COSTS       ,03/01/2017,4131810,955207,379.06,PICKFORDS                               ,573763,,REMOVALS - OVERSEAS           
SHEFFIELD CITY COUNCIL        ,CYPF                          ,39267,STEP UP TO SOCIAL WORK        ,8440,FEE EXPENSES                  ,03/01/2017,4131812,S0879598                 ,"12,949.80",NORTH EAST LINCOLNSHIRE COUNCIL         ,326926,,LOCAL GOVERNMENT              
SHEFFIELD CITY COUNCIL        ,CYPF                          ,38059,EY/MAST PREMISES              ,6280,HIRE OF PREMISES              ,03/01/2017,4131824,S134                     ,360.00,HANDSWORTH COMMUNITY NURSERY            ,325463,,NURSERIES & CRECHES           
SHEFFIELD CITY COUNCIL        ,COMMUNITIES                   ,49384,REPAIRS INSOURCING            ,5610,AGENCY STAFF                  ,03/01/2017,4131838,BQ9573/00                ,"1,337.50",BADENOCH AND CLARK LTD                  ,634019,,EMPLOYMENT & RECRUITMENT AGENC
SHEFFIELD CITY COUNCIL        ,PLACE                         ,24410,THE MOOR INDOOR MARKET        ,6090,WASTE DISPOSAL                ,03/01/2017,4131848,MO323                    ,600.00,R L DEAR (WASTE MERCHANTS) LTD          ,360135,,WASTE MERCHANTS               
SHEFFIELD CITY COUNCIL        ,PLACE                         ,24410,THE MOOR INDOOR MARKET        ,6030,REPAIRS AND MTCE - RESPONSIVE ,03/01/2017,4131850,431509609,254.36,NEWEY & EYRE LTD                        ,207097,,ELECTRICAL WHOLESALERS        
SHEFFIELD CITY COUNCIL        ,PLACE                         ,24410,THE MOOR INDOOR MARKET        ,8060,MATERIALS AND SUPPLIES GENERAL,03/01/2017,4131852,431509777,799.80,NEWEY & EYRE LTD                        ,207097,,ELECTRICAL WHOLESALERS        
SHEFFIELD CITY COUNCIL        ,PLACE                         ,24412,KING STREET                   ,6090,WASTE DISPOSAL                ,03/01/2017,4131854,8521093529,774.75,VEOLIA ES SHEFFIELD LIMITED             ,306235,,WASTE DISPOSAL SERVICES       
SHEFFIELD CITY COUNCIL        ,PLACE                         ,24417,CRYSTAL PEAKS                 ,6090,WASTE DISPOSAL                ,03/01/2017,4131854,8521093529,"1,073.50",VEOLIA ES SHEFFIELD LIMITED             ,306235,,WASTE DISPOSAL SERVICES       
SHEFFIELD CITY COUNCIL        ,PLACE                         ,24414,THE MOOR                      ,6090,WASTE DISPOSAL                ,03/01/2017,4131854,8521093529,295.20,VEOLIA ES SHEFFIELD LIMITED             ,306235,,WASTE DISPOSAL SERVICES       
SHEFFIELD CITY COUNCIL        ,PLACE                         ,24410,THE MOOR INDOOR MARKET        ,6030,REPAIRS AND MTCE - RESPONSIVE ,03/01/2017,4131866,20170444,450.00,COUNTING SOLUTIONS                      ,401535,,ELECTRONIC EQUIPMENT - MNFRS &
SHEFFIELD CITY COUNCIL        ,CYPF                          ,31073,CYP FACILITIES MGMT           ,8510,ICT SUPPORT BROUGHT IN        ,03/01/2017,4131873,RINV/00001624            ,"117,245.88",SHEFFIELD LEP LTD                       ,482230,,LOCAL GOVERNMENT              
SHEFFIELD CITY COUNCIL        ,CYPF                          ,38059,EY/MAST PREMISES              ,8060,MATERIALS AND SUPPLIES GENERAL,03/01/2017,4131882,1489,420.00,ROUNDABOUT CRECHE SERVICE               ,462116,,NURSERIES & CRECHES           
SHEFFIELD CITY COUNCIL        ,COMMUNITIES                   ,49852,SCHOOLS LIBRARY SERVICE       ,8080,LIBRARY MATERIALS             ,03/01/2017,4131888,1619062,953.70,PETERS LTD                              ,312836,,BOOKSELLERS                   
SHEFFIELD CITY COUNCIL        ,CYPF                          ,33017,AMBITIONS SCR                 ,9120,OTHER AGENCIES                ,03/01/2017,4131893,22710847,"35,296.31",DONCASTER MBC                           ,369105,,LOCAL GOVERNMENT              
SHEFFIELD CITY COUNCIL        ,CYPF                          ,33018,100 APPRENTICES               ,9120,OTHER AGENCIES                ,03/01/2017,4131903,APP007                   ,272.00,THE ORIGINAL MARBLE FACTORY WORKSHOP LTD,633857,,STONE PRODUCTS - MNFRS        
SHEFFIELD CITY COUNCIL        ,CYPF                          ,33018,100 APPRENTICES               ,9120,OTHER AGENCIES                ,03/01/2017,4131908,6,344.00,RICHARD LINACRE PLASTERING              ,635405,,"PLASTERERS, SCREEDERS & DRY LI"
SHEFFIELD CITY COUNCIL        ,CYPF                          ,33128,ESA PATHWAY PILOT             ,9120,OTHER AGENCIES                ,03/01/2017,4131923,3419,"3,400.00",MANOR & CASTLE DEVELOPMENT TRUST        ,314473,,CHARITIES & VOLUNTARY ORGANISA
SHEFFIELD CITY COUNCIL        ,PLACE                         ,25094,PARKS OPS SOUTH & SOUTH EAST  ,8060,MATERIALS AND SUPPLIES GENERAL,03/01/2017,4131924,179,300.00,SIMON ALEXANDER CONSULTING LTD          ,578155,,SURVEYORS & VALUERS           
SHEFFIELD CITY COUNCIL        ,CYPF                          ,33128,ESA PATHWAY PILOT             ,9120,OTHER AGENCIES                ,03/01/2017,4131926,3418,"2,129.62",MANOR & CASTLE DEVELOPMENT TRUST        ,314473,,CHARITIES & VOLUNTARY ORGANISA
SHEFFIELD CITY COUNCIL        ,CYPF                          ,33108,AMBITIONS - SHEFFIELD         ,9120,OTHER AGENCIES                ,03/01/2017,4131931,1074,"3,333.00",SHEFFIELD CAB DEBT SUPPORT UNIT         ,395747,,COUNSELLING & ADVICE SERVICES 
SHEFFIELD CITY COUNCIL        ,CYPF                          ,33017,AMBITIONS SCR                 ,9120,OTHER AGENCIES                ,03/01/2017,4131932,DV20092692               ,423.00,NORTH EAST DERBYSHIRE DISTRICT COUNCIL  ,596302,,LOCAL GOVERNMENT              
SHEFFIELD CITY COUNCIL        ,CYPF                          ,33017,AMBITIONS SCR                 ,8440,FEE EXPENSES                  ,03/01/2017,4131933,SCR016                   ,"4,900.00",SHEFFIELD CREDIT UNION                  ,400397,,CREDIT UNIONS                 
SHEFFIELD CITY COUNCIL        ,CYPF                          ,33017,AMBITIONS SCR                 ,8440,FEE EXPENSES                  ,03/01/2017,4131934,SCRMI020                 ,757.60,SHEFFIELD CREDIT UNION                  ,400397,,CREDIT UNIONS                 
SHEFFIELD CITY COUNCIL        ,PLACE                         ,25051,PLAYGROUND MAINTENANCE & INSPE,8010,EQUIPMENT PURCHASE AND REPAIR ,03/01/2017,4131977,IN033564                 ,410.00,HILLSBOROUGH STEELSTOCK LTD             ,205532,,STEEL STOCKHOLDERS            
SHEFFIELD CITY COUNCIL        ,PLACE                         ,25051,PLAYGROUND MAINTENANCE & INSPE,8010,EQUIPMENT PURCHASE AND REPAIR ,03/01/2017,4131991,29689,"1,243.50",B & S CHAINS (MIDLANDS) LTD             ,203176,,CHAIN MNFRS & DISTRIBUTORS    
SHEFFIELD CITY COUNCIL        ,PLACE                         ,25092,PARKS OPS EAST & NORTH EAST   ,8060,MATERIALS AND SUPPLIES GENERAL,03/01/2017,4131999,O516                     ,996.00,AAA 1ST CALL                            ,361147,,SKIP HIRE                     
SCR COMBINED AUTHORITY        ,CA LEP                        ,30201,INWARD INVESTMENT             ,8240,CONFERENCE EXPENSES           ,03/01/2017,4132010,21814957,399.00,GLOBAL INSIGHT CONFERENCES LTD          ,623389,,CONFERENCE SERVICES           
SHEFFIELD CITY COUNCIL        ,PLACE                         ,25072,WOODLANDS                     ,6370,GROUNDS MTCE AND ARBORICULTURE,03/01/2017,4132040,O515                     ,747.00,AAA 1ST CALL                            ,361147,,SKIP HIRE                     
SHEFFIELD CITY COUNCIL        ,COMMUNITIES                   ,46039,ADULT SOCIAL CARE PURCHASING  ,9190,EXTRA CARE HOUSING            ,03/01/2017,4132056,19520A                   ,"5,520.00",REDACTED PERSONAL DATA,328494,,HOME CARE SERVICES            
SCR COMBINED AUTHORITY        ,CA LEP                        ,30100,LEP CORE                      ,5610,AGENCY STAFF                  ,03/01/2017,4132059,230480766,699.83,REED EMPLOYMENT                         ,317819,,EMPLOYMENT & RECRUITMENT AGENC
SCR COMBINED AUTHORITY        ,CA LEP                        ,30104,CORE OPERATIONAL              ,5610,AGENCY STAFF                  ,03/01/2017,4132061,230480765,618.56,REED EMPLOYMENT                         ,317819,,EMPLOYMENT & RECRUITMENT AGENC
SCR COMBINED AUTHORITY        ,CA LEP                        ,30103,CORE BUSINESS GROWTH          ,5610,AGENCY STAFF                  ,03/01/2017,4132062,230487934,637.35,REED EMPLOYMENT                         ,317819,,EMPLOYMENT & RECRUITMENT AGENC
SHEFFIELD CITY COUNCIL        ,CYPF                          ,39357,SHORT BREAKS FUNDING FOR DISAB,9120,OTHER AGENCIES                ,03/01/2017,4132063,706,"2,003.56",WOODTHORPE DEVELOPMENT TRUST            ,419565,,CHARITIES & VOLUNTARY ORGANISA
SCR COMBINED AUTHORITY        ,CA LEP                        ,30100,LEP CORE                      ,8490,OTHER PROFESSIONAL FEES       ,03/01/2017,4132064,230485492,564.80,REED EMPLOYMENT                         ,317819,,EMPLOYMENT & RECRUITMENT AGENC
SCR COMBINED AUTHORITY        ,CA LEP                        ,30105,CORE PERFORMANCE TEAM         ,8490,OTHER PROFESSIONAL FEES       ,03/01/2017,4132067,230483813,"1,309.86",REED EMPLOYMENT                         ,317819,,EMPLOYMENT & RECRUITMENT AGENC
SHEFFIELD CITY COUNCIL        ,RESOURCES                     ,18041,RECRUITMENT ADVERTISING       ,5720,RECRUIT. ADV. - INVOICE       ,03/01/2017,4132070,1070510,900.00,GUARDIAN NEWSPAPERS LTD                 ,205256,,NEWSPAPER & MAGAZINE PUBLISHER
SHEFFIELD CITY COUNCIL        ,CYPF                          ,32042,MUSIC EDUCATION HUBS 2012-15  ,6280,HIRE OF PREMISES              ,03/01/2017,4132083,2946,433.80,SHEFFIELD CATHEDRAL CHAPTER             ,427279,,PLACES OF WORSHIP             
SCR COMBINED AUTHORITY        ,CA LEP                        ,30102,CORE TRANSPORT TEAM           ,8460,CONSULTANTS FEES              ,03/01/2017,4132086,CI030675                 ,"1,424.00",WATERMAN TRANSPORT DEVELOPMENT LTD      ,563593,,ENGINEERS - CONSULTING        
SHEFFIELD CITY COUNCIL        ,CYPF                          ,33112,LDD PLACEMENTS AUG16-JUL17    ,9120,OTHER AGENCIES                ,03/01/2017,4132093,11648,400.00,DARNALL CAR PROJECTS                    ,330248,,TRAINING CENTRES              
SHEFFIELD CITY COUNCIL        ,CYPF                          ,33112,LDD PLACEMENTS AUG16-JUL17    ,9120,OTHER AGENCIES                ,03/01/2017,4132094,11650,500.00,DARNALL CAR PROJECTS                    ,330248,,TRAINING CENTRES              
SHEFFIELD CITY COUNCIL        ,CYPF                          ,33112,LDD PLACEMENTS AUG16-JUL17    ,9120,OTHER AGENCIES                ,03/01/2017,4132095,11649,400.00,DARNALL CAR PROJECTS                    ,330248,,TRAINING CENTRES              
SHEFFIELD CITY COUNCIL        ,CYPF                          ,36039,SEN TAXIS                     ,7060,EXTERNAL VEHICLE HIRE         ,03/01/2017,4132113,SCC/SEN-1116             ,"23,916.00",TRAVELLERS TAXIS                        ,573383,,TAXIS & PRIVATE HIRE          
SHEFFIELD CITY COUNCIL        ,CYPF                          ,36033,SOCIAL CARE TAXIS             ,7060,EXTERNAL VEHICLE HIRE         ,03/01/2017,4132114,SCC/SOC-1116             ,"13,282.00",TRAVELLERS TAXIS                        ,573383,,TAXIS & PRIVATE HIRE          
SCR COMBINED AUTHORITY        ,CA LEP                        ,30321,SKILLS BANK                   ,5610,AGENCY STAFF                  ,03/01/2017,4132116,230480029,491.73,REED EMPLOYMENT                         ,317819,,EMPLOYMENT & RECRUITMENT AGENC
SHEFFIELD CITY COUNCIL        ,CYPF                          ,38200,INTEGRATED SEXUAL HEALTH SERVI,9030,HEALTH                        ,03/01/2017,4132121,4000480315,"422,615.00",SHEFFIELD TEACHING HOSPITALS NHS FND TST,583240,,HOSPITALS                     
SHEFFIELD CITY COUNCIL        ,COMMUNITIES                   ,49364,SUPPORTED HOUSING             ,8050,ELECTRICAL GOODS              ,03/01/2017,4132122,CMD2696150               ,"11,301.00",DOMESTIC APPLIANCE DISTRIBUTORS         ,527171,,ELECTRICAL GOODS - SALES      
SHEFFIELD CITY COUNCIL        ,PLACE                         ,21221,CULTURAL DIRECTOR             ,8440,FEE EXPENSES                  ,03/01/2017,4132133,41029,560.00,CVC EVENT SERVICES LTD                  ,381526,,"EXHIBITION, EVENT & TRADE FAIR"
SCR COMBINED AUTHORITY        ,CA LEP                        ,30201,INWARD INVESTMENT             ,8460,CONSULTANTS FEES              ,03/01/2017,4132139,201612J                  ,"7,000.00",WAVTEQ LTD                              ,640369,,BUSINESS & MANAGEMENT CONSULTA
SCR COMBINED AUTHORITY        ,CA LEP                        ,30201,INWARD INVESTMENT             ,8460,CONSULTANTS FEES              ,03/01/2017,4132140,201612K                  ,"5,000.00",WAVTEQ LTD                              ,640369,,BUSINESS & MANAGEMENT CONSULTA
SHEFFIELD CITY COUNCIL        ,CYPF                          ,33107,POST 16 HIGH NEEDS SEND       ,9120,OTHER AGENCIES                ,03/01/2017,4132144,SIN000250                ,"73,505.22",RUSKIN MILL TRUST                       ,387883,,SCHOOLS - SPECIAL             
SHEFFIELD CITY COUNCIL        ,CYPF                          ,39047,ALDINE HOUSE                  ,8130,CATERING SUPPLIES             ,03/01/2017,4132197,259101416,447.88,YORKSHIRE PURCHASING ORGANISATION       ,295997,,PURCHASING SERVICES           
SHEFFIELD CITY COUNCIL        ,CYPF                          ,36033,SOCIAL CARE TAXIS             ,7060,EXTERNAL VEHICLE HIRE         ,03/01/2017,4132198,ADV3778                  ,874.00,ADVANCED TRAVEL                         ,637975,,AIRPORT TRANSFER & TRANSPORTAT
SHEFFIELD CITY COUNCIL        ,CYPF                          ,33040,RED TAPE CENTRAL              ,6030,REPAIRS AND MTCE - RESPONSIVE ,03/01/2017,4132215,33908103-41              ,354.78,ADT FIRE & SECURITY PLC                 ,202773,,BURGLAR & INTRUDER ALARM SYSTE
SHEFFIELD CITY COUNCIL        ,CYPF                          ,36039,SEN TAXIS                     ,7060,EXTERNAL VEHICLE HIRE         ,03/01/2017,4132227,ADV3779                  ,"9,174.00",ADVANCED TRAVEL                         ,637975,,AIRPORT TRANSFER & TRANSPORTAT
SCR COMBINED AUTHORITY        ,CA LEP                        ,30103,CORE BUSINESS GROWTH          ,8250,MARKETING EXPENSES            ,03/01/2017,4132230,INV001678                ,"5,000.00",INK AND WATER LTD                       ,599037,,PRINTERS' SERVICES & SUPPLIES 
SCR COMBINED AUTHORITY        ,CA LEP                        ,30105,CORE PERFORMANCE TEAM         ,8250,MARKETING EXPENSES            ,03/01/2017,4132231,2116,"9,737.20",VCA CONSULTANCY LIMITED                 ,433931,,TOUR OPERATORS                
SHEFFIELD CITY COUNCIL        ,PLACE                         ,24410,THE MOOR INDOOR MARKET        ,8440,FEE EXPENSES                  ,03/01/2017,4132238,83,"3,000.00",KIDOLOGY                                ,596212,,ARTS                          
SHEFFIELD CITY COUNCIL        ,COMMUNITIES                   ,49384,REPAIRS INSOURCING            ,5610,AGENCY STAFF                  ,03/01/2017,4132281,BR3316/00                ,"1,337.50",BADENOCH AND CLARK LTD                  ,634019,,EMPLOYMENT & RECRUITMENT AGENC
SHEFFIELD CITY COUNCIL        ,CYPF                          ,39267,STEP UP TO SOCIAL WORK        ,8440,FEE EXPENSES                  ,03/01/2017,4132298,410001153,"17,266.40",NORTH YORKSHIRE COUNTY COUNCIL          ,542569,,LOCAL GOVERNMENT              
SHEFFIELD CITY COUNCIL        ,CYPF                          ,39267,STEP UP TO SOCIAL WORK        ,8440,FEE EXPENSES                  ,03/01/2017,4132300,15095241,"76,500.00",THE UNIVERSITY OF SALFORD               ,401265,,UNIVERSITIES & MEDICAL SCHOOLS
SHEFFIELD CITY COUNCIL        ,CYPF                          ,39193,GIBSON HOUSE                  ,8130,CATERING SUPPLIES             ,03/01/2017,4132302,4560358,257.30,HOPWELLS LIMITED                        ,318369,,FROZEN FOODS - WHOLESALE      
SHEFFIELD CITY COUNCIL        ,CYPF                          ,39567,YOUTH JUSTICE SERVICE         ,9120,OTHER AGENCIES                ,03/01/2017,4132308,135,"47,500.00",REMEDI                                  ,329612,,CHARITIES & VOLUNTARY ORGANISA
SHEFFIELD CITY COUNCIL        ,CYPF                          ,39567,YOUTH JUSTICE SERVICE         ,9120,OTHER AGENCIES                ,03/01/2017,4132309,136,"42,750.00",REMEDI                                  ,329612,,CHARITIES & VOLUNTARY ORGANISA
SHEFFIELD CITY COUNCIL        ,COMMUNITIES                   ,49852,SCHOOLS LIBRARY SERVICE       ,8080,LIBRARY MATERIALS             ,03/01/2017,4132317,1619290,"1,575.90",PETERS LTD                              ,312836,,BOOKSELLERS                   
SHEFFIELD CITY COUNCIL        ,COMMUNITIES                   ,49852,SCHOOLS LIBRARY SERVICE       ,8080,LIBRARY MATERIALS             ,03/01/2017,4132318,1619571,"1,117.80",PETERS LTD                              ,312836,,BOOKSELLERS                   
SHEFFIELD CITY COUNCIL        ,CYPF                          ,38216,ENHANCED SERVICE - PHARMACY (E,9030,HEALTH                        ,03/01/2017,4132319,STC033/OS                ,"2,000.00",SHEENA AMOS YOUTH TRUST                 ,315721,,YOUTH ORGANISATIONS & CENTRES 
SCR COMBINED AUTHORITY        ,CA LEP                        ,30321,SKILLS BANK                   ,5610,AGENCY STAFF                  ,03/01/2017,4132380,230402104,491.73,REED EMPLOYMENT                         ,317819,,EMPLOYMENT & RECRUITMENT AGENC
SCR COMBINED AUTHORITY        ,CA LEP                        ,30321,SKILLS BANK                   ,5610,AGENCY STAFF                  ,03/01/2017,4132384,230375898,491.73,REED EMPLOYMENT                         ,317819,,EMPLOYMENT & RECRUITMENT AGENC
SHEFFIELD CITY COUNCIL        ,PLACE                         ,25066,HILLSBOROUGH WALLED GARDEN    ,8550,OTHER SERVICES                ,03/01/2017,4132401,3790,570.00,STREETMASTER (SOUTH WALES) LTD          ,516590,,GARDEN & PATIO FURNITURE MNFRS
SCR COMBINED AUTHORITY        ,CA LEP                        ,30321,SKILLS BANK                   ,5610,AGENCY STAFF                  ,03/01/2017,4132405,230436361,491.73,REED EMPLOYMENT                         ,317819,,EMPLOYMENT & RECRUITMENT AGENC
SHEFFIELD CITY COUNCIL        ,COMMUNITIES                   ,49855,ARCHIVES & CONSERVATION       ,8060,MATERIALS AND SUPPLIES GENERAL,03/01/2017,4132406,355908,"2,503.00",PRESERVATION EQUIPMENT LTD              ,367363,,STORAGE & SHELVING SYSTEMS MNF
SHEFFIELD CITY COUNCIL        ,COMMUNITIES                   ,49855,ARCHIVES & CONSERVATION       ,8060,MATERIALS AND SUPPLIES GENERAL,03/01/2017,4132407,355907,"2,503.00",PRESERVATION EQUIPMENT LTD              ,367363,,STORAGE & SHELVING SYSTEMS MNF
SHEFFIELD CITY COUNCIL        ,POLICY PERFORMANCE AND COMMS  ,18003,COMMUNICATIONS                ,8550,ADVERTISING SERVICES          ,03/01/2017,4132412,Q383882                  ,"3,786.00",NLA MEDIA ACCESS LTD                    ,318239,,COPYRIGHT AGENTS              
SHEFFIELD CITY COUNCIL        ,RESOURCES                     ,11004,AUDIT FEES                    ,5750,TRAINING EXPENDITURE          ,03/01/2017,4132418,5210332,983.20,CIPFA                                   ,360709,,INSTITUTES - PROFESSIONAL     
SHEFFIELD CITY COUNCIL        ,CYPF                          ,36033,SOCIAL CARE TAXIS             ,7060,EXTERNAL VEHICLE HIRE         ,03/01/2017,4132430,007869A                  ,"7,374.09",DIAL A CAB                              ,598412,,TAXIS & PRIVATE HIRE          
SHEFFIELD CITY COUNCIL        ,PLACE                         ,21352,CREMATORIA                    ,8620,COMPUTER SOFTWARE LICENCES    ,03/01/2017,4131533,1275,"3,230.00",IAM CONSULTING SERVICES                 ,315740,,COMPUTER CONSULTANTS          
SHEFFIELD CITY COUNCIL        ,PLACE                         ,25051,PLAYGROUND MAINTENANCE & INSPE,8010,EQUIPMENT PURCHASE AND REPAIR ,03/01/2017,4132435,INVB203357               ,"1,585.00",BROXAP LTD                              ,203555,,METAL PRODUCTS - FABRICATED   
SHEFFIELD CITY COUNCIL        ,COMMUNITIES                   ,49364,SUPPORTED HOUSING             ,8050,FURNITURE PURCHASES           ,03/01/2017,4132438,SI0279853                ,"2,665.00",ANNAGHMORE AGENCIES                     ,571556,,FURNITURE - WHOLESALE         
SHEFFIELD CITY COUNCIL        ,COMMUNITIES                   ,49372,HME                           ,6030,REPAIRS TO TENANTED PROPERTIES,03/01/2017,4132442,VSL1210                  ,"3,365.00",VIGIL SECURITY SYSTEMS LTD              ,440317,,BURGLAR & INTRUDER ALARM SYSTE
SHEFFIELD CITY COUNCIL        ,CYPF                          ,33112,LDD PLACEMENTS AUG16-JUL17    ,9120,OTHER AGENCIES                ,03/01/2017,4132449,34A/F17                  ,800.00,THE FURNIVAL                            ,397971,,CHARITIES & VOLUNTARY ORGANISA
SHEFFIELD CITY COUNCIL        ,CYPF                          ,33112,LDD PLACEMENTS AUG16-JUL17    ,9120,OTHER AGENCIES                ,03/01/2017,4132450,34B/F17                  ,400.00,THE FURNIVAL                            ,397971,,CHARITIES & VOLUNTARY ORGANISA
SHEFFIELD CITY COUNCIL        ,CYPF                          ,33112,LDD PLACEMENTS AUG16-JUL17    ,9120,OTHER AGENCIES                ,03/01/2017,4132453,8A/F17                   ,320.00,THE FURNIVAL                            ,397971,,CHARITIES & VOLUNTARY ORGANISA
SHEFFIELD CITY COUNCIL        ,CYPF                          ,33112,LDD PLACEMENTS AUG16-JUL17    ,9120,OTHER AGENCIES                ,03/01/2017,4132454,8B/F17                   ,320.00,THE FURNIVAL                            ,397971,,CHARITIES & VOLUNTARY ORGANISA
SHEFFIELD CITY COUNCIL        ,CYPF                          ,33112,LDD PLACEMENTS AUG16-JUL17    ,9120,OTHER AGENCIES                ,03/01/2017,4132457,NEWROUTE_014             ,375.00,MY LIFE PROJECT                         ,556499,,CHARITIES & VOLUNTARY ORGANISA
SHEFFIELD CITY COUNCIL        ,CYPF                          ,33112,LDD PLACEMENTS AUG16-JUL17    ,9120,OTHER AGENCIES                ,03/01/2017,4132458,MWST02                   ,510.00,THE MUSICAL WORKS                       ,368576,,COMMUNITY PROJECTS            
SCR COMBINED AUTHORITY        ,CA LEP                        ,30105,CORE PERFORMANCE TEAM         ,8460,CONSULTANTS FEES              ,03/01/2017,4132465,1007133390,845.08,HAYS PERSONNEL                          ,381864,,EMPLOYMENT & RECRUITMENT AGENC
SHEFFIELD CITY COUNCIL        ,COMMUNITIES                   ,49372,HME                           ,6030,REPAIRS TO TENANTED PROPERTIES,03/01/2017,4132468,VSL1211                  ,"4,195.00",VIGIL SECURITY SYSTEMS LTD              ,440317,,BURGLAR & INTRUDER ALARM SYSTE
SHEFFIELD CITY COUNCIL        ,CYPF                          ,39193,GIBSON HOUSE                  ,5610,AGENCY STAFF                  ,03/01/2017,4132470,230455468,692.32,REED                                    ,341818,,EMPLOYMENT & RECRUITMENT AGENC
SHEFFIELD CITY COUNCIL        ,CYPF                          ,39193,GIBSON HOUSE                  ,5610,AGENCY STAFF                  ,03/01/2017,4132474,230455467,789.35,REED                                    ,341818,,EMPLOYMENT & RECRUITMENT AGENC
SHEFFIELD CITY COUNCIL        ,CYPF                          ,39193,GIBSON HOUSE                  ,5610,AGENCY STAFF                  ,03/01/2017,4132477,230455465,"1,078.87",REED                                    ,341818,,EMPLOYMENT & RECRUITMENT AGENC
SHEFFIELD CITY COUNCIL        ,CYPF                          ,39193,GIBSON HOUSE                  ,5610,AGENCY STAFF                  ,03/01/2017,4132478,230455464,912.80,REED                                    ,341818,,EMPLOYMENT & RECRUITMENT AGENC
SHEFFIELD CITY COUNCIL        ,CYPF                          ,39193,GIBSON HOUSE                  ,5610,AGENCY STAFF                  ,03/01/2017,4132480,230455463,733.30,REED                                    ,341818,,EMPLOYMENT & RECRUITMENT AGENC
SHEFFIELD CITY COUNCIL        ,CYPF                          ,39193,GIBSON HOUSE                  ,5610,AGENCY STAFF                  ,03/01/2017,4132481,230455462,858.39,REED                                    ,341818,,EMPLOYMENT & RECRUITMENT AGENC
SHEFFIELD CITY COUNCIL        ,CYPF                          ,39193,GIBSON HOUSE                  ,5610,AGENCY STAFF                  ,03/01/2017,4132484,230455461,552.54,REED                                    ,341818,,EMPLOYMENT & RECRUITMENT AGENC
SHEFFIELD CITY COUNCIL        ,CYPF                          ,39193,GIBSON HOUSE                  ,5610,AGENCY STAFF                  ,03/01/2017,4132486,230455460,750.14,REED                                    ,341818,,EMPLOYMENT & RECRUITMENT AGENC
SHEFFIELD CITY COUNCIL        ,CYPF                          ,39193,GIBSON HOUSE                  ,5610,AGENCY STAFF                  ,03/01/2017,4132487,230455459,"1,019.61",REED                                    ,341818,,EMPLOYMENT & RECRUITMENT AGENC
SHEFFIELD CITY COUNCIL        ,PLACE                         ,28114,JESSICA                       ,8550,OTHER SERVICES                ,03/01/2017,4132490,SRD00016284              ,"10,725.00",GRIFFITHS & ARMOUR INSURANCE BROKERS LTD,501455,,INSURANCE - OTHER             
SHEFFIELD CITY COUNCIL        ,PLACE                         ,23036,CORONIAL SERVICES             ,8100,RECHARGEABLE PURCHASES        ,03/01/2017,4132492,6010672,"5,283.84",BARNSLEY HOSPITAL NHS FT                ,308864,,HOSPITALS                     
SHEFFIELD CITY COUNCIL        ,CYPF                          ,36022,SCHOOL DRINKING MILK          ,8140,GROCERIES                     ,03/01/2017,4132493,38,"18,125.50",MEDINA CAPITAL DAIRY CO LTD             ,524568,,DAIRIES                       
SHEFFIELD CITY COUNCIL        ,COMMUNITIES                   ,49852,SCHOOLS LIBRARY SERVICE       ,8080,LIBRARY MATERIALS             ,03/01/2017,4132499,1620258,"1,004.43",PETERS LTD                              ,312836,,BOOKSELLERS                   
SHEFFIELD CITY COUNCIL        ,COMMUNITIES                   ,49003,GATEWAY EXTENSION PROJECT     ,6210,RENTS                         ,03/01/2017,4132509,01-Dec-16,250.00,SHABANA MEHMOOD                         ,641358,,LETTING AGENTS                
SHEFFIELD CITY COUNCIL        ,PLACE                         ,28103,RISE                          ,8440,FEE EXPENSES                  ,03/01/2017,4132511,INV-1465                 ,"21,000.00",GRADCORE LTD                            ,511257,,EMPLOYMENT & RECRUITMENT AGENC
SHEFFIELD CITY COUNCIL        ,CYPF                          ,36033,SOCIAL CARE TAXIS             ,7060,EXTERNAL VEHICLE HIRE         ,03/01/2017,4132514,22708,"11,636.65",NORTHERN TAXIS LIMITED                  ,301182,,TAXIS & PRIVATE HIRE          
SHEFFIELD CITY COUNCIL        ,COMMUNITIES                   ,49331,ESTATE & ENVIRONMENTAL TEAM   ,6370,GROUNDS MTCE AND ARBORICULTURE,03/01/2017,4132517,12585,450.59,GARDENSTYLE LTD                         ,526789,,GARDEN CENTRES & NURSERIES    
SHEFFIELD CITY COUNCIL        ,PLACE                         ,22180,TTAPS GENERAL                 ,8350,MISCELLANEOUS EXPENSES        ,03/01/2017,4132523,MAIN256819               ,475.50,FIRST SOUTH YORKSHIRE LTD               ,349357,,BUS & COACH OPERATORS & STATIO
SHEFFIELD CITY COUNCIL        ,PLACE                         ,22180,TTAPS GENERAL                 ,8350,MISCELLANEOUS EXPENSES        ,03/01/2017,4132525,MAIN256820               ,396.50,FIRST SOUTH YORKSHIRE LTD               ,349357,,BUS & COACH OPERATORS & STATIO
SHEFFIELD CITY COUNCIL        ,PLACE                         ,21312,CITY CENTRE PROMOTIONAL PLAN  ,8440,FEE EXPENSES                  ,03/01/2017,4132529,SP16021930               ,"1,653.25",ST JOHN AMBULANCE                       ,327056,,CHARITIES & VOLUNTARY ORGANISA
SHEFFIELD CITY COUNCIL        ,POLICY PERFORMANCE AND COMMS  ,18003,COMMUNICATIONS                ,8550,OTHER SERVICES                ,03/01/2017,4132531,225213,362.00,B AND B PRESS (PARKGATE) LTD            ,203168,,PRINTERS                      
SHEFFIELD CITY COUNCIL        ,PLACE                         ,23036,CORONIAL SERVICES             ,8550,OTHER SERVICES                ,03/01/2017,4132532,4000480507,"1,448.43",SHEFFIELD TEACHING HOSPITALS NHS TRUST  ,299675,,HOSPITALS                     
SHEFFIELD CITY COUNCIL        ,CYPF                          ,33112,LDD PLACEMENTS AUG16-JUL17    ,9120,OTHER AGENCIES                ,03/01/2017,4132533,1097,"1,250.00",IMAGINATION GAMING                      ,518155,,GAMES SHOPS                   
SCR COMBINED AUTHORITY        ,CA LEP                        ,30104,CORE OPERATIONAL              ,8010,EQUIPMENT PURCHASE AND REPAIR ,03/01/2017,4132534,SL0071675                ,568.54,SYPTE                                   ,208757,,BUS & COACH OPERATORS & STATIO
SHEFFIELD CITY COUNCIL        ,PLACE                         ,24407,DISPOSALS & ACQUISITIONS      ,8420,ADVERTISING AND PUBLICITY     ,03/01/2017,4132535,75082,975.00,MARK JENKINSON & SON                    ,206710,,AUCTIONEERS & VALUERS         
SHEFFIELD CITY COUNCIL        ,PLACE                         ,23037,MEDICO LEGAL CENTRE           ,6110,CLEANING/DOMESTIC MAT./SUPPLY ,03/01/2017,4132538,10311,607.60,CHEMSOL LTD                             ,342893,,FUNERAL SERVICES              
SHEFFIELD CITY COUNCIL        ,PLACE                         ,23037,MEDICO LEGAL CENTRE           ,8010,EQUIPMENT PURCHASE AND REPAIR ,03/01/2017,4132538,10311,771.01,CHEMSOL LTD                             ,342893,,FUNERAL SERVICES              
SHEFFIELD CITY COUNCIL        ,PLACE                         ,23037,MEDICO LEGAL CENTRE           ,8110,"CLOTHING, UNIFORM AND LAUNDRY ",03/01/2017,4132538,10311,"1,185.37",CHEMSOL LTD                             ,342893,,FUNERAL SERVICES              
SHEFFIELD CITY COUNCIL        ,PLACE                         ,23037,MEDICO LEGAL CENTRE           ,6110,CLEANING/DOMESTIC MAT./SUPPLY ,03/01/2017,4132539,10445,522.80,CHEMSOL LTD                             ,342893,,FUNERAL SERVICES              
SHEFFIELD CITY COUNCIL        ,PLACE                         ,23037,MEDICO LEGAL CENTRE           ,8010,EQUIPMENT PURCHASE AND REPAIR ,03/01/2017,4132539,10445,568.62,CHEMSOL LTD                             ,342893,,FUNERAL SERVICES              
SHEFFIELD CITY COUNCIL        ,PLACE                         ,23037,MEDICO LEGAL CENTRE           ,8110,"CLOTHING, UNIFORM AND LAUNDRY ",03/01/2017,4132539,10445,529.64,CHEMSOL LTD                             ,342893,,FUNERAL SERVICES              
SHEFFIELD CITY COUNCIL        ,CYPF                          ,36033,SOCIAL CARE TAXIS             ,7060,EXTERNAL VEHICLE HIRE         ,03/01/2017,4132540,26,"1,800.00",M M KHALIQ T/AS ACE MINIBUS TRAVEL      ,598946,,TAXIS & PRIVATE HIRE          
SHEFFIELD CITY COUNCIL        ,PLACE                         ,25054,RANGER SERVICE                ,8060,MATERIALS AND SUPPLIES GENERAL,03/01/2017,4132564,IN110470                 ,252.56,HONEY BROTHERS LTD                      ,448420,,CHAINSAWS - SALES & SERVICE   
SHEFFIELD CITY COUNCIL        ,CYPF                          ,33068,ROMA PROJECT                  ,8440,FEE EXPENSES                  ,03/01/2017,4132566,791-17                   ,325.00,TINSLEY FORUM                           ,303283,,CHARITIES & VOLUNTARY ORGANISA
SHEFFIELD CITY COUNCIL        ,PLACE                         ,25094,PARKS OPS SOUTH & SOUTH EAST  ,8550,OTHER SERVICES                ,03/01/2017,4132568,7043,999.25,ROGER ALLPORT NURSERIES                 ,338722,,NURSERIES - WHOLESALE         
SHEFFIELD CITY COUNCIL        ,CYPF                          ,32042,MUSIC EDUCATION HUBS 2012-15  ,8010,EQUIPMENT PURCHASE AND REPAIR ,03/01/2017,4132577,134069,275.00,PJS MUSIC                               ,322826,,MUSICAL INSTRUMENTS & SHEET MU
SHEFFIELD CITY COUNCIL        ,PLACE                         ,23036,CORONIAL SERVICES             ,8090,BEREAVEMENT SUPPLIES          ,03/01/2017,4132580,SA                       ,630.00,JOHN HEATH & SONS                       ,512922,,FUNERAL DIRECTORS             
SCR COMBINED AUTHORITY        ,CA LEP                        ,30102,CORE TRANSPORT TEAM           ,8460,CONSULTANTS FEES              ,03/01/2017,4132600,CI030802                 ,712.00,WATERMAN TRANSPORT DEVELOPMENT LTD      ,563593,,ENGINEERS - CONSULTING        
SHEFFIELD CITY COUNCIL        ,PLACE                         ,97334,DISABLED GRANTS               ,1165,NC&A OTHER                    ,03/01/2017,4132617,10006186,"5,444.06",KIER SERVICES MAINTENANCE EAST (KSME)   ,591748,,CONSTRUCTION CONTRACTORS - GEN
SHEFFIELD CITY COUNCIL        ,PLACE                         ,97334,DISABLED GRANTS               ,1165,NC&A OTHER                    ,03/01/2017,4132618,10006187,"4,485.76",KIER SERVICES MAINTENANCE EAST (KSME)   ,591748,,CONSTRUCTION CONTRACTORS - GEN
SHEFFIELD CITY COUNCIL        ,PLACE                         ,97334,DISABLED GRANTS               ,1165,NC&A OTHER                    ,03/01/2017,4132619,10006188,"5,774.38",KIER SERVICES MAINTENANCE EAST (KSME)   ,591748,,CONSTRUCTION CONTRACTORS - GEN
SHEFFIELD CITY COUNCIL        ,PLACE                         ,97334,DISABLED GRANTS               ,1165,NC&A OTHER                    ,03/01/2017,4132620,10006189,"6,113.77",KIER SERVICES MAINTENANCE EAST (KSME)   ,591748,,CONSTRUCTION CONTRACTORS - GEN
SHEFFIELD CITY COUNCIL        ,RESOURCES                     ,11004,AUDIT FEES                    ,8450,AUDIT FEES                    ,03/01/2017,4132651,5501339079,"51,709.00",KPMG                                    ,327162,,ACCOUNTANTS                   
SHEFFIELD CITY COUNCIL        ,CYPF                          ,39282,CARE PROCEEDINGS (LEGAL FEES) ,8470,LEGAL FEES                    ,05/01/2017,4132325,160874,700.00,MISS ANGELA WROTTESLEY                  ,526710,,BARRISTERS                    
SCR COMBINED AUTHORITY        ,CA LEP                        ,30105,CORE PERFORMANCE TEAM         ,8490,OTHER PROFESSIONAL FEES       ,03/01/2017,4132678,230530154,"1,057.08",REED EMPLOYMENT                         ,317819,,EMPLOYMENT & RECRUITMENT AGENC
SCR COMBINED AUTHORITY        ,CA LEP                        ,30100,LEP CORE                      ,5610,AGENCY STAFF                  ,03/01/2017,4132681,230509334,726.92,REED EMPLOYMENT                         ,317819,,EMPLOYMENT & RECRUITMENT AGENC
SHEFFIELD CITY COUNCIL        ,PLACE                         ,93110,BB2 CHESTERFIELD RD KBR       ,1194,OTHER FEES                    ,03/01/2017,4132690,50131009,"9,267.06",VIRGIN MEDIA                            ,401266,,TELECOMMUNICATION SERVICES    
SHEFFIELD CITY COUNCIL        ,COMMUNITIES                   ,49235,CENTRAL PAYMENTS TO TENANTS   ,6060,DECANTING/REMOVAL COSTS       ,03/01/2017,4132696,923461,379.06,PICKFORDS                               ,573763,,REMOVALS - OVERSEAS           
SHEFFIELD CITY COUNCIL        ,POLICY PERFORMANCE AND COMMS  ,17003,ELECTORAL REGISTRATION        ,8400,PUBLICATIONS AND PERIODICALS  ,03/01/2017,4132812,802045689,374.00,THOMSON REUTERS                         ,340190,,INFORMATION SERVICES          
SHEFFIELD CITY COUNCIL        ,PLACE                         ,94105,GRAVES NCSEM PROJECT          ,1161,NC&A MAIN CONTRACT            ,03/01/2017,4132844,PM24190/22               ,"141,112.22",BAM CONSTRUCTION LTD                    ,581766,,CONSTRUCTION CONTRACTORS - GEN
SHEFFIELD CITY COUNCIL        ,COMMUNITIES                   ,46039,ADULT SOCIAL CARE PURCHASING  ,9190,DIRECT PAYMENTS               ,03/01/2017,4132732,J1749753                 ,323.00,REDACTED PERSONAL DATA,369765,Social Community Care,CAREFIRST DIRECT PAYMENTS     
SHEFFIELD CITY COUNCIL        ,COMMUNITIES                   ,42034,PURCHASING LEARNING DISABILITI,9190,DIRECT PAYMENTS               ,03/01/2017,4132733,J1749753                 ,"2,245.80",PEOPLEPLUS GROUP LIMITED                ,547567,,TRAINING SERVICES             
SHEFFIELD CITY COUNCIL        ,COMMUNITIES                   ,44001,PURCHASING                    ,9190,DIRECT PAYMENTS               ,03/01/2017,4132734,J1749753                 ,"4,259.47",REDACTED PERSONAL DATA,556296,,CHARITIES & VOLUNTARY ORGANISA
SHEFFIELD CITY COUNCIL        ,COMMUNITIES                   ,42034,PURCHASING LEARNING DISABILITI,9190,DIRECT PAYMENTS               ,03/01/2017,4132735,J1749753                 ,"6,158.58",REDACTED PERSONAL DATA,556454,Social Community Care,CAREFIRST DIRECT PAYMENTS     
SHEFFIELD CITY COUNCIL        ,COMMUNITIES                   ,44001,PURCHASING                    ,9190,DIRECT PAYMENTS               ,03/01/2017,4132735,J1749753                 ,331.55,REDACTED PERSONAL DATA,556454,Social Community Care,CAREFIRST DIRECT PAYMENTS     
SHEFFIELD CITY COUNCIL        ,COMMUNITIES                   ,46039,ADULT SOCIAL CARE PURCHASING  ,9190,DIRECT PAYMENTS               ,03/01/2017,4132735,J1749753                 ,"1,267.75",REDACTED PERSONAL DATA,556454,Social Community Care,CAREFIRST DIRECT PAYMENTS     
SHEFFIELD CITY COUNCIL        ,COMMUNITIES                   ,42034,PURCHASING LEARNING DISABILITI,9190,DIRECT PAYMENTS               ,03/01/2017,4132736,J1749753                 ,309.92,REDACTED PERSONAL DATA,556890,Social Community Care,CAREFIRST DIRECT PAYMENTS     
SHEFFIELD CITY COUNCIL        ,COMMUNITIES                   ,46039,ADULT SOCIAL CARE PURCHASING  ,9190,DIRECT PAYMENTS               ,03/01/2017,4132736,J1749753                 ,281.52,REDACTED PERSONAL DATA,556890,Social Community Care,CAREFIRST DIRECT PAYMENTS     
SHEFFIELD CITY COUNCIL        ,COMMUNITIES                   ,46039,ADULT SOCIAL CARE PURCHASING  ,9190,DIRECT PAYMENTS               ,03/01/2017,4132737,J1749753                 ,558.83,REDACTED PERSONAL DATA,561085,Social Community Care,CAREFIRST DIRECT PAYMENTS     
SHEFFIELD CITY COUNCIL        ,COMMUNITIES                   ,46039,ADULT SOCIAL CARE PURCHASING  ,9190,DIRECT PAYMENTS               ,03/01/2017,4132738,J1749753                 ,"4,673.94",REDACTED PERSONAL DATA,562178,Social Community Care,CAREFIRST DIRECT PAYMENTS     
SHEFFIELD CITY COUNCIL        ,COMMUNITIES                   ,42034,PURCHASING LEARNING DISABILITI,9190,DIRECT PAYMENTS               ,03/01/2017,4132738,J1749753                 ,"3,660.57",REDACTED PERSONAL DATA,562178,Social Community Care,CAREFIRST DIRECT PAYMENTS     
SHEFFIELD CITY COUNCIL        ,COMMUNITIES                   ,46039,ADULT SOCIAL CARE PURCHASING  ,9190,DIRECT PAYMENTS               ,03/01/2017,4132739,J1749753                 ,"1,828.00",REDACTED PERSONAL DATA,565733,Social Community Care,CAREFIRST DIRECT PAYMENTS     
SHEFFIELD CITY COUNCIL        ,COMMUNITIES                   ,46039,ADULT SOCIAL CARE PURCHASING  ,9190,DIRECT PAYMENTS               ,03/01/2017,4132740,J1749753                 ,428.96,REDACTED PERSONAL DATA,577115,Social Community Care,CAREFIRST DIRECT PAYMENTS     
SHEFFIELD CITY COUNCIL        ,COMMUNITIES                   ,42034,PURCHASING LEARNING DISABILITI,9190,DIRECT PAYMENTS               ,03/01/2017,4132741,J1749753                 ,"4,520.00",REDACTED PERSONAL DATA,580447,Social Community Care,CAREFIRST DIRECT PAYMENTS     
SHEFFIELD CITY COUNCIL        ,COMMUNITIES                   ,46039,ADULT SOCIAL CARE PURCHASING  ,9190,DIRECT PAYMENTS               ,03/01/2017,4132742,J1749753                 ,441.00,THAMES HOME CARE LTD                    ,596193,Social Community Care,CAREFIRST DIRECT PAYMENTS     
SHEFFIELD CITY COUNCIL        ,COMMUNITIES                   ,46039,ADULT SOCIAL CARE PURCHASING  ,9190,DIRECT PAYMENTS               ,03/01/2017,4132744,J1749753                 ,845.04,REDACTED PERSONAL DATA,630481,Social Community Care,CAREFIRST DIRECT PAYMENTS     
SHEFFIELD CITY COUNCIL        ,COMMUNITIES                   ,46039,ADULT SOCIAL CARE PURCHASING  ,9190,DIRECT PAYMENTS               ,03/01/2017,4132745,J1749753                 ,315.00,REDACTED PERSONAL DATA,631136,Social Community Care,CAREFIRST DIRECT PAYMENTS     
SHEFFIELD CITY COUNCIL        ,COMMUNITIES                   ,46039,ADULT SOCIAL CARE PURCHASING  ,9190,FUNDED HOME SUPPORT           ,03/01/2017,4132746,J1749753                 ,"3,273.82",REDACTED PERSONAL DATA,634074,Social Community Care,CAREFIRST DIRECT PAYMENTS     
SHEFFIELD CITY COUNCIL        ,COMMUNITIES                   ,46039,ADULT SOCIAL CARE PURCHASING  ,9190,DIRECT PAYMENTS               ,03/01/2017,4132747,J1749753                 ,"1,616.49",REDACTED PERSONAL DATA,641628,Social Community Care,CAREFIRST DIRECT PAYMENTS     
SHEFFIELD CITY COUNCIL        ,COMMUNITIES                   ,46039,ADULT SOCIAL CARE PURCHASING  ,9190,DIRECT PAYMENTS               ,03/01/2017,4132748,J1749753                 ,250.00,REDACTED PERSONAL DATA,641763,Social Community Care,CAREFIRST DIRECT PAYMENTS     
SHEFFIELD CITY COUNCIL        ,COMMUNITIES                   ,46039,ADULT SOCIAL CARE PURCHASING  ,9190,DIRECT PAYMENTS               ,03/01/2017,4132749,J1749753                 ,733.20,REDACTED PERSONAL DATA,641764,Social Community Care,CAREFIRST DIRECT PAYMENTS     
SHEFFIELD CITY COUNCIL        ,CYPF                          ,39148,DIRECT PAYMENTS               ,9190,DIRECT PAYMENTS               ,03/01/2017,4132750,J1749753                 ,682.29,REDACTED PERSONAL DATA,641765,Social Community Care,CAREFIRST DIRECT PAYMENTS     
SHEFFIELD CITY COUNCIL        ,COMMUNITIES                   ,42034,PURCHASING LEARNING DISABILITI,9190,CITYWIDE SPOT                 ,03/01/2017,4132751,142269,294.00,SCOPE(ROTHERHAM DAY SERVICE)            ,361950,,CHARITIES & VOLUNTARY ORGANISA
SHEFFIELD CITY COUNCIL        ,COMMUNITIES                   ,46039,ADULT SOCIAL CARE PURCHASING  ,9190,CITYWIDE SPOT                 ,03/01/2017,4132752,142273,728.36,SCOPE(ROTHERHAM DAY SERVICE)            ,361950,,CHARITIES & VOLUNTARY ORGANISA
SHEFFIELD CITY COUNCIL        ,COMMUNITIES                   ,46039,ADULT SOCIAL CARE PURCHASING  ,9230,CCSP TRANSPORT                ,03/01/2017,4132753,36337,410.10,SHEFFIELD COMMUNITY TRANSPORT           ,296356,,CHARITIES & VOLUNTARY ORGANISA
SHEFFIELD CITY COUNCIL        ,COMMUNITIES                   ,42034,PURCHASING LEARNING DISABILITI,9210,FUNDED NURSING CARE (INCOME)  ,03/01/2017,4132755,39109,444.00,SHEFFIELD COMMUNITY TRANSPORT           ,296356,,CHARITIES & VOLUNTARY ORGANISA
SHEFFIELD CITY COUNCIL        ,COMMUNITIES                   ,42034,PURCHASING LEARNING DISABILITI,9240,FUNDED NURSING CARE (IN       ,03/01/2017,4132756,44564,"3,322.20",AFFINITY TRUST                          ,565909,,CHARITIES & VOLUNTARY ORGANISA
SHEFFIELD CITY COUNCIL        ,COMMUNITIES                   ,42034,PURCHASING LEARNING DISABILITI,9240,SUPPORTED LIVING CARE         ,03/01/2017,4132756,44564,"3,322.20",AFFINITY TRUST                          ,565909,,CHARITIES & VOLUNTARY ORGANISA
SHEFFIELD CITY COUNCIL        ,COMMUNITIES                   ,42034,PURCHASING LEARNING DISABILITI,9240,FUNDED NURSING CARE (IN       ,03/01/2017,4132757,45655,"3,322.20",AFFINITY TRUST                          ,565909,,CHARITIES & VOLUNTARY ORGANISA
SHEFFIELD CITY COUNCIL        ,COMMUNITIES                   ,42034,PURCHASING LEARNING DISABILITI,9240,SUPPORTED LIVING CARE         ,03/01/2017,4132757,45655,"3,322.20",AFFINITY TRUST                          ,565909,,CHARITIES & VOLUNTARY ORGANISA
SHEFFIELD CITY COUNCIL        ,COMMUNITIES                   ,42034,PURCHASING LEARNING DISABILITI,9240,SUPPORTED LIVING CARE         ,03/01/2017,4132758,47005,"3,322.20",AFFINITY TRUST                          ,565909,,CHARITIES & VOLUNTARY ORGANISA
SHEFFIELD CITY COUNCIL        ,COMMUNITIES                   ,42034,PURCHASING LEARNING DISABILITI,9240,FUNDED NURSING CARE (IN       ,03/01/2017,4132758,47005,"3,322.20",AFFINITY TRUST                          ,565909,,CHARITIES & VOLUNTARY ORGANISA
SHEFFIELD CITY COUNCIL        ,COMMUNITIES                   ,42034,PURCHASING LEARNING DISABILITI,9240,SUPPORTED LIVING CARE         ,03/01/2017,4132759,47671,"3,322.20",AFFINITY TRUST                          ,565909,,CHARITIES & VOLUNTARY ORGANISA
SHEFFIELD CITY COUNCIL        ,COMMUNITIES                   ,42034,PURCHASING LEARNING DISABILITI,9240,FUNDED NURSING CARE (IN       ,03/01/2017,4132759,47671,"3,322.20",AFFINITY TRUST                          ,565909,,CHARITIES & VOLUNTARY ORGANISA
SHEFFIELD CITY COUNCIL        ,COMMUNITIES                   ,42034,PURCHASING LEARNING DISABILITI,9240,SUPPORTED LIVING CARE         ,03/01/2017,4132760,48962,"3,322.20",AFFINITY TRUST                          ,565909,,CHARITIES & VOLUNTARY ORGANISA
SHEFFIELD CITY COUNCIL        ,COMMUNITIES                   ,42034,PURCHASING LEARNING DISABILITI,9240,FUNDED NURSING CARE (IN       ,03/01/2017,4132760,48962,"3,322.20",AFFINITY TRUST                          ,565909,,CHARITIES & VOLUNTARY ORGANISA
SHEFFIELD CITY COUNCIL        ,COMMUNITIES                   ,42034,PURCHASING LEARNING DISABILITI,9240,FUNDED NURSING CARE (IN       ,03/01/2017,4132761,50058,"3,322.20",AFFINITY TRUST                          ,565909,,CHARITIES & VOLUNTARY ORGANISA
SHEFFIELD CITY COUNCIL        ,COMMUNITIES                   ,42034,PURCHASING LEARNING DISABILITI,9240,SUPPORTED LIVING CARE         ,03/01/2017,4132761,50058,"3,322.20",AFFINITY TRUST                          ,565909,,CHARITIES & VOLUNTARY ORGANISA
SHEFFIELD CITY COUNCIL        ,COMMUNITIES                   ,42034,PURCHASING LEARNING DISABILITI,9190,CITYWIDE SPOT                 ,03/01/2017,4132762,3108599,934.16,MENCAP HOMECARE                         ,361858,,CHARITIES & VOLUNTARY ORGANISA
SHEFFIELD CITY COUNCIL        ,CYPF                          ,39405,LEAVING CARE                  ,9270,INDEPENDENT FOSTERING         ,04/01/2017,4133073,193993,829.99,REDACTED PERSONAL DATA,349291,,ADOPTION & FOSTERING          
SHEFFIELD CITY COUNCIL        ,COMMUNITIES                   ,42034,PURCHASING LEARNING DISABILITI,9240,FUNDED NURSING CARE (IN       ,03/01/2017,4132763,50060,"8,345.68",AFFINITY TRUST                          ,565909,,CHARITIES & VOLUNTARY ORGANISA
SHEFFIELD CITY COUNCIL        ,COMMUNITIES                   ,42034,PURCHASING LEARNING DISABILITI,9190,FUNDED HOME SUPPORT           ,03/01/2017,4132764,50061,"1,007.95",AFFINITY TRUST                          ,565909,,CHARITIES & VOLUNTARY ORGANISA
SHEFFIELD CITY COUNCIL        ,COMMUNITIES                   ,42034,PURCHASING LEARNING DISABILITI,9190,CITYWIDE SPOT                 ,03/01/2017,4132764,50061,"2,378.25",AFFINITY TRUST                          ,565909,,CHARITIES & VOLUNTARY ORGANISA
SHEFFIELD CITY COUNCIL        ,COMMUNITIES                   ,46039,ADULT SOCIAL CARE PURCHASING  ,9190,CITYWIDE SPOT                 ,03/01/2017,4132766,DDE000319                ,270.00,SPRINGWOOD HOUSE (SHEFFCARE LTD)        ,299566,,RESIDENTIAL CARE HOMES        
SHEFFIELD CITY COUNCIL        ,COMMUNITIES                   ,42034,PURCHASING LEARNING DISABILITI,9190,CITYWIDE SPOT                 ,03/01/2017,4132768,DSHE002                  ,324.34,REDACTED PERSONAL DATA,558736,Social Community Care,CAREFIRST DIRECT PAYMENTS     
SHEFFIELD CITY COUNCIL        ,COMMUNITIES                   ,42034,PURCHASING LEARNING DISABILITI,9190,CITYWIDE SPOT                 ,03/01/2017,4132770,H001791                  ,460.35,REDACTED PERSONAL DATA,558736,Social Community Care,CAREFIRST DIRECT PAYMENTS     
SHEFFIELD CITY COUNCIL        ,COMMUNITIES                   ,42034,PURCHASING LEARNING DISABILITI,9190,CITYWIDE SPOT                 ,03/01/2017,4132771,H001792                  ,502.20,REDACTED PERSONAL DATA,558736,Social Community Care,CAREFIRST DIRECT PAYMENTS     
SHEFFIELD CITY COUNCIL        ,COMMUNITIES                   ,42034,PURCHASING LEARNING DISABILITI,9190,CITYWIDE SPOT                 ,03/01/2017,4132773,INV02654                 ,803.60,REDACTED PERSONAL DATA,569157,,HOME CARE SERVICES            
SHEFFIELD CITY COUNCIL        ,COMMUNITIES                   ,42034,PURCHASING LEARNING DISABILITI,9190,FUNDED HOME SUPPORT           ,03/01/2017,4132774,INV02660                 ,"2,611.70",REDACTED PERSONAL DATA,569157,,HOME CARE SERVICES            
SHEFFIELD CITY COUNCIL        ,COMMUNITIES                   ,42034,PURCHASING LEARNING DISABILITI,9190,CITYWIDE SPOT                 ,03/01/2017,4132775,INV02667                 ,344.40,REDACTED PERSONAL DATA,569157,,HOME CARE SERVICES            
SHEFFIELD CITY COUNCIL        ,COMMUNITIES                   ,42034,PURCHASING LEARNING DISABILITI,9190,CITYWIDE SPOT                 ,03/01/2017,4132778,SIMI100637               ,"3,328.12",REDACTED PERSONAL DATA,524237,,RESIDENTIAL CARE HOMES        
SHEFFIELD CITY COUNCIL        ,CYPF                          ,39284,INDEPENDENT FOSTERING PLACEMEN,9270,INDEPENDENT FOSTERING         ,03/01/2017,4132698,88/16                    ,"5,142.90",REDACTED PERSONAL DATA,590591,,ADOPTION & FOSTERING          
SHEFFIELD CITY COUNCIL        ,CYPF                          ,39405,LEAVING CARE                  ,9270,CARELEAVERS ACCOMMODATION     ,03/01/2017,4132699,328733B1                 ,"1,271.33",REDACTED PERSONAL DATA,587884,Unclassified Non Trade,OUT OF SCOPE FOR SIC MONITORIN
SHEFFIELD CITY COUNCIL        ,CYPF                          ,39405,LEAVING CARE                  ,9270,CARELEAVERS ACCOMMODATION     ,03/01/2017,4132700,5082,"3,800.00",TWENTY FOUR SEVEN                       ,364408,,CHARITIES & VOLUNTARY ORGANISA
SHEFFIELD CITY COUNCIL        ,CYPF                          ,39006,UASC/ASYLUM 16-17             ,6210,RENTS                         ,03/01/2017,4132701,5083,"3,800.00",TWENTY FOUR SEVEN                       ,364408,,CHARITIES & VOLUNTARY ORGANISA
SHEFFIELD CITY COUNCIL        ,CYPF                          ,39405,LEAVING CARE                  ,9270,CARELEAVERS ACCOMMODATION     ,03/01/2017,4132702,5084,"3,800.00",TWENTY FOUR SEVEN                       ,364408,,CHARITIES & VOLUNTARY ORGANISA
SHEFFIELD CITY COUNCIL        ,CYPF                          ,39405,LEAVING CARE                  ,9270,CARELEAVERS ACCOMMODATION     ,03/01/2017,4132703,TM203BQUANB              ,"2,295.04",GOLDSMITHS UNIVERSITY OF LONDON         ,449351,,UNIVERSITIES & MEDICAL SCHOOLS
SHEFFIELD CITY COUNCIL        ,CYPF                          ,39405,LEAVING CARE                  ,9270,CARELEAVERS ACCOMMODATION     ,03/01/2017,4132704,X1CHAPELSRB1             ,"2,112.00",X1 LETTINGS                             ,638093,,LETTING AGENTS                
SHEFFIELD CITY COUNCIL        ,CYPF                          ,39285,CONTACT CONTRACTS             ,9280,CONTACT                       ,03/01/2017,4132705,1812,334.77,SHEFFIELD CHILDREN'S CENTRE             ,311908,,NURSERIES & CRECHES           
SHEFFIELD CITY COUNCIL        ,CYPF                          ,39285,CONTACT CONTRACTS             ,9280,CONTACT                       ,03/01/2017,4132709,1817,334.77,SHEFFIELD CHILDREN'S CENTRE             ,311908,,NURSERIES & CRECHES           
SHEFFIELD CITY COUNCIL        ,CYPF                          ,39285,CONTACT CONTRACTS             ,9280,CONTACT                       ,03/01/2017,4132715,1823,334.77,SHEFFIELD CHILDREN'S CENTRE             ,311908,,NURSERIES & CRECHES           
SHEFFIELD CITY COUNCIL        ,CYPF                          ,39084,NORTH SA - CIN S17            ,9280,CONTACT                       ,03/01/2017,4132717,1825,351.60,SHEFFIELD CHILDREN'S CENTRE             ,311908,,NURSERIES & CRECHES           
SHEFFIELD CITY COUNCIL        ,CYPF                          ,39084,NORTH SA - CIN S17            ,9280,CONTACT                       ,03/01/2017,4132722,1831,351.60,SHEFFIELD CHILDREN'S CENTRE             ,311908,,NURSERIES & CRECHES           
SHEFFIELD CITY COUNCIL        ,CYPF                          ,39147,PREVENTION & SUPPORT - CDT    ,9270,PAYMENTS TO RELATIVES/FRIENDS ,03/01/2017,4132724,368,"25,000.00",REDACTED PERSONAL DATA,584042,Unclassified Non Trade,OUT OF SCOPE FOR SIC MONITORIN
SHEFFIELD CITY COUNCIL        ,CYPF                          ,39239,WEST SA - LAC                 ,9440,LOOKED AFTER CHILDREN         ,03/01/2017,4132726,QC110                    ,600.00,QUAYSIDE CHILDCARE LTD                  ,317889,,SOCIAL SERVICES               
SHEFFIELD CITY COUNCIL        ,CYPF                          ,39238,WEST SA - CIN S17             ,9270,PAYMENTS TO RELATIVES/FRIENDS ,03/01/2017,4132729,WEST/1066                ,637.32,REDACTED PERSONAL DATA,637594,Social Community Care,CAREFIRST DIRECT PAYMENTS     
SHEFFIELD CITY COUNCIL        ,CYPF                          ,39238,WEST SA - CIN S17             ,9270,PAYMENTS TO RELATIVES/FRIENDS ,03/01/2017,4132730,WEST/1067                ,499.99,REDACTED PERSONAL DATA,637594,Social Community Care,CAREFIRST DIRECT PAYMENTS     
SHEFFIELD CITY COUNCIL        ,COMMUNITIES                   ,49661, LUNCH CLUB GRANT             ,8180,GRANTS                        ,03/01/2017,4132878,MPA20170103254 1         ,667.00,BANNER CROSS LUNCHEON & FRIENDSHIP CLUB ,326250,,PLACES OF WORSHIP             
SHEFFIELD CITY COUNCIL        ,COMMUNITIES                   ,49661, LUNCH CLUB GRANT             ,8180,GRANTS                        ,03/01/2017,4132879,MPA20170103254 10        ,792.00,ST WILLIAMS LUNCH CLUB                  ,295226,,CHARITIES & VOLUNTARY ORGANISA
SHEFFIELD CITY COUNCIL        ,COMMUNITIES                   ,49661, LUNCH CLUB GRANT             ,8180,GRANTS                        ,03/01/2017,4132882,MPA20170103254 13        ,"1,079.00",DARNALL LUNCH CLUB                      ,295216,,CHARITIES & VOLUNTARY ORGANISA
SHEFFIELD CITY COUNCIL        ,COMMUNITIES                   ,49661, LUNCH CLUB GRANT             ,8180,GRANTS                        ,03/01/2017,4132883,MPA20170103254 14        ,265.00,DORE OPEN DOOR LUNCH CLUB               ,295220,,CHARITIES & VOLUNTARY ORGANISA
SHEFFIELD CITY COUNCIL        ,COMMUNITIES                   ,49661, LUNCH CLUB GRANT             ,8180,GRANTS                        ,03/01/2017,4132884,MPA20170103254 15        ,739.00,THE LIMES LUNCHEON CLUB                 ,295165,,CHARITIES & VOLUNTARY ORGANISA
SHEFFIELD CITY COUNCIL        ,COMMUNITIES                   ,49661, LUNCH CLUB GRANT             ,8180,GRANTS                        ,03/01/2017,4132885,MPA20170103254 16        ,581.00,DUKE STREET COMMUNITY CENTRE            ,375030,,COMMUNITY CENTRES             
SHEFFIELD CITY COUNCIL        ,COMMUNITIES                   ,49661, LUNCH CLUB GRANT             ,8180,GRANTS                        ,03/01/2017,4132887,MPA20170103254 18        ,"2,094.00",BIRLEY SPA LUNCH CLUB                   ,295206,,CHARITIES & VOLUNTARY ORGANISA
SHEFFIELD CITY COUNCIL        ,COMMUNITIES                   ,49661, LUNCH CLUB GRANT             ,8180,GRANTS                        ,03/01/2017,4132889,MPA20170103254 2         ,524.00,CHRIST CHURCH PITSMOOR LUNCH CLUB       ,321910,,CHARITIES & VOLUNTARY ORGANISA
SHEFFIELD CITY COUNCIL        ,COMMUNITIES                   ,49661, LUNCH CLUB GRANT             ,8180,GRANTS                        ,03/01/2017,4132890,MPA20170103254 20        ,405.00,MICHAEL CHURCH LOWEDGES THURS LUNCH CLUB,295189,,CHARITIES & VOLUNTARY ORGANISA
SHEFFIELD CITY COUNCIL        ,COMMUNITIES                   ,49661, LUNCH CLUB GRANT             ,8180,GRANTS                        ,03/01/2017,4132891,MPA20170103254 21        ,725.00,ST JOHN'S ABBEYDALE LUNCH CLUB          ,385324,,CHARITIES & VOLUNTARY ORGANISA
SHEFFIELD CITY COUNCIL        ,COMMUNITIES                   ,49661, LUNCH CLUB GRANT             ,8180,GRANTS                        ,03/01/2017,4132892,MPA20170103254 22        ,513.00,GRAPEVINE CENTRE LUNCHEON CLUB          ,295190,,CHARITIES & VOLUNTARY ORGANISA
SHEFFIELD CITY COUNCIL        ,COMMUNITIES                   ,49661, LUNCH CLUB GRANT             ,8180,GRANTS                        ,03/01/2017,4132893,MPA20170103254 23        ,763.00,PITSMOOR LUNCH CLUB                     ,295194,,CHARITIES & VOLUNTARY ORGANISA
SHEFFIELD CITY COUNCIL        ,COMMUNITIES                   ,49661, LUNCH CLUB GRANT             ,8180,GRANTS                        ,03/01/2017,4132894,MPA20170103254 24        ,"1,161.00",THE SALVATION ARMY SHEFFIELD CASTLE     ,327783,,"HOUSING ASSOCIATIONS, SOCIETIE"
SHEFFIELD CITY COUNCIL        ,COMMUNITIES                   ,49661, LUNCH CLUB GRANT             ,8180,GRANTS                        ,03/01/2017,4132896,MPA20170103254 26        ,516.00,WADSLEY CHURCH LUNCH CLUB               ,295167,,CHARITIES & VOLUNTARY ORGANISA
SHEFFIELD CITY COUNCIL        ,COMMUNITIES                   ,49661, LUNCH CLUB GRANT             ,8180,GRANTS                        ,03/01/2017,4132897,MPA20170103254 27        ,"1,236.00",SHIREGREEN UNITED REFORMED CHURCH       ,295203,,PLACES OF WORSHIP             
SHEFFIELD CITY COUNCIL        ,COMMUNITIES                   ,49661, LUNCH CLUB GRANT             ,8180,GRANTS                        ,03/01/2017,4132898,MPA20170103254 28        ,722.00,ST TIMOTHY'S LUNCH CLUB                 ,295163,,CHARITIES & VOLUNTARY ORGANISA
SHEFFIELD CITY COUNCIL        ,COMMUNITIES                   ,49661, LUNCH CLUB GRANT             ,8180,GRANTS                        ,03/01/2017,4132899,MPA20170103254 29        ,946.00,MEERSBROOK PARK LUNCH CLUB              ,363027,,CHARITIES & VOLUNTARY ORGANISA
SHEFFIELD CITY COUNCIL        ,COMMUNITIES                   ,49661, LUNCH CLUB GRANT             ,8180,GRANTS                        ,03/01/2017,4132900,MPA20170103254 3         ,886.00,CROSSPOOL LUNCH CLUB                    ,321911,,CHARITIES & VOLUNTARY ORGANISA
SHEFFIELD CITY COUNCIL        ,COMMUNITIES                   ,49661, LUNCH CLUB GRANT             ,8180,GRANTS                        ,03/01/2017,4132901,MPA20170103254 30        ,"1,111.00",FRIDAY FOLK LUNCH CLUB                  ,384447,,CHARITIES & VOLUNTARY ORGANISA
SHEFFIELD CITY COUNCIL        ,COMMUNITIES                   ,49661, LUNCH CLUB GRANT             ,8180,GRANTS                        ,03/01/2017,4132902,MPA20170103254 31        ,856.00,ST LEONARD'S LUNCH CLUB                 ,296991,,CHARITIES & VOLUNTARY ORGANISA
SHEFFIELD CITY COUNCIL        ,COMMUNITIES                   ,49661, LUNCH CLUB GRANT             ,8180,GRANTS                        ,03/01/2017,4132903,MPA20170103254 32        ,"1,030.00",ST MARY'S LUNCH CLUB                    ,322012,,CHARITIES & VOLUNTARY ORGANISA
SHEFFIELD CITY COUNCIL        ,COMMUNITIES                   ,49661, LUNCH CLUB GRANT             ,8180,GRANTS                        ,03/01/2017,4132904,MPA20170103254 33        ,955.00,ST MARYS HANDSWORTH LUNCH CLUB          ,300780,,CHARITIES & VOLUNTARY ORGANISA
SHEFFIELD CITY COUNCIL        ,COMMUNITIES                   ,49661, LUNCH CLUB GRANT             ,8180,GRANTS                        ,03/01/2017,4132905,MPA20170103254 34        ,831.00,WILLIAM TEMPLE LUNCH CLUB               ,299806,,CHARITIES & VOLUNTARY ORGANISA
SHEFFIELD CITY COUNCIL        ,COMMUNITIES                   ,49661, LUNCH CLUB GRANT             ,8180,GRANTS                        ,03/01/2017,4132906,MPA20170103254 35        ,"2,458.00",SHEFFIELD LIVE AT HOME (NORTH)          ,327125,,CHARITIES & VOLUNTARY ORGANISA
SHEFFIELD CITY COUNCIL        ,COMMUNITIES                   ,49661, LUNCH CLUB GRANT             ,8180,GRANTS                        ,03/01/2017,4132907,MPA20170103254 36        ,358.00,ST MARKS LUNCH & FRIENDSHIP CLUB        ,301346,,PLACES OF WORSHIP             
SHEFFIELD CITY COUNCIL        ,COMMUNITIES                   ,49661, LUNCH CLUB GRANT             ,8180,GRANTS                        ,03/01/2017,4132909,MPA20170103254 38        ,273.00,LOWEDGES LUNCH CLUB                     ,353522,,CHARITIES & VOLUNTARY ORGANISA
SHEFFIELD CITY COUNCIL        ,COMMUNITIES                   ,49661, LUNCH CLUB GRANT             ,8180,GRANTS                        ,03/01/2017,4132910,MPA20170103254 39        ,577.00,WESLEY HALL LUNCH CLUB                  ,511866,,CHARITIES & VOLUNTARY ORGANISA
SHEFFIELD CITY COUNCIL        ,COMMUNITIES                   ,49661, LUNCH CLUB GRANT             ,8180,GRANTS                        ,03/01/2017,4132912,MPA20170103254 41        ,386.00,VALLEY LUNCH CLUB                       ,514281,,CHARITIES & VOLUNTARY ORGANISA
SHEFFIELD CITY COUNCIL        ,COMMUNITIES                   ,49661, LUNCH CLUB GRANT             ,8180,GRANTS                        ,03/01/2017,4132913,MPA20170103254 42        ,906.00,THE THURSDAY CLUB                       ,451641,,CHARITIES & VOLUNTARY ORGANISA
SHEFFIELD CITY COUNCIL        ,COMMUNITIES                   ,49661, LUNCH CLUB GRANT             ,8180,GRANTS                        ,03/01/2017,4132914,MPA20170103254 43        ,308.00,CHURCH ON THE CORNER                    ,362765,,PLACES OF WORSHIP             
SHEFFIELD CITY COUNCIL        ,COMMUNITIES                   ,49661, LUNCH CLUB GRANT             ,8180,GRANTS                        ,03/01/2017,4132915,MPA20170103254 44        ,530.00,MANOR LODGE LUNCHEON CLUB               ,545135,,CHARITIES & VOLUNTARY ORGANISA
SHEFFIELD CITY COUNCIL        ,COMMUNITIES                   ,49661, LUNCH CLUB GRANT             ,8180,GRANTS                        ,03/01/2017,4132917,MPA20170103254 46        ,288.00,PARSON CROSS COMMUNITY DEVELOPMENT FORUM,385089,,CHARITIES & VOLUNTARY ORGANISA
SHEFFIELD CITY COUNCIL        ,COMMUNITIES                   ,49661, LUNCH CLUB GRANT             ,8180,GRANTS                        ,03/01/2017,4132918,MPA20170103254 47        ,563.00,ARBOURTHORNE COMMUNITY CHURCH           ,619717,,PLACES OF WORSHIP             
SHEFFIELD CITY COUNCIL        ,COMMUNITIES                   ,49661, LUNCH CLUB GRANT             ,8180,GRANTS                        ,03/01/2017,4132919,MPA20170103254 48        ,500.00,YORK HOUSE LUNCHEON CLUB                ,627968,,"CLUBS & ASSOCIATIONS - SOCIAL,"
SHEFFIELD CITY COUNCIL        ,COMMUNITIES                   ,49661, LUNCH CLUB GRANT             ,8180,GRANTS                        ,03/01/2017,4132920,MPA20170103254 5         ,536.00,HALLAM METHODIST LUNCH CLUB             ,321917,,CHARITIES & VOLUNTARY ORGANISA
SHEFFIELD CITY COUNCIL        ,COMMUNITIES                   ,49661, LUNCH CLUB GRANT             ,8180,GRANTS                        ,03/01/2017,4132921,MPA20170103254 6         ,515.00,HANDY HANDS GROUP                       ,384446,,CHARITIES & VOLUNTARY ORGANISA
SHEFFIELD CITY COUNCIL        ,COMMUNITIES                   ,49661, LUNCH CLUB GRANT             ,8180,GRANTS                        ,03/01/2017,4132923,MPA20170103254 8         ,326.00,TOTLEY RISE LUNCHEON CLUB               ,321909,,CHARITIES & VOLUNTARY ORGANISA
SHEFFIELD CITY COUNCIL        ,COMMUNITIES                   ,49661, LUNCH CLUB GRANT             ,8180,GRANTS                        ,03/01/2017,4132924,MPA20170103254 9         ,910.00,WOODSEATS METHODIST LUNCH CLUB          ,325667,,CHARITIES & VOLUNTARY ORGANISA
SHEFFIELD CITY COUNCIL        ,COMMUNITIES                   ,49661, LUNCH CLUB GRANT             ,8180,GRANTS                        ,03/01/2017,4132930,MPA20170103254 40        ,868.00,MOSBOROUGH LUNCH & SOCIAL CLUB          ,510333,,"CLUBS & ASSOCIATIONS - SOCIAL,"
SHEFFIELD CITY COUNCIL        ,COMMUNITIES                   ,46039,ADULT SOCIAL CARE PURCHASING  ,4260,RESIDENTIAL COSTS RECOVERED   ,03/01/2017,4132697,J1729628 010117          ,595.75,LOXLEY HEALTHCARE LTD                   ,362146,,NURSING HOMES                 
SHEFFIELD CITY COUNCIL        ,COMMUNITIES                   ,46039,ADULT SOCIAL CARE PURCHASING  ,9210,CONTINUING NURSING CARE       ,03/01/2017,4132697,J1729628 010117          ,"11,239.71",LOXLEY HEALTHCARE LTD                   ,362146,,NURSING HOMES                 
SHEFFIELD CITY COUNCIL        ,PLACE                         ,97334,DISABLED GRANTS               ,1165,NC&A OTHER                    ,04/01/2017,4133237,ERS INVOICE148502        ,"30,000.00",WESTWOOD JOINERY & CONSTRUCTION LTD     ,558811,,CONSTRUCTION CONTRACTORS - GEN
SHEFFIELD CITY COUNCIL        ,CYPF                          ,39301,FOSTERING DEVELOPMENT         ,8490,OTHER PROFESSIONAL FEES       ,04/01/2017,4133238,ERS INVOICE148503        ,598.00,REDACTED PERSONAL DATA,582019,,ADOPTION & FOSTERING          
SHEFFIELD CITY COUNCIL        ,CYPF                          ,39491,SSCB                          ,8490,OTHER PROFESSIONAL FEES       ,04/01/2017,4133239,ERS INVOICE148504        ,"1,111.40",JANE HAYWOOD                            ,633258,,CONFERENCE SERVICES           
SHEFFIELD CITY COUNCIL        ,COMMUNITIES                   ,47022,SAFEGUARDING ADULTS           ,8440,FEE EXPENSES                  ,04/01/2017,4133245,ERS INVOICE148510        ,702.65,JANE HAYWOOD                            ,633258,,CONFERENCE SERVICES           
SHEFFIELD CITY COUNCIL        ,CYPF                          ,32076,TARGETED SUPP SERVICE - DE DEL,9120,OTHER AGENCIES                ,04/01/2017,4133248,ERS INVOICE148516        ,330.00,RICHARD O'NEILL                         ,624447,,PROFESSIONAL SPEAKERS         
SHEFFIELD CITY COUNCIL        ,PLACE                         ,23036,CORONIAL SERVICES             ,8440,PATHOLOGIST INVOICE           ,04/01/2017,4133322,ERS INVOICE148520        ,595.90,DR C A WILSON                           ,554965,,DOCTORS                       
SHEFFIELD CITY COUNCIL        ,COMMUNITIES                   ,49030,PRIVATE RENTED SOLUTIONS      ,9120,OTHER AGENCIES                ,04/01/2017,4133323,ERS INVOICE148522        ,275.25,MCNAUGHTON PROPERTY LTD                 ,586269,Unclassified Non Trade,OUT OF SCOPE FOR SIC MONITORIN
SHEFFIELD CITY COUNCIL        ,PLACE                         ,24403,PROPERTY SERVICES             ,8270,SUBSCRIPTIONS                 ,04/01/2017,4133324,ERS INVOICE148523        ,"1,512.00",RICS                                    ,318025,,INSTITUTES - PROFESSIONAL     
SHEFFIELD CITY COUNCIL        ,RESOURCES                     ,15186,FULWOOD & WHIRLOW             ,8440,FEE EXPENSES                  ,04/01/2017,4133325,ERS INVOICE148532        ,621.00,BARBER HARRISON & PLATT                 ,437963,,ACCOUNTANTS                   
SHEFFIELD CITY COUNCIL        ,RESOURCES                     ,12008,REVS & BENS                   ,5750,TRAINING EXPENDITURE          ,04/01/2017,4098343,"T002,049                 ",460.00,ZEBRA TRAINING SERVICES LTD             ,419437,,EDUCATIONAL TRAINING PROVIDERS
SHEFFIELD CITY COUNCIL        ,COMMUNITIES                   ,49691,CONTRACT PAYMENTS - ALCOHOL   ,9030,HEALTH                        ,04/01/2017,4103421,2100104092,"62,223.17",SHEFFIELD HEALTH & SOCIAL CARE NHS FT   ,585469,,HOSPITALS                     
SHEFFIELD CITY COUNCIL        ,RESOURCES                     ,15133,STANIFORTH ROAD WORKSHOPS     ,6030,REPAIRS AND MTCE - RESPONSIVE ,04/01/2017,4111579,AB020161250              ,610.00,A B GRAPHICS  LTD                       ,616806,,SIGN WRITERS                  
SHEFFIELD CITY COUNCIL        ,RESOURCES                     ,12017,FSSG                          ,8620,COMPUTER SOFTWARE LICENCES    ,04/01/2017,4112554,QT00344                  ,"19,500.00",QTIER SOFTWARE LTD                      ,473198,,COMPUTER SYSTEMS & SOFTWARE (D
SHEFFIELD CITY COUNCIL        ,COMMUNITIES                   ,48067,INDEP LIVING SOLUTION-CONTRACT,8010,EQUIPMENT PURCHASE AND REPAIR ,04/01/2017,4113719,650093441,"402,161.53",BRITISH RED CROSS SOCIETY               ,380874,,CHARITIES & VOLUNTARY ORGANISA
SHEFFIELD CITY COUNCIL        ,COMMUNITIES                   ,49691,CONTRACT PAYMENTS - ALCOHOL   ,9030,HEALTH                        ,04/01/2017,4115263,2100104582,"62,223.17",SHEFFIELD HEALTH & SOCIAL CARE NHS FT   ,585469,,HOSPITALS                     
SHEFFIELD CITY COUNCIL        ,CYPF                          ,39192,PROVIDER MAN/INC FINANCE CHARG,8440,FEE EXPENSES                  ,04/01/2017,4119867,3199,"2,750.00",REDACTED PERSONAL DATA,548703,,CHILDCARE SERVICES            
SHEFFIELD CITY COUNCIL        ,COMMUNITIES                   ,49682,NON CONTRACT TREATMENT COSTS  ,8060,MATERIALS AND SUPPLIES GENERAL,04/01/2017,4121074,107342,"2,203.30",EXCHANGE SUPPLIES LTD                   ,420328,,OCCUPATIONAL HEALTH           
SHEFFIELD CITY COUNCIL        ,COMMUNITIES                   ,49682,NON CONTRACT TREATMENT COSTS  ,8060,MATERIALS AND SUPPLIES GENERAL,04/01/2017,4121077,107326,313.60,EXCHANGE SUPPLIES LTD                   ,420328,,OCCUPATIONAL HEALTH           
SHEFFIELD CITY COUNCIL        ,COMMUNITIES                   ,49682,NON CONTRACT TREATMENT COSTS  ,8060,MATERIALS AND SUPPLIES GENERAL,04/01/2017,4121083,107324,486.30,EXCHANGE SUPPLIES LTD                   ,420328,,OCCUPATIONAL HEALTH           
SHEFFIELD CITY COUNCIL        ,COMMUNITIES                   ,49682,NON CONTRACT TREATMENT COSTS  ,8060,MATERIALS AND SUPPLIES GENERAL,04/01/2017,4121189,107447,610.35,EXCHANGE SUPPLIES LTD                   ,420328,,OCCUPATIONAL HEALTH           
SHEFFIELD CITY COUNCIL        ,COMMUNITIES                   ,49682,NON CONTRACT TREATMENT COSTS  ,8060,MATERIALS AND SUPPLIES GENERAL,04/01/2017,4121190,107446,358.10,EXCHANGE SUPPLIES LTD                   ,420328,,OCCUPATIONAL HEALTH           
SHEFFIELD CITY COUNCIL        ,COMMUNITIES                   ,49682,NON CONTRACT TREATMENT COSTS  ,8060,MATERIALS AND SUPPLIES GENERAL,04/01/2017,4123540,107577,737.70,EXCHANGE SUPPLIES LTD                   ,420328,,OCCUPATIONAL HEALTH           
SHEFFIELD CITY COUNCIL        ,COMMUNITIES                   ,49672,CONTRACT PAYMENTS � DRUGS     ,9030,HEALTH                        ,04/01/2017,4124569,FNQG/00000090            ,"1,703.20",LLOYDSPHARMACY (330)                    ,583357,,CHEMISTS - DISPENSING         
SHEFFIELD CITY COUNCIL        ,PLACE                         ,25214,SMOKEFREE CYP                 ,9030,HEALTH                        ,04/01/2017,4125055,3542,"5,000.00",ZEST                                    ,507419,,SOCIAL SERVICES               
SHEFFIELD CITY COUNCIL        ,COMMUNITIES                   ,49785,COMMUNITY WELLBEING PROG (PKW),9040,VOLUNTARY BODIES              ,04/01/2017,4125071,3540,"4,816.67",NUCA TRADING AS ZEST                    ,581300,,CHARITIES & VOLUNTARY ORGANISA
SHEFFIELD CITY COUNCIL        ,COMMUNITIES                   ,49785,COMMUNITY WELLBEING PROG (PKW),9040,VOLUNTARY BODIES              ,04/01/2017,4125096,291,"6,608.00",MANOR & CASTLE - HEALTHY LIVING/PHS     ,376896,,DEVELOPMENT AGENCIES          
SHEFFIELD CITY COUNCIL        ,COMMUNITIES                   ,49785,COMMUNITY WELLBEING PROG (PKW),9040,VOLUNTARY BODIES              ,04/01/2017,4125097,292,"4,383.00",MANOR & CASTLE - HEALTHY LIVING/PHS     ,376896,,DEVELOPMENT AGENCIES          
SHEFFIELD CITY COUNCIL        ,PLACE                         ,21023,INCLUSIVE SPORT PROJECT       ,6280,HIRE OF PREMISES              ,04/01/2017,4125196,3044816,650.00,7 HILLS LEISURE TRUST                   ,566500,,SPORTS GROUND & STADIUM CONTRA
SHEFFIELD CITY COUNCIL        ,PLACE                         ,21023,INCLUSIVE SPORT PROJECT       ,6280,HIRE OF PREMISES              ,04/01/2017,4125200,3044596,366.00,7 HILLS LEISURE TRUST                   ,566500,,SPORTS GROUND & STADIUM CONTRA
SHEFFIELD CITY COUNCIL        ,COMMUNITIES                   ,49682,NON CONTRACT TREATMENT COSTS  ,8060,MATERIALS AND SUPPLIES GENERAL,04/01/2017,4125364,107750,582.30,EXCHANGE SUPPLIES LTD                   ,420328,,OCCUPATIONAL HEALTH           
SHEFFIELD CITY COUNCIL        ,RESOURCES                     ,15133,STANIFORTH ROAD WORKSHOPS     ,8440,FEE EXPENSES                  ,04/01/2017,4125800,529,338.00,KES AIR TECHNOLOGY LIMITED              ,452863,,GARAGE EQUIPMENT              
SHEFFIELD CITY COUNCIL        ,PLACE                         ,21017,WALK TO SCHOOL PROJECT        ,8060,MATERIALS AND SUPPLIES GENERAL,04/01/2017,4126141,928501942,454.74,ARCO LTD                                ,203022,,SAFETY EQUIPMENT & CLOTHING   
SHEFFIELD CITY COUNCIL        ,PLACE                         ,21351,GROUNDS MAINTENANCE           ,8550,OTHER SERVICES                ,04/01/2017,4126150,8521093634,325.85,VEOLIA ENVIRONMENTAL SERVICES           ,464059,,WASTE DISPOSAL SERVICES       
SHEFFIELD CITY COUNCIL        ,PLACE                         ,21305,XMAS ILLUMINATIONS            ,6370,GROUNDS MTCE AND ARBORICULTURE,04/01/2017,4129073,EF01048                  ,340.00,ELVEDEN FARMS LTD                       ,409642,,CHRISTMAS GOODS               
SHEFFIELD CITY COUNCIL        ,PLACE                         ,21197,OFF THE SHELF                 ,8440,FEE EXPENSES                  ,04/01/2017,4129120,2490/UNN                 ,"4,965.33",UNIVERSITY OF SHEFFIELD STUDENTS UNION  ,328421,,UNIVERSITIES & MEDICAL SCHOOLS
SHEFFIELD CITY COUNCIL        ,COMMUNITIES                   ,49682,NON CONTRACT TREATMENT COSTS  ,8060,MATERIALS AND SUPPLIES GENERAL,04/01/2017,4129324,107948,526.25,EXCHANGE SUPPLIES LTD                   ,420328,,OCCUPATIONAL HEALTH           
SHEFFIELD CITY COUNCIL        ,PLACE                         ,22256,SHEFFIELD UDV FLOOD SCHEME    ,8440,FEE EXPENSES                  ,04/01/2017,4129907,421106,"33,790.04",OVE ARUP & PARTNERS LTD                 ,321129,,ENGINEERS - CONSULTING        
SHEFFIELD CITY COUNCIL        ,PLACE                         ,22255,SHEAF CATCHMENT FLOOD SCHEME  ,8440,FEE EXPENSES                  ,04/01/2017,4129907,421106,"33,790.05",OVE ARUP & PARTNERS LTD                 ,321129,,ENGINEERS - CONSULTING        
SHEFFIELD CITY COUNCIL        ,PLACE                         ,21307,WINTER GARDEN                 ,6370,GROUNDS MTCE AND ARBORICULTURE,04/01/2017,4130792,144982,960.81,KOBERG BV                               ,528227,,NURSERIES - WHOLESALE         
SHEFFIELD CITY COUNCIL        ,COMMUNITIES                   ,49608,LOCALITY TEAM CENTRAL COSTS   ,9120,OTHER AGENCIES                ,04/01/2017,4130805,DWB/12/16/43             ,"25,000.00",DARNALL WELLBEING LTD                   ,528439,,CLINICS - N.H.S.              
SHEFFIELD CITY COUNCIL        ,CYPF                          ,39301,FOSTERING DEVELOPMENT         ,9120,OTHER AGENCIES                ,04/01/2017,4130820,28-Jul-16,676.00,MANOR COMMUNITY CHILDCARE CENTRE        ,311892,,CHILDCARE SERVICES            
SHEFFIELD CITY COUNCIL        ,CYPF                          ,39032,ADOPTION SERVICE              ,9120,OTHER AGENCIES                ,04/01/2017,4130821,4966,750.00,FAMILIES FOR CHILDREN                   ,343039,,ADOPTION & FOSTERING          
SHEFFIELD CITY COUNCIL        ,CYPF                          ,39032,ADOPTION SERVICE              ,9120,OTHER AGENCIES                ,04/01/2017,4130822,128129,"2,400.00",REDACTED PERSONAL DATA,328618,,ADOPTION & FOSTERING          
SHEFFIELD CITY COUNCIL        ,CYPF                          ,39032,ADOPTION SERVICE              ,8350,MISCELLANEOUS EXPENSES        ,04/01/2017,4130825,410000707,"1,740.00",NORTH YORKSHIRE COUNTY COUNCIL          ,331918,,LOCAL GOVERNMENT              
SHEFFIELD CITY COUNCIL        ,PLACE                         ,21350,CEMETERIES                    ,8010,EQUIPMENT PURCHASE AND REPAIR ,04/01/2017,4131153,1408,740.00,FIDLER BROTHERS                         ,204855,,MONUMENTAL MASONS             
SHEFFIELD CITY COUNCIL        ,CYPF                          ,39032,ADOPTION SERVICE              ,8350,MISCELLANEOUS EXPENSES        ,04/01/2017,4131414,298/16                   ,"9,500.00",CHRYSALIS ASSOCIATES LTD                ,520856,,PSYCHOLOGISTS                 
SHEFFIELD CITY COUNCIL        ,CYPF                          ,39301,FOSTERING DEVELOPMENT         ,8420,ADVERTISING AND PUBLICITY     ,04/01/2017,4131473,SINV00118926             ,365.00,EXTERION MEDIA (UK) LTD                 ,377941,,ADVERTISING - OUTDOOR         
SHEFFIELD CITY COUNCIL        ,CYPF                          ,39301,FOSTERING DEVELOPMENT         ,8420,ADVERTISING AND PUBLICITY     ,04/01/2017,4131476,SINV00118927             ,270.00,EXTERION MEDIA (UK) LTD                 ,377941,,ADVERTISING - OUTDOOR         
SHEFFIELD CITY COUNCIL        ,COMMUNITIES                   ,49315,SOUTH SHEFFIELD               ,6060,DECANTING/REMOVAL COSTS       ,04/01/2017,4131500,955153,379.06,PICKFORDS                               ,573763,,REMOVALS - OVERSEAS           
SHEFFIELD CITY COUNCIL        ,PLACE                         ,21352,CREMATORIA                    ,6020,REPAIRS AND MTCE - PROGRAMMED ,04/01/2017,4131532,INV-0577                 ,"2,584.00",IFZW MAINTENANCE LTD                    ,563612,,CEMETERIES & CREMATORIA       
SHEFFIELD CITY COUNCIL        ,PLACE                         ,21352,CREMATORIA                    ,6020,REPAIRS AND MTCE - PROGRAMMED ,04/01/2017,4131534,INV-0573                 ,"1,894.00",IFZW MAINTENANCE LTD                    ,563612,,CEMETERIES & CREMATORIA       
SHEFFIELD CITY COUNCIL        ,CYPF                          ,32190,C & F CITYWIDE CONTRACTS      ,9120,OTHER AGENCIES                ,04/01/2017,4131537,10056,"10,500.00",SHELTER                                 ,361160,,CHARITIES & VOLUNTARY ORGANISA
SHEFFIELD CITY COUNCIL        ,PLACE                         ,21310,SHEAF SQUARE/HOWARD ST        ,6080,CONTRACT CLEANING             ,04/01/2017,4131578,114692,384.01,STEEL LINE LTD                          ,208650,,STEEL FABRICATORS & ERECTORS  
SHEFFIELD CITY COUNCIL        ,PLACE                         ,93890,BRT NORTH: TINSLEY LINK (WP21 ,1192,DESIGN FEES                   ,04/01/2017,4131635,90573440,"2,630.90",AMEY OW LTD (SHEFFIELD)                 ,593700,,ENGINEERS - CONSULTING        
SHEFFIELD CITY COUNCIL        ,CYPF                          ,39357,SHORT BREAKS FUNDING FOR DISAB,9120,OTHER AGENCIES                ,04/01/2017,4131711,395,448.98,MASKK                                   ,386161,,CHARITIES & VOLUNTARY ORGANISA
SHEFFIELD CITY COUNCIL        ,CYPF                          ,39357,SHORT BREAKS FUNDING FOR DISAB,9120,OTHER AGENCIES                ,04/01/2017,4131712,396,448.98,MASKK                                   ,386161,,CHARITIES & VOLUNTARY ORGANISA
SHEFFIELD CITY COUNCIL        ,COMMUNITIES                   ,49682,NON CONTRACT TREATMENT COSTS  ,8060,MATERIALS AND SUPPLIES GENERAL,04/01/2017,4131713,107987,609.50,EXCHANGE SUPPLIES LTD                   ,420328,,OCCUPATIONAL HEALTH           
SHEFFIELD CITY COUNCIL        ,COMMUNITIES                   ,49682,NON CONTRACT TREATMENT COSTS  ,8060,MATERIALS AND SUPPLIES GENERAL,04/01/2017,4131716,107986,371.50,EXCHANGE SUPPLIES LTD                   ,420328,,OCCUPATIONAL HEALTH           
SHEFFIELD CITY COUNCIL        ,CYPF                          ,39301,FOSTERING DEVELOPMENT         ,8350,MISCELLANEOUS EXPENSES        ,04/01/2017,4131895,1491,280.00,ROUNDABOUT CRECHE SERVICE               ,462116,,NURSERIES & CRECHES           
SHEFFIELD CITY COUNCIL        ,RESOURCES                     ,15133,STANIFORTH ROAD WORKSHOPS     ,6130,HEATING OIL                   ,04/01/2017,4131896,7293921,466.60,CARLTON FUELS                           ,466741,,FUEL DEALERS                  
SHEFFIELD CITY COUNCIL        ,RESOURCES                     ,15133,STANIFORTH ROAD WORKSHOPS     ,6130,HEATING OIL                   ,04/01/2017,4131898,7293902,"1,633.10",CARLTON FUELS                           ,466741,,FUEL DEALERS                  
SHEFFIELD CITY COUNCIL        ,RESOURCES                     ,15230,ASSETS MANAGEMENT HQ          ,8240,CONFERENCE EXPENSES           ,04/01/2017,4131901,1617/1804                ,350.00,APSE                                    ,337036,,BUSINESS & TRADE ORGANISATIONS
SHEFFIELD CITY COUNCIL        ,COMMUNITIES                   ,46039,ADULT SOCIAL CARE PURCHASING  ,9190,BLOCK CONTRACT                ,04/01/2017,4131902,1849652,"1,678.95",INTERSERVE HEALTHCARE LTD               ,637260,,INSURANCE - HEALTH            
SHEFFIELD CITY COUNCIL        ,COMMUNITIES                   ,46039,ADULT SOCIAL CARE PURCHASING  ,9190,BLOCK CONTRACT                ,04/01/2017,4131907,1851061,"1,701.70",INTERSERVE HEALTHCARE LTD               ,637260,,INSURANCE - HEALTH            
SHEFFIELD CITY COUNCIL        ,COMMUNITIES                   ,46039,ADULT SOCIAL CARE PURCHASING  ,9190,BLOCK CONTRACT                ,04/01/2017,4131910,1847650,"1,666.35",INTERSERVE HEALTHCARE LTD               ,637260,,INSURANCE - HEALTH            
SHEFFIELD CITY COUNCIL        ,CYPF                          ,39513,CITY WIDE SEN                 ,9050,OTHER LOCAL AUTHORITIES       ,04/01/2017,4131914,GS00153                  ,"2,456.34",GREENACRE SCHOOL                        ,565968,,SCHOOLS - LOCAL AUTHORITY     
SHEFFIELD CITY COUNCIL        ,COMMUNITIES                   ,46039,ADULT SOCIAL CARE PURCHASING  ,9190,BLOCK CONTRACT                ,04/01/2017,4131916,1853110,"1,679.65",INTERSERVE HEALTHCARE LTD               ,637260,,INSURANCE - HEALTH            
SHEFFIELD CITY COUNCIL        ,CYPF                          ,39513,CITY WIDE SEN                 ,9050,OTHER LOCAL AUTHORITIES       ,04/01/2017,4131918,GS00154                  ,"2,456.34",GREENACRE SCHOOL                        ,565968,,SCHOOLS - LOCAL AUTHORITY     
SHEFFIELD CITY COUNCIL        ,CYPF                          ,39282,CARE PROCEEDINGS (LEGAL FEES) ,8470,LEGAL FEES                    ,09/01/2017,4132110,1008989,600.00,REDACTED PERSONAL DATA,504926,,BARRISTERS                    
SHEFFIELD CITY COUNCIL        ,COMMUNITIES                   ,46039,ADULT SOCIAL CARE PURCHASING  ,9190,BLOCK CONTRACT                ,04/01/2017,4131919,1853818,"1,643.25",INTERSERVE HEALTHCARE LTD               ,637260,,INSURANCE - HEALTH            
SHEFFIELD CITY COUNCIL        ,CYPF                          ,39032,ADOPTION SERVICE              ,9120,OTHER AGENCIES                ,04/01/2017,4132003,17191,329.00,DIAMOND BUSINESS INTERIORS LTD          ,580977,,OFFICE FURNITURE & EQUIPMENT  
SHEFFIELD CITY COUNCIL        ,COMMUNITIES                   ,49142,RESPONSIVE HM&E               ,6030,OTHER RESPONSIVE REPAIRS      ,04/01/2017,4132060,11534,500.00,INITIATEC LIMITED                       ,569906,,VIDEO FILMING EQUIPMENT & SERV
SHEFFIELD CITY COUNCIL        ,COMMUNITIES                   ,46039,ADULT SOCIAL CARE PURCHASING  ,9190,BLOCK CONTRACT                ,04/01/2017,4132068,1851741,"1,682.10",INTERSERVE HEALTHCARE LTD               ,637260,,INSURANCE - HEALTH            
SHEFFIELD CITY COUNCIL        ,COMMUNITIES                   ,46039,ADULT SOCIAL CARE PURCHASING  ,9190,BLOCK CONTRACT                ,04/01/2017,4132079,1852432,"1,755.60",INTERSERVE HEALTHCARE LTD               ,637260,,INSURANCE - HEALTH            
SHEFFIELD CITY COUNCIL        ,PLACE                         ,22257,THREE BROOKS ENV SCH - MANOR  ,8440,FEE EXPENSES                  ,04/01/2017,4132142,28288837,"20,324.11",AECOM LTD                               ,580256,,BUILDING SERVICES             
SHEFFIELD CITY COUNCIL        ,COMMUNITIES                   ,49682,NON CONTRACT TREATMENT COSTS  ,8060,MATERIALS AND SUPPLIES GENERAL,04/01/2017,4132200,108139,"2,273.70",EXCHANGE SUPPLIES LTD                   ,420328,,OCCUPATIONAL HEALTH           
SHEFFIELD CITY COUNCIL        ,COMMUNITIES                   ,49858,MATERIALS FUND                ,8080,LIBRARY MATERIALS             ,04/01/2017,4132206,960270,"3,997.27",ASKEWS LIBRARY SERVICES LTD             ,203090,,BOOKSELLERS                   
SHEFFIELD CITY COUNCIL        ,PLACE                         ,21304,TUDOR SQUARE                  ,6030,REPAIRS AND MTCE - RESPONSIVE ,04/01/2017,4132229,3172,977.00,KINLOCH PAVING                          ,475001,,PAVING & DRIVEWAY CONTRACTORS 
SHEFFIELD CITY COUNCIL        ,CYPF                          ,38221,C & YP 5-19                   ,9030,HEALTH                        ,04/01/2017,4132239,1017179644,629.00,NHS SUPPLY CHAIN                        ,587523,,HOSPITALS                     
SHEFFIELD CITY COUNCIL        ,CYPF                          ,38221,C & YP 5-19                   ,9030,HEALTH                        ,04/01/2017,4132240,1017179642,375.57,NHS SUPPLY CHAIN                        ,587523,,HOSPITALS                     
SHEFFIELD CITY COUNCIL        ,PLACE                         ,21352,CREMATORIA                    ,8090,PLAQUES                       ,04/01/2017,4132247,2162667,557.00,FALON NAMEPLATES LTD                    ,308868,,SIGNS & NAMEPLATES            
SHEFFIELD CITY COUNCIL        ,PLACE                         ,25222,23) SWYP ST SMOKING PROJECT   ,9030,HEALTH                        ,04/01/2017,4132258,7016201608,"11,333.00",NHS SHEFFIELD CCG                       ,504799,,CLINICS - N.H.S.              
SHEFFIELD CITY COUNCIL        ,CYPF                          ,39240,WEST SERVICES AREA CSS        ,5610,AGENCY STAFF                  ,04/01/2017,4132259,C201613598               ,"4,950.00",BALTIMORE CONSULTING GROUP              ,639120,,EMPLOYMENT & RECRUITMENT AGENC
SHEFFIELD CITY COUNCIL        ,CYPF                          ,39282,CARE PROCEEDINGS (LEGAL FEES) ,8470,LEGAL FEES                    ,04/01/2017,4132261,1022359,600.00,REDACTED PERSONAL DATA,544033,,BARRISTERS                    
SHEFFIELD CITY COUNCIL        ,COMMUNITIES                   ,49313,EAST SHEFFIELD                ,8010,ESTATES EQUIP PURCHASE & REPAI,04/01/2017,4132277,31824,637.50,BROADFIELD MOWERS LTD                   ,299941,,LAWNMOWERS & GARDEN MACHINERY 
SHEFFIELD CITY COUNCIL        ,PLACE                         ,25076,SHEFFIELD HOMES TREES         ,6370,GROUNDS MTCE AND ARBORICULTURE,04/01/2017,4132282,1998,277.00,DRONFIELD TREE SERVICES LTD             ,405525,,TREE WORK & FORESTRY SERVICES 
SHEFFIELD CITY COUNCIL        ,PLACE                         ,22141,OFF STREET CAR PARKS          ,8020,EQUIPMENT LEASE/ RENTAL/ HIRE ,04/01/2017,4132283,68175,300.00,CINDERELLA CLEANING CONTRACTORS LTD     ,381865,,CLEANING SERVICES - COMMERCIAL
SHEFFIELD CITY COUNCIL        ,PLACE                         ,21313,CCTV                          ,6020,REPAIRS AND MTCE - PROGRAMMED ,04/01/2017,4132368,I0107594                 ,369.50,TOTAL INTEGRATED SOLUTIONS LTD          ,208799,,SECURITY EQUIPMENT            
SHEFFIELD CITY COUNCIL        ,PLACE                         ,21302,PEACE GARDENS                 ,8060,MATERIALS AND SUPPLIES GENERAL,04/01/2017,4132378,SI-160421                ,576.83,TOTAL POOL CHEMICALS LTD                ,552673,,CHEMICALS - DISTRIBUTORS & WHO
SHEFFIELD CITY COUNCIL        ,COMMUNITIES                   ,49691,CONTRACT PAYMENTS - ALCOHOL   ,9030,HEALTH                        ,04/01/2017,4132385,2100105153,"62,223.17",SHEFFIELD HEALTH & SOCIAL CARE NHS FT   ,585469,,HOSPITALS                     
SHEFFIELD CITY COUNCIL        ,CYPF                          ,33065,PROVIDER CONTRACT AUG16-JUL17 ,9120,OTHER AGENCIES                ,04/01/2017,4132391,05-Dec-16,"1,363.00",FLOWER ESTATE FAMILY ACTION (GROUP A/C) ,418616,,CHARITIES & VOLUNTARY ORGANISA
SHEFFIELD CITY COUNCIL        ,RESOURCES                     ,15133,STANIFORTH ROAD WORKSHOPS     ,5750,TRAINING EXPENDITURE          ,04/01/2017,4132415,150-000741               ,350.00,D H MANSFIELD LTD                       ,578011,,CAR BREAKDOWN & RECOVERY SERVI
SHEFFIELD CITY COUNCIL        ,RESOURCES                     ,15230,ASSETS MANAGEMENT HQ          ,8270,SUBSCRIPTIONS                 ,04/01/2017,4132419,153033,"2,255.00",BRITISH INSTITUTE OF FACILITIES MANAGMNT,350505,,TRADE ASSOCIATIONS            
SHEFFIELD CITY COUNCIL        ,CYPF                          ,33065,PROVIDER CONTRACT AUG16-JUL17 ,9120,OTHER AGENCIES                ,04/01/2017,4132422,5540,"8,453.90",HEELEY DEVELOPMENT TRUST                ,472941,,CHARITIES & VOLUNTARY ORGANISA
SHEFFIELD CITY COUNCIL        ,RESOURCES                     ,15196,WASTE MANAGEMENT              ,6090,WASTE DISPOSAL                ,04/01/2017,4132441,CN19351395               ,278.24,OCS GROUP UK LTD TA CANNON HYGIENE LTD  ,203709,,HYGIENE & CLEANSING SERVICES  
SHEFFIELD CITY COUNCIL        ,CYPF                          ,32190,C & F CITYWIDE CONTRACTS      ,9120,OTHER AGENCIES                ,04/01/2017,4132444,20846,"3,500.00",FAMILY ACTION                           ,469656,,COUNSELLING & ADVICE SERVICES 
SHEFFIELD CITY COUNCIL        ,COMMUNITIES                   ,48067,INDEP LIVING SOLUTION-CONTRACT,8010,EQUIPMENT PURCHASE AND REPAIR ,04/01/2017,4132446,650094525,"432,747.90",BRITISH RED CROSS SOCIETY               ,380874,,CHARITIES & VOLUNTARY ORGANISA
SHEFFIELD CITY COUNCIL        ,COMMUNITIES                   ,49682,NON CONTRACT TREATMENT COSTS  ,8060,MATERIALS AND SUPPLIES GENERAL,04/01/2017,4132463,108196,901.95,EXCHANGE SUPPLIES LTD                   ,420328,,OCCUPATIONAL HEALTH           
SHEFFIELD CITY COUNCIL        ,RESOURCES                     ,15139,TRANSPORT FLEET MANAGEMENT    ,8070,STOCKS AND STORES             ,04/01/2017,4132491,7312684,"4,720.44",CARLTON FUELS                           ,466741,,FUEL DEALERS                  
SHEFFIELD CITY COUNCIL        ,CYPF                          ,38202,OUT OF CITY GUM               ,9030,HEALTH                        ,04/01/2017,4132494,82152234,"2,261.83",DONCASTER & BASSETLAW HOSPITALS  FOUNDAT,585509,,HOSPITALS                     
SHEFFIELD CITY COUNCIL        ,CYPF                          ,38202,OUT OF CITY GUM               ,9030,HEALTH                        ,04/01/2017,4132495,6290925937,670.00,LEEDS CITY COUNCIL                      ,483142,,LOCAL GOVERNMENT              
SHEFFIELD CITY COUNCIL        ,CYPF                          ,38202,OUT OF CITY GUM               ,9030,HEALTH                        ,04/01/2017,4132496,A0004789                 ,641.00,LOCALA COMMUNITY PARTNERSHIPS C.I.C.    ,632967,,CLINICS - N.H.S.              
SHEFFIELD CITY COUNCIL        ,COMMUNITIES                   ,49007,SYRIAN VPR TRAILBLAZER SCHEME ,6210,RENTS                         ,04/01/2017,4132500,01-Nov-16,"1,009.92",EGPROPERTY                              ,582371,,ACCOMMODATION AGENCIES - RESID
SHEFFIELD CITY COUNCIL        ,COMMUNITIES                   ,49010,GATEWAY PP 16-20              ,6210,RENTS                         ,04/01/2017,4132541,06-Dec-16,464.14,STEPHEN MOXAM                           ,521777,,LETTING AGENTS                
SHEFFIELD CITY COUNCIL        ,COMMUNITIES                   ,49010,GATEWAY PP 16-20              ,6210,RENTS                         ,04/01/2017,4132542,18-Nov-16,321.33,STEPHEN MOXAM                           ,521777,,LETTING AGENTS                
SHEFFIELD CITY COUNCIL        ,CYPF                          ,38202,OUT OF CITY GUM               ,9030,HEALTH                        ,04/01/2017,4132545,H0139343                 ,711.00,IMPERIAL COLLEGE HEALTH NHS TRUST       ,593270,,HOSPITALS                     
SHEFFIELD CITY COUNCIL        ,PLACE                         ,22256,SHEFFIELD UDV FLOOD SCHEME    ,8440,FEE EXPENSES                  ,04/01/2017,4132547,418293,"10,813.41",OVE ARUP & PARTNERS LTD                 ,321129,,ENGINEERS - CONSULTING        
SHEFFIELD CITY COUNCIL        ,PLACE                         ,22255,SHEAF CATCHMENT FLOOD SCHEME  ,8440,FEE EXPENSES                  ,04/01/2017,4132547,418293,"10,813.41",OVE ARUP & PARTNERS LTD                 ,321129,,ENGINEERS - CONSULTING        
SHEFFIELD CITY COUNCIL        ,COMMUNITIES                   ,49384,REPAIRS INSOURCING            ,8440,FEE EXPENSES                  ,04/01/2017,4132548,3460,"8,220.00",NEPRO LTD                               ,598847,,BUSINESS & MANAGEMENT CONSULTA
SHEFFIELD CITY COUNCIL        ,COMMUNITIES                   ,49190,CITY WIDE ALARM - GENERAL     ,6030,REPAIRS TO TENANTED PROPERTIES,04/01/2017,4132557,INV/50304926             ,262.20,TUNSTALL HEALTHCARE (UK) LTD            ,209178,,TELECOMMUNICATIONS EQUIPMENT &
SHEFFIELD CITY COUNCIL        ,PLACE                         ,21018,ACTIVITY SHEFFIELD            ,8020,EQUIPMENT LEASE/ RENTAL/ HIRE ,04/01/2017,4132560,AS-017-2016              ,250.00,EVOLUTION OUTDOORS LTD                  ,556160,,SPORTS COACHING & INSTRUCTION 
SHEFFIELD CITY COUNCIL        ,CYPF                          ,39031,INTER AGENCY FEES             ,9120,OTHER AGENCIES                ,04/01/2017,4132570,10996,"14,333.00",PARENTS & CHILDREN TOGETHER             ,586977,,ADOPTION & FOSTERING          
SHEFFIELD CITY COUNCIL        ,COMMUNITIES                   ,49682,NON CONTRACT TREATMENT COSTS  ,8060,MATERIALS AND SUPPLIES GENERAL,04/01/2017,4132576,29679,"2,887.50",HOME HEALTH UK LTD                      ,583481,,INSURANCE - HEALTH            
SHEFFIELD CITY COUNCIL        ,PLACE                         ,25076,SHEFFIELD HOMES TREES         ,6370,GROUNDS MTCE AND ARBORICULTURE,04/01/2017,4132590,2640,"1,600.00",SHEFFIELD TREE CARE                     ,462546,,TREE WORK & FORESTRY SERVICES 
SHEFFIELD CITY COUNCIL        ,RESOURCES                     ,15190,HARD FM                       ,6020,REPAIRS AND MTCE - PROGRAMMED ,04/01/2017,4132627,12106,687.00,H2O SERVICING LIMITED                   ,374161,,"SWIMMING POOL CONTRACTORS, REP"
SHEFFIELD CITY COUNCIL        ,COMMUNITIES                   ,49364,SUPPORTED HOUSING             ,8050,ELECTRICAL GOODS              ,04/01/2017,4132628,CMD2698735               ,"5,760.00",DOMESTIC APPLIANCE DISTRIBUTORS         ,527171,,ELECTRICAL GOODS - SALES      
SHEFFIELD CITY COUNCIL        ,COMMUNITIES                   ,49379,VACANTS                       ,8440,FEE EXPENSES                  ,04/01/2017,4132637,1375,380.00,VIEWPOINT RESEARCH COMMUNITY INTEREST CO,511698,,MARKET RESEARCH               
SHEFFIELD CITY COUNCIL        ,RESOURCES                     ,14012,COMMUNITY COVENANT            ,9120,OTHER AGENCIES                ,04/01/2017,4132671,2949,"1,000.00",SHEFFIELD CATHEDRAL CHAPTER             ,427279,,PLACES OF WORSHIP             
SHEFFIELD CITY COUNCIL        ,RESOURCES                     ,14012,COMMUNITY COVENANT            ,9120,OTHER AGENCIES                ,04/01/2017,4132688,2948,"7,913.94",SHEFFIELD CATHEDRAL CHAPTER             ,427279,,PLACES OF WORSHIP             
SHEFFIELD CITY COUNCIL        ,CYPF                          ,39566,SECURE PLACEMENTS             ,9270,SECURE PLACEMENTS - REMAND    ,04/01/2017,4132695,SII703094                ,"9,440.00",YOUTH JUSTICE BOARD FOR ENGLAND AND WALE,346047,,CENTRAL GOVERNMENT            
SHEFFIELD CITY COUNCIL        ,CYPF                          ,36039,SEN TAXIS                     ,7060,EXTERNAL VEHICLE HIRE         ,04/01/2017,4132835,22708,"18,330.05",NORTHERN TAXIS LIMITED                  ,301182,,TAXIS & PRIVATE HIRE          
SHEFFIELD CITY COUNCIL        ,COMMUNITIES                   ,49331,ESTATE & ENVIRONMENTAL TEAM   ,8440,FEE EXPENSES                  ,04/01/2017,4132840,3578,780.00,RECYCLING REVOLUTION                    ,489496,,RECYCLING SERVICES            
SHEFFIELD CITY COUNCIL        ,COMMUNITIES                   ,49316,CITY & WEST SHEFFIELD         ,8010,EQUIPMENT PURCHASE AND REPAIR ,04/01/2017,4132877,928852928/929009957      ,840.26,ARCO LTD                                ,203022,,SAFETY EQUIPMENT & CLOTHING   
SHEFFIELD CITY COUNCIL        ,PLACE                         ,25222,23) SWYP ST SMOKING PROJECT   ,9030,HEALTH                        ,04/01/2017,4132926,724487,"54,167.00",SOUTH WEST YORKSHIRE PARTNERSHIP NHS FOU,581752,,HOSPITALS                     
SHEFFIELD CITY COUNCIL        ,COMMUNITIES                   ,49310,NORTH SHEFFIELD               ,8010,ESTATES EQUIP PURCHASE & REPAI,04/01/2017,4132928,928995438,417.92,ARCO LTD                                ,203022,,SAFETY EQUIPMENT & CLOTHING   
SHEFFIELD CITY COUNCIL        ,COMMUNITIES                   ,49310,NORTH SHEFFIELD               ,8010,ESTATES EQUIP PURCHASE & REPAI,04/01/2017,4132934,SI-2108236               ,401.10,SPALDINGS LIMITED                       ,208564,,AGRICULTURAL MACHINERY - SALES
SHEFFIELD CITY COUNCIL        ,POLICY PERFORMANCE AND COMMS  ,17003,ELECTORAL REGISTRATION        ,8570,POSTAGE & DELIVERY            ,04/01/2017,4133133,85263,388.16,FACILITIES & CORPORATE SOLUTIONS LTD    ,204806,,DIRECT MAIL                   
SHEFFIELD CITY COUNCIL        ,POLICY PERFORMANCE AND COMMS  ,17003,ELECTORAL REGISTRATION        ,8570,POSTAGE & DELIVERY            ,04/01/2017,4133134,85257,"11,592.25",FACILITIES & CORPORATE SOLUTIONS LTD    ,204806,,DIRECT MAIL                   
SHEFFIELD CITY COUNCIL        ,CYPF                          ,39323,DRUG & SUBSTANCE              ,9120,OTHER AGENCIES                ,04/01/2017,4133143,22457,"33,916.67",CGL                                     ,582957,,DOCTORS                       
SHEFFIELD CITY COUNCIL        ,CYPF                          ,90762,TINSLEY PRIMARY               ,1161,NC&A MAIN CONTRACT            ,04/01/2017,4133162,W09172                   ,"62,687.50",WILDGOOSE CONSTRUCTION LTD              ,209524,,CONSTRUCTION CONTRACTORS - GEN
SHEFFIELD CITY COUNCIL        ,POLICY PERFORMANCE AND COMMS  ,19046,ELECTRIC WORKS BUSINESS CENTRE,8410,GENERAL OFFICE EXPENSES       ,04/01/2017,4133194,11851,"44,128.00",CREATIVE SPACE MANAGEMENT LTD           ,464280,,PROPERTY & ESTATE MANAGEMENT  
SHEFFIELD CITY COUNCIL        ,PLACE                         ,21301,CITY CENTRE MANAGEMENT & ADMIN,8010,EQUIPMENT PURCHASE AND REPAIR ,04/01/2017,4133200,2015-14022               ,"1,785.38",SPRINGBOARD RESEARCH LTD                ,369222,,RESEARCH ORGANISATIONS        
SHEFFIELD CITY COUNCIL        ,RESOURCES                     ,11059,NORSE CONTROL ACCOUNT         ,8440,FEE EXPENSES                  ,04/01/2017,4133231,BAR1000523               ,762.08,BARNSLEY NORSE LTD                      ,586622,,CLEANING SERVICES - COMMERCIAL
SHEFFIELD CITY COUNCIL        ,PLACE                         ,24062,MGMT OF SRQ PROPERTIES        ,6150,ELECTRICITY                   ,04/01/2017,4133140,411660216/0008           ,569.63,SOUTHERN ELECTRIC                       ,318926,,ELECTRICITY COMPANIES         
SHEFFIELD CITY COUNCIL        ,COMMUNITIES                   ,46039,ADULT SOCIAL CARE PURCHASING  ,9190,DIRECT PAYMENTS               ,04/01/2017,4133089,J1750717                 ,"4,393.73",REDACTED PERSONAL DATA,556296,,CHARITIES & VOLUNTARY ORGANISA
SHEFFIELD CITY COUNCIL        ,COMMUNITIES                   ,46039,ADULT SOCIAL CARE PURCHASING  ,9190,BLOCK CONTRACT                ,04/01/2017,4133091,J1743386 111216          ,"38,737.02",ARK HOME HEALTHCARE LTD                 ,588759,,RESIDENTIAL CARE HOMES        
SHEFFIELD CITY COUNCIL        ,COMMUNITIES                   ,46039,ADULT SOCIAL CARE PURCHASING  ,9190,FUNDED HOME SUPPORT           ,04/01/2017,4133092,J1743387 111216          ,"1,353.60",HOUSING AND CARE 21                     ,531533,,"HOUSING ASSOCIATIONS, SOCIETIE"
SHEFFIELD CITY COUNCIL        ,COMMUNITIES                   ,46039,ADULT SOCIAL CARE PURCHASING  ,9190,BLOCK CONTRACT                ,04/01/2017,4133092,J1743387 111216          ,"36,020.28",HOUSING AND CARE 21                     ,531533,,"HOUSING ASSOCIATIONS, SOCIETIE"
SHEFFIELD CITY COUNCIL        ,COMMUNITIES                   ,46039,ADULT SOCIAL CARE PURCHASING  ,9190,BLOCK CONTRACT                ,04/01/2017,4133093,J1743388 111216          ,"21,139.42",HOUSING AND CARE 21                     ,531533,,"HOUSING ASSOCIATIONS, SOCIETIE"
SHEFFIELD CITY COUNCIL        ,COMMUNITIES                   ,42034,PURCHASING LEARNING DISABILITI,9190,BLOCK CONTRACT                ,04/01/2017,4133094,J1743389 111216          ,644.00,SANCTUARY HOMECARE                      ,583116,,HOME CARE SERVICES            
SHEFFIELD CITY COUNCIL        ,COMMUNITIES                   ,44001,PURCHASING                    ,9190,BLOCK CONTRACT                ,04/01/2017,4133094,J1743389 111216          ,380.80,SANCTUARY HOMECARE                      ,583116,,HOME CARE SERVICES            
SHEFFIELD CITY COUNCIL        ,COMMUNITIES                   ,46039,ADULT SOCIAL CARE PURCHASING  ,9190,FUNDED HOME SUPPORT           ,04/01/2017,4133094,J1743389 111216          ,"8,995.68",SANCTUARY HOMECARE                      ,583116,,HOME CARE SERVICES            
SHEFFIELD CITY COUNCIL        ,COMMUNITIES                   ,46039,ADULT SOCIAL CARE PURCHASING  ,9190,BLOCK CONTRACT                ,04/01/2017,4133094,J1743389 111216          ,"49,562.36",SANCTUARY HOMECARE                      ,583116,,HOME CARE SERVICES            
SHEFFIELD CITY COUNCIL        ,COMMUNITIES                   ,46039,ADULT SOCIAL CARE PURCHASING  ,9190,FUNDED HOME SUPPORT           ,04/01/2017,4133095,J1743390 111216          ,"2,825.26",REDACTED PERSONAL DATA,552184,,HOME CARE SERVICES            
SHEFFIELD CITY COUNCIL        ,COMMUNITIES                   ,42034,PURCHASING LEARNING DISABILITI,9190,BLOCK CONTRACT                ,04/01/2017,4133095,J1743390 111216          ,672.00,REDACTED PERSONAL DATA,552184,,HOME CARE SERVICES            
SHEFFIELD CITY COUNCIL        ,COMMUNITIES                   ,46039,ADULT SOCIAL CARE PURCHASING  ,9190,BLOCK CONTRACT                ,04/01/2017,4133095,J1743390 111216          ,"61,740.40",REDACTED PERSONAL DATA,552184,,HOME CARE SERVICES            
SHEFFIELD CITY COUNCIL        ,COMMUNITIES                   ,46039,ADULT SOCIAL CARE PURCHASING  ,9190,BLOCK CONTRACT                ,04/01/2017,4133096,J1743391 111216          ,"56,289.36",REDACTED PERSONAL DATA,552184,,HOME CARE SERVICES            
SHEFFIELD CITY COUNCIL        ,COMMUNITIES                   ,46039,ADULT SOCIAL CARE PURCHASING  ,9190,FUNDED HOME SUPPORT           ,04/01/2017,4133096,J1743391 111216          ,"1,661.32",REDACTED PERSONAL DATA,552184,,HOME CARE SERVICES            
SHEFFIELD CITY COUNCIL        ,COMMUNITIES                   ,42034,PURCHASING LEARNING DISABILITI,9190,BLOCK CONTRACT                ,04/01/2017,4133096,J1743391 111216          ,980.00,REDACTED PERSONAL DATA,552184,,HOME CARE SERVICES            
SHEFFIELD CITY COUNCIL        ,COMMUNITIES                   ,44001,PURCHASING                    ,9190,BLOCK CONTRACT                ,04/01/2017,4133096,J1743391 111216          ,359.32,REDACTED PERSONAL DATA,552184,,HOME CARE SERVICES            
SHEFFIELD CITY COUNCIL        ,COMMUNITIES                   ,46039,ADULT SOCIAL CARE PURCHASING  ,9190,BLOCK CONTRACT                ,04/01/2017,4133097,J1743392 111216          ,"42,110.32",REDACTED PERSONAL DATA,362074,,HOME CARE SERVICES            
SHEFFIELD CITY COUNCIL        ,COMMUNITIES                   ,46039,ADULT SOCIAL CARE PURCHASING  ,9190,BLOCK CONTRACT                ,04/01/2017,4133098,J1743393 111216          ,"46,832.58",REDACTED PERSONAL DATA,362074,,HOME CARE SERVICES            
SHEFFIELD CITY COUNCIL        ,COMMUNITIES                   ,46039,ADULT SOCIAL CARE PURCHASING  ,9190,FUNDED HOME SUPPORT           ,04/01/2017,4133098,J1743393 111216          ,608.52,REDACTED PERSONAL DATA,362074,,HOME CARE SERVICES            
SHEFFIELD CITY COUNCIL        ,COMMUNITIES                   ,42034,PURCHASING LEARNING DISABILITI,9190,FUNDED HOME SUPPORT           ,04/01/2017,4133098,J1743393 111216          ,392.00,REDACTED PERSONAL DATA,362074,,HOME CARE SERVICES            
SHEFFIELD CITY COUNCIL        ,COMMUNITIES                   ,46039,ADULT SOCIAL CARE PURCHASING  ,9190,BLOCK CONTRACT                ,04/01/2017,4133099,J1743394 111216          ,"33,330.50",HOUSING AND CARE 21                     ,531533,,"HOUSING ASSOCIATIONS, SOCIETIE"
SHEFFIELD CITY COUNCIL        ,COMMUNITIES                   ,42034,PURCHASING LEARNING DISABILITI,9190,FUNDED HOME SUPPORT           ,04/01/2017,4133099,J1743394 111216          ,282.00,HOUSING AND CARE 21                     ,531533,,"HOUSING ASSOCIATIONS, SOCIETIE"
SHEFFIELD CITY COUNCIL        ,COMMUNITIES                   ,42034,PURCHASING LEARNING DISABILITI,9190,BLOCK CONTRACT                ,04/01/2017,4133099,J1743394 111216          ,564.96,HOUSING AND CARE 21                     ,531533,,"HOUSING ASSOCIATIONS, SOCIETIE"
SHEFFIELD CITY COUNCIL        ,COMMUNITIES                   ,46039,ADULT SOCIAL CARE PURCHASING  ,9190,BLOCK CONTRACT                ,04/01/2017,4133100,J1743395 111216          ,"34,562.35",WESTMINSTER HOMECARE LTD                ,487993,,NURSING AGENCIES              
SHEFFIELD CITY COUNCIL        ,COMMUNITIES                   ,44001,PURCHASING                    ,9190,BLOCK CONTRACT                ,04/01/2017,4133100,J1743395 111216          ,324.44,WESTMINSTER HOMECARE LTD                ,487993,,NURSING AGENCIES              
SHEFFIELD CITY COUNCIL        ,COMMUNITIES                   ,46039,ADULT SOCIAL CARE PURCHASING  ,9190,FUNDED HOME SUPPORT           ,04/01/2017,4133100,J1743395 111216          ,526.40,WESTMINSTER HOMECARE LTD                ,487993,,NURSING AGENCIES              
SHEFFIELD CITY COUNCIL        ,COMMUNITIES                   ,46039,ADULT SOCIAL CARE PURCHASING  ,9190,BLOCK CONTRACT                ,04/01/2017,4133101,J1743396 111216          ,"67,112.90",WESTMINSTER HOMECARE LTD                ,487993,,NURSING AGENCIES              
SHEFFIELD CITY COUNCIL        ,COMMUNITIES                   ,42034,PURCHASING LEARNING DISABILITI,9190,BLOCK CONTRACT                ,04/01/2017,4133101,J1743396 111216          ,413.74,WESTMINSTER HOMECARE LTD                ,487993,,NURSING AGENCIES              
SHEFFIELD CITY COUNCIL        ,COMMUNITIES                   ,46039,ADULT SOCIAL CARE PURCHASING  ,9190,BLOCK CONTRACT                ,04/01/2017,4133102,J1743397 111216          ,"12,225.88",WESTMINSTER HOMECARE LTD                ,487993,,NURSING AGENCIES              
SHEFFIELD CITY COUNCIL        ,COMMUNITIES                   ,46039,ADULT SOCIAL CARE PURCHASING  ,9190,BLOCK CONTRACT                ,04/01/2017,4133103,J1743399 111216          ,"33,216.86",SANCTUARY HOMECARE                      ,583116,,HOME CARE SERVICES            
SHEFFIELD CITY COUNCIL        ,COMMUNITIES                   ,46039,ADULT SOCIAL CARE PURCHASING  ,9190,BLOCK CONTRACT                ,04/01/2017,4133104,J1743400 111216          ,"16,260.31",SANCTUARY HOMECARE                      ,583116,,HOME CARE SERVICES            
SHEFFIELD CITY COUNCIL        ,COMMUNITIES                   ,46039,ADULT SOCIAL CARE PURCHASING  ,9190,BLOCK CONTRACT                ,04/01/2017,4133105,J1743401 111216          ,"27,043.71",WESTMINSTER HOMECARE LTD                ,487993,,NURSING AGENCIES              
SHEFFIELD CITY COUNCIL        ,COMMUNITIES                   ,46039,ADULT SOCIAL CARE PURCHASING  ,9190,BLOCK CONTRACT                ,04/01/2017,4133106,J1743404 111216          ,"1,228.69",CUSTOM HOME CARE LTD                    ,630522,Social Community Care,CAREFIRST DIRECT PAYMENTS     
SHEFFIELD CITY COUNCIL        ,COMMUNITIES                   ,42034,PURCHASING LEARNING DISABILITI,9190,BLOCK CONTRACT                ,04/01/2017,4133106,J1743404 111216          ,"1,116.00",CUSTOM HOME CARE LTD                    ,630522,Social Community Care,CAREFIRST DIRECT PAYMENTS     
SHEFFIELD CITY COUNCIL        ,COMMUNITIES                   ,46039,ADULT SOCIAL CARE PURCHASING  ,9190,FUNDED HOME SUPPORT           ,04/01/2017,4133107,J1743409 111216          ,"1,015.00",SARAH CARE LTD LTD (COUNCIL PACKAGES)   ,634474,,RESIDENTIAL CARE HOMES        
SHEFFIELD CITY COUNCIL        ,COMMUNITIES                   ,44001,PURCHASING                    ,9190,CITYWIDE SPOT                 ,04/01/2017,4133108,J1743412 111216          ,"109,748.21",CITIZENSHIP FIRST                       ,329379,,CHARITIES & VOLUNTARY ORGANISA
SHEFFIELD CITY COUNCIL        ,COMMUNITIES                   ,42034,PURCHASING LEARNING DISABILITI,9190,CITYWIDE SPOT                 ,04/01/2017,4133108,J1743412 111216          ,"1,998.44",CITIZENSHIP FIRST                       ,329379,,CHARITIES & VOLUNTARY ORGANISA
SHEFFIELD CITY COUNCIL        ,COMMUNITIES                   ,46039,ADULT SOCIAL CARE PURCHASING  ,9190,BLOCK CONTRACT                ,04/01/2017,4133109,J1743414 111216          ,921.01,REDACTED PERSONAL DATA,204388,,HOME CARE SERVICES            
SHEFFIELD CITY COUNCIL        ,COMMUNITIES                   ,46039,ADULT SOCIAL CARE PURCHASING  ,9190,BLOCK CONTRACT                ,04/01/2017,4133110,J1743416 111216          ,"13,959.00",SERENTA HOMECARE                        ,636733,,HOME CARE SERVICES            
SHEFFIELD CITY COUNCIL        ,COMMUNITIES                   ,46039,ADULT SOCIAL CARE PURCHASING  ,9190,BLOCK CONTRACT                ,04/01/2017,4133111,J1743417 111216          ,"14,993.33",SAMFOS HEALTH AND TRADING CO LTD        ,637611,,HOME CARE SERVICES            
SHEFFIELD CITY COUNCIL        ,COMMUNITIES                   ,46039,ADULT SOCIAL CARE PURCHASING  ,9190,BLOCK CONTRACT                ,04/01/2017,4133112,J1743418 111216          ,"9,900.59",EVER HEALTHCARE LIMITED                 ,637527,,HOME CARE SERVICES            
SHEFFIELD CITY COUNCIL        ,COMMUNITIES                   ,44001,PURCHASING                    ,9190,BLOCK CONTRACT                ,04/01/2017,4133112,J1743418 111216          ,"3,609.60",EVER HEALTHCARE LIMITED                 ,637527,,HOME CARE SERVICES            
SHEFFIELD CITY COUNCIL        ,COMMUNITIES                   ,46039,ADULT SOCIAL CARE PURCHASING  ,9190,BLOCK CONTRACT                ,04/01/2017,4133113,J1743419 111216          ,"11,712.25",THAMES HOMECARE SERVICES(SHEFFIELD)     ,637277,,HOME CARE SERVICES            
SHEFFIELD CITY COUNCIL        ,COMMUNITIES                   ,46039,ADULT SOCIAL CARE PURCHASING  ,9190,BLOCK CONTRACT                ,04/01/2017,4133115,J1743422 111216          ,"3,247.94",JUVENTA 4 CARE LTD                      ,639472,,HOME CARE SERVICES            
SHEFFIELD CITY COUNCIL        ,COMMUNITIES                   ,46039,ADULT SOCIAL CARE PURCHASING  ,9190,FUNDED HOME SUPPORT           ,04/01/2017,4133116,J1743423 111216          ,578.10,HALLAM24 HEALTHCARE LTD                 ,639989,,HOME CARE SERVICES            
SHEFFIELD CITY COUNCIL        ,COMMUNITIES                   ,46039,ADULT SOCIAL CARE PURCHASING  ,9190,BLOCK CONTRACT                ,04/01/2017,4133117,J1743424 111216          ,"16,495.37",AWESOME HEALTHCARE SOLUTIONS            ,640541,,HOME CARE SERVICES            
SHEFFIELD CITY COUNCIL        ,COMMUNITIES                   ,46039,ADULT SOCIAL CARE PURCHASING  ,9190,BLOCK CONTRACT                ,04/01/2017,4133118,J1743425 111216          ,"4,096.00",REYMC 247 PVT LIMITED                   ,640377,,HOME CARE SERVICES            
SHEFFIELD CITY COUNCIL        ,COMMUNITIES                   ,46039,ADULT SOCIAL CARE PURCHASING  ,9190,BLOCK CONTRACT                ,04/01/2017,4133119,J1743426 111216          ,"10,584.93",NICHE CARE LTD                          ,640741,,DAY CENTRES                   
SHEFFIELD CITY COUNCIL        ,COMMUNITIES                   ,46039,ADULT SOCIAL CARE PURCHASING  ,9190,BLOCK CONTRACT                ,04/01/2017,4133120,J1743427 111216          ,"33,870.90",REDACTED PERSONAL DATA,362074,,HOME CARE SERVICES            
SHEFFIELD CITY COUNCIL        ,COMMUNITIES                   ,42034,PURCHASING LEARNING DISABILITI,9190,BLOCK CONTRACT                ,04/01/2017,4133120,J1743427 111216          ,392.00,REDACTED PERSONAL DATA,362074,,HOME CARE SERVICES            
SHEFFIELD CITY COUNCIL        ,COMMUNITIES                   ,42034,PURCHASING LEARNING DISABILITI,9190,BLOCK CONTRACT                ,04/01/2017,4133121,J1743428 111216          ,"1,722.00",REDACTED PERSONAL DATA,328494,,HOME CARE SERVICES            
SHEFFIELD CITY COUNCIL        ,COMMUNITIES                   ,46039,ADULT SOCIAL CARE PURCHASING  ,9190,BLOCK CONTRACT                ,04/01/2017,4133121,J1743428 111216          ,"64,433.74",REDACTED PERSONAL DATA,328494,,HOME CARE SERVICES            
SHEFFIELD CITY COUNCIL        ,COMMUNITIES                   ,46039,ADULT SOCIAL CARE PURCHASING  ,9190,FUNDED HOME SUPPORT           ,04/01/2017,4133122,J1743429 111216          ,910.00,REDACTED PERSONAL DATA,328494,,HOME CARE SERVICES            
SHEFFIELD CITY COUNCIL        ,COMMUNITIES                   ,42034,PURCHASING LEARNING DISABILITI,9190,BLOCK CONTRACT                ,04/01/2017,4133122,J1743429 111216          ,468.44,REDACTED PERSONAL DATA,328494,,HOME CARE SERVICES            
SHEFFIELD CITY COUNCIL        ,COMMUNITIES                   ,46039,ADULT SOCIAL CARE PURCHASING  ,9190,BLOCK CONTRACT                ,04/01/2017,4133122,J1743429 111216          ,"47,911.99",REDACTED PERSONAL DATA,328494,,HOME CARE SERVICES            
SHEFFIELD CITY COUNCIL        ,COMMUNITIES                   ,46039,ADULT SOCIAL CARE PURCHASING  ,9190,BLOCK CONTRACT                ,04/01/2017,4133123,J1743430 111216          ,"64,466.92",REDACTED PERSONAL DATA,328494,,HOME CARE SERVICES            
SHEFFIELD CITY COUNCIL        ,COMMUNITIES                   ,42034,PURCHASING LEARNING DISABILITI,9190,BLOCK CONTRACT                ,04/01/2017,4133123,J1743430 111216          ,658.00,REDACTED PERSONAL DATA,328494,,HOME CARE SERVICES            
SHEFFIELD CITY COUNCIL        ,COMMUNITIES                   ,46039,ADULT SOCIAL CARE PURCHASING  ,9190,BLOCK CONTRACT                ,04/01/2017,4133124,J1743431 111216          ,"99,473.70",REDACTED PERSONAL DATA,362074,,HOME CARE SERVICES            
SHEFFIELD CITY COUNCIL        ,COMMUNITIES                   ,46039,ADULT SOCIAL CARE PURCHASING  ,9190,FUNDED HOME SUPPORT           ,04/01/2017,4133124,J1743431 111216          ,326.68,REDACTED PERSONAL DATA,362074,,HOME CARE SERVICES            
SHEFFIELD CITY COUNCIL        ,COMMUNITIES                   ,46039,ADULT SOCIAL CARE PURCHASING  ,9190,BLOCK CONTRACT                ,04/01/2017,4133125,J1743432 111216          ,"39,270.57",REDACTED PERSONAL DATA,204388,,HOME CARE SERVICES            
SHEFFIELD CITY COUNCIL        ,COMMUNITIES                   ,42034,PURCHASING LEARNING DISABILITI,9190,FUNDED HOME SUPPORT           ,04/01/2017,4133125,J1743432 111216          ,"1,893.72",REDACTED PERSONAL DATA,204388,,HOME CARE SERVICES            
SHEFFIELD CITY COUNCIL        ,COMMUNITIES                   ,46039,ADULT SOCIAL CARE PURCHASING  ,9190,FUNDED HOME SUPPORT           ,04/01/2017,4133125,J1743432 111216          ,609.00,REDACTED PERSONAL DATA,204388,,HOME CARE SERVICES            
SHEFFIELD CITY COUNCIL        ,COMMUNITIES                   ,46039,ADULT SOCIAL CARE PURCHASING  ,9190,BLOCK CONTRACT                ,04/01/2017,4133126,J1743433 111216          ,"40,019.80",REDACTED PERSONAL DATA,204388,,HOME CARE SERVICES            
SHEFFIELD CITY COUNCIL        ,COMMUNITIES                   ,46039,ADULT SOCIAL CARE PURCHASING  ,9190,BLOCK CONTRACT                ,04/01/2017,4133127,J1743434 111216          ,"14,120.24",REDACTED PERSONAL DATA,530605,,HOME CARE SERVICES            
SHEFFIELD CITY COUNCIL        ,COMMUNITIES                   ,46039,ADULT SOCIAL CARE PURCHASING  ,9190,BLOCK CONTRACT                ,04/01/2017,4133128,J1743435 111216          ,"21,975.17",REDACTED PERSONAL DATA,532473,,HOME CARE SERVICES            
SHEFFIELD CITY COUNCIL        ,COMMUNITIES                   ,46039,ADULT SOCIAL CARE PURCHASING  ,9190,BLOCK CONTRACT                ,04/01/2017,4133129,J1743437 111216          ,"2,271.92",REDACTED PERSONAL DATA,563889,,EMPLOYMENT & RECRUITMENT AGENC
SHEFFIELD CITY COUNCIL        ,COMMUNITIES                   ,46039,ADULT SOCIAL CARE PURCHASING  ,9190,BLOCK CONTRACT                ,04/01/2017,4133130,J1743438 111216          ,"12,796.00",REDACTED PERSONAL DATA,571404,Social Community Care,CAREFIRST DIRECT PAYMENTS     
SHEFFIELD CITY COUNCIL        ,COMMUNITIES                   ,42034,PURCHASING LEARNING DISABILITI,9240,SUPPORTED LIVING CARE         ,04/01/2017,4133131,13840,464.40,REAL LIFE OPTIONS                       ,620700,,SOCIAL SERVICES               
SHEFFIELD CITY COUNCIL        ,CYPF                          ,39284,INDEPENDENT FOSTERING PLACEMEN,9270,INDEPENDENT FOSTERING         ,04/01/2017,4133074,193994,794.99,REDACTED PERSONAL DATA,349291,,ADOPTION & FOSTERING          
SHEFFIELD CITY COUNCIL        ,CYPF                          ,39266,CIN NRTPF                     ,9270,CARELEAVERS ACCOMMODATION     ,04/01/2017,4133075,4381,385.00,EARL MARSHALL GUEST HOUSE LTD           ,391589,,GUEST HOUSES                  
SHEFFIELD CITY COUNCIL        ,CYPF                          ,39266,CIN NRTPF                     ,9270,CARELEAVERS ACCOMMODATION     ,04/01/2017,4133076,4382,320.95,EARL MARSHALL GUEST HOUSE LTD           ,391589,,GUEST HOUSES                  
SHEFFIELD CITY COUNCIL        ,CYPF                          ,39266,CIN NRTPF                     ,9270,CARELEAVERS ACCOMMODATION     ,04/01/2017,4133077,4383,411.00,EARL MARSHALL GUEST HOUSE LTD           ,391589,,GUEST HOUSES                  
SHEFFIELD CITY COUNCIL        ,CYPF                          ,39428,INDEPENDENT RES BLOCK PLACEMEN,9270,INDEPENDENT RESIDENTIAL PMENT ,04/01/2017,4133078,CHI024048                ,"3,428.64",CAMBIAN CHILDCARE LTD                   ,525217,,CHILDCARE SERVICES            
SHEFFIELD CITY COUNCIL        ,CYPF                          ,39006,UASC/ASYLUM 16-17             ,6210,RENTS                         ,04/01/2017,4133079,14895,"2,400.00",PROGRESSIVE CARE LTD                    ,343548,,CHILDREN'S HOMES              
SHEFFIELD CITY COUNCIL        ,CYPF                          ,39266,CIN NRTPF                     ,9270,CARELEAVERS ACCOMMODATION     ,04/01/2017,4133081,4379,396.90,EARL MARSHALL GUEST HOUSE LTD           ,391589,,GUEST HOUSES                  
SHEFFIELD CITY COUNCIL        ,CYPF                          ,39266,CIN NRTPF                     ,9270,CARELEAVERS ACCOMMODATION     ,04/01/2017,4133082,4380,325.95,EARL MARSHALL GUEST HOUSE LTD           ,391589,,GUEST HOUSES                  
SHEFFIELD CITY COUNCIL        ,CYPF                          ,39084,NORTH SA - CIN S17            ,8490,TRANSLATN/SIGN/INTERPRET FEES ,04/01/2017,4133083,4432,"3,650.00",LANGUAGELINE SOLUTIONS                  ,471915,,TRANSLATORS & INTERPRETERS    
SHEFFIELD CITY COUNCIL        ,COMMUNITIES                   ,44001,PURCHASING                    ,9200,CONTINUING RESIDENTIAL CARE   ,04/01/2017,4132953,J1750740 290117          ,"11,000.00",SANDFORD HOUSE LTD                      ,578938,,RESIDENTIAL CARE HOMES        
SHEFFIELD CITY COUNCIL        ,COMMUNITIES                   ,42034,PURCHASING LEARNING DISABILITI,9200,CONTINUING RESIDENTIAL CARE   ,04/01/2017,4132954,J1750743 290117          ,"18,443.48",LIFEWAYS COMMUNITY CARE LTD             ,576610,,RESIDENTIAL CARE HOMES        
SHEFFIELD CITY COUNCIL        ,COMMUNITIES                   ,44001,PURCHASING                    ,9200,CONTINUING RESIDENTIAL CARE   ,04/01/2017,4132954,J1750743 290117          ,"4,983.04",LIFEWAYS COMMUNITY CARE LTD             ,576610,,RESIDENTIAL CARE HOMES        
SHEFFIELD CITY COUNCIL        ,COMMUNITIES                   ,42034,PURCHASING LEARNING DISABILITI,9200,CONTINUING RESIDENTIAL CARE   ,04/01/2017,4132955,J1750750 290117          ,"37,711.68",AUTISM CARE UK LTD                      ,599677,,RESIDENTIAL CARE HOMES        
SHEFFIELD CITY COUNCIL        ,COMMUNITIES                   ,44001,PURCHASING                    ,9210,CONTINUING NURSING CARE       ,04/01/2017,4132956,J1750753 290117          ,"11,163.32",QUARRYFIELDS HEALTH CARE LTD            ,620512,,RESIDENTIAL CARE HOMES        
SHEFFIELD CITY COUNCIL        ,COMMUNITIES                   ,46039,ADULT SOCIAL CARE PURCHASING  ,9200,CONTINUING RESIDENTIAL CARE   ,04/01/2017,4132957,J1750754 290117          ,"8,152.88",HEATHCOTES CB LLP NORTON HOUSE          ,620254,,RESIDENTIAL CARE HOMES        
SHEFFIELD CITY COUNCIL        ,COMMUNITIES                   ,42034,PURCHASING LEARNING DISABILITI,9200,CONTINUING RESIDENTIAL CARE   ,04/01/2017,4132957,J1750754 290117          ,"20,525.48",HEATHCOTES CB LLP NORTON HOUSE          ,620254,,RESIDENTIAL CARE HOMES        
SHEFFIELD CITY COUNCIL        ,COMMUNITIES                   ,44001,PURCHASING                    ,9200,CONTINUING RESIDENTIAL CARE   ,04/01/2017,4132957,J1750754 290117          ,"6,870.40",HEATHCOTES CB LLP NORTON HOUSE          ,620254,,RESIDENTIAL CARE HOMES        
SHEFFIELD CITY COUNCIL        ,COMMUNITIES                   ,46039,ADULT SOCIAL CARE PURCHASING  ,9200,CONTINUING RESIDENTIAL CARE   ,04/01/2017,4132958,J1750757 290117          ,"1,652.00",SAINT JUDES RESIDENTIAL HOME            ,625212,,RESIDENTIAL CARE HOMES        
SHEFFIELD CITY COUNCIL        ,COMMUNITIES                   ,44001,PURCHASING                    ,9200,CONTINUING RESIDENTIAL CARE   ,04/01/2017,4132959,J1750765 290117          ,"1,935.48",SPION KOP CARE HOME LIMITED             ,632103,,RESIDENTIAL CARE HOMES        
SHEFFIELD CITY COUNCIL        ,COMMUNITIES                   ,46039,ADULT SOCIAL CARE PURCHASING  ,9200,CONTINUING RESIDENTIAL CARE   ,04/01/2017,4132960,J1750766 290117          ,"1,668.00",MANOR HOUSE                             ,632136,,RESIDENTIAL CARE HOMES        
SHEFFIELD CITY COUNCIL        ,COMMUNITIES                   ,42034,PURCHASING LEARNING DISABILITI,9200,CONTINUING RESIDENTIAL CARE   ,04/01/2017,4132961,J1750767 290117          ,"8,061.00",WIGGINTON COTTAGE PRIORY                ,632821,,RESIDENTIAL CARE HOMES        
SHEFFIELD CITY COUNCIL        ,COMMUNITIES                   ,46039,ADULT SOCIAL CARE PURCHASING  ,9200,CONTINUING RESIDENTIAL CARE   ,04/01/2017,4132962,J1750768 290117          ,"1,548.00",KNIGHTINGALE CARE LTD                   ,633697,,RESIDENTIAL CARE HOMES        
SHEFFIELD CITY COUNCIL        ,COMMUNITIES                   ,44001,PURCHASING                    ,9200,CONTINUING RESIDENTIAL CARE   ,04/01/2017,4132963,J1750769 290117          ,"1,868.00",HATZFELD CARE LTD                       ,634146,,RESIDENTIAL CARE HOMES        
SHEFFIELD CITY COUNCIL        ,COMMUNITIES                   ,46039,ADULT SOCIAL CARE PURCHASING  ,9200,CONTINUING RESIDENTIAL CARE   ,04/01/2017,4132964,J1750773 290117          ,"13,656.00",SANDFORD HOUSE                          ,361790,,RESIDENTIAL CARE HOMES        
SHEFFIELD CITY COUNCIL        ,COMMUNITIES                   ,44001,PURCHASING                    ,9200,CONTINUING RESIDENTIAL CARE   ,04/01/2017,4132964,J1750773 290117          ,"45,520.00",SANDFORD HOUSE                          ,361790,,RESIDENTIAL CARE HOMES        
SHEFFIELD CITY COUNCIL        ,COMMUNITIES                   ,46039,ADULT SOCIAL CARE PURCHASING  ,9200,CONTINUING RESIDENTIAL CARE   ,04/01/2017,4132965,J1750777 290117          ,"12,352.00",JASMIN COURT NURSING HOME               ,361764,,NURSING HOMES                 
SHEFFIELD CITY COUNCIL        ,COMMUNITIES                   ,42034,PURCHASING LEARNING DISABILITI,9210,CONTINUING NURSING CARE       ,04/01/2017,4132965,J1750777 290117          ,"1,512.24",JASMIN COURT NURSING HOME               ,361764,,NURSING HOMES                 
SHEFFIELD CITY COUNCIL        ,COMMUNITIES                   ,46039,ADULT SOCIAL CARE PURCHASING  ,9210,CONTINUING NURSING CARE       ,04/01/2017,4132965,J1750777 290117          ,"13,440.00",JASMIN COURT NURSING HOME               ,361764,,NURSING HOMES                 
SHEFFIELD CITY COUNCIL        ,COMMUNITIES                   ,42034,PURCHASING LEARNING DISABILITI,9200,CONTINUING RESIDENTIAL CARE   ,04/01/2017,4132966,J1750791 290117          ,"18,279.84",NEWFIELD VIEW                           ,361863,,NURSING HOMES                 
SHEFFIELD CITY COUNCIL        ,COMMUNITIES                   ,46039,ADULT SOCIAL CARE PURCHASING  ,9200,CONTINUING RESIDENTIAL CARE   ,04/01/2017,4132966,J1750791 290117          ,"2,460.00",NEWFIELD VIEW                           ,361863,,NURSING HOMES                 
SHEFFIELD CITY COUNCIL        ,COMMUNITIES                   ,46039,ADULT SOCIAL CARE PURCHASING  ,9200,CONTINUING RESIDENTIAL CARE   ,04/01/2017,4132967,J1750792 290117          ,"6,704.00",ROSE COTTAGE CARE HOME                  ,361940,,NURSING HOMES                 
SHEFFIELD CITY COUNCIL        ,COMMUNITIES                   ,46039,ADULT SOCIAL CARE PURCHASING  ,9210,CONTINUING NURSING CARE       ,04/01/2017,4132967,J1750792 290117          ,"6,928.00",ROSE COTTAGE CARE HOME                  ,361940,,NURSING HOMES                 
SHEFFIELD CITY COUNCIL        ,COMMUNITIES                   ,46039,ADULT SOCIAL CARE PURCHASING  ,9200,CONTINUING RESIDENTIAL CARE   ,04/01/2017,4132968,J1750793 290117          ,"3,228.56",THE KNOWLE                              ,362158,,RESIDENTIAL CARE HOMES        
SHEFFIELD CITY COUNCIL        ,COMMUNITIES                   ,42034,PURCHASING LEARNING DISABILITI,9200,CONTINUING RESIDENTIAL CARE   ,04/01/2017,4132968,J1750793 290117          ,"3,228.56",THE KNOWLE                              ,362158,,RESIDENTIAL CARE HOMES        
SHEFFIELD CITY COUNCIL        ,COMMUNITIES                   ,44001,PURCHASING                    ,9200,CONTINUING RESIDENTIAL CARE   ,04/01/2017,4132968,J1750793 290117          ,"9,685.68",THE KNOWLE                              ,362158,,RESIDENTIAL CARE HOMES        
SHEFFIELD CITY COUNCIL        ,COMMUNITIES                   ,46039,ADULT SOCIAL CARE PURCHASING  ,9210,CONTINUING NURSING CARE       ,04/01/2017,4132969,J1750794 290117          ,"1,680.00",ROCKLEY DEAN CARE HOME LTD              ,361835,,NURSING HOMES                 
SHEFFIELD CITY COUNCIL        ,COMMUNITIES                   ,44001,PURCHASING                    ,9200,CONTINUING RESIDENTIAL CARE   ,04/01/2017,4132970,J1750798 290117          ,"4,725.00",TAPTON GROVE NURSING HOME               ,361826,,NURSING HOMES                 
SHEFFIELD CITY COUNCIL        ,COMMUNITIES                   ,46039,ADULT SOCIAL CARE PURCHASING  ,9200,CONTINUING RESIDENTIAL CARE   ,04/01/2017,4132971,J1750804 290117          ,"2,504.00",TAPTON EDGE REST HOME LTD               ,361786,,REST & RETIREMENT HOMES       
SHEFFIELD CITY COUNCIL        ,COMMUNITIES                   ,46039,ADULT SOCIAL CARE PURCHASING  ,9200,CONTINUING RESIDENTIAL CARE   ,04/01/2017,4132972,J1750805 290117          ,"1,652.00",WHISTON HALL RESIDENTIAL HOME           ,361816,,RESIDENTIAL CARE HOMES        
SHEFFIELD CITY COUNCIL        ,COMMUNITIES                   ,46039,ADULT SOCIAL CARE PURCHASING  ,9200,CONTINUING RESIDENTIAL CARE   ,04/01/2017,4132973,J1750806 290117          ,"3,464.00",MEADOW GRANGE NURSING HOME              ,361951,,NURSING HOMES                 
SHEFFIELD CITY COUNCIL        ,COMMUNITIES                   ,42034,PURCHASING LEARNING DISABILITI,9200,CONTINUING RESIDENTIAL CARE   ,04/01/2017,4132974,J1750809 290117          ,"3,056.56",WHITWELL PARK CARE HOME (WHITWELL PARK) ,624705,,RESIDENTIAL CARE HOMES        
SHEFFIELD CITY COUNCIL        ,COMMUNITIES                   ,42034,PURCHASING LEARNING DISABILITI,9210,CONTINUING NURSING CARE       ,04/01/2017,4132974,J1750809 290117          ,"7,200.00",WHITWELL PARK CARE HOME (WHITWELL PARK) ,624705,,RESIDENTIAL CARE HOMES        
SHEFFIELD CITY COUNCIL        ,COMMUNITIES                   ,46039,ADULT SOCIAL CARE PURCHASING  ,9200,CONTINUING RESIDENTIAL CARE   ,04/01/2017,4132975,J1750813 290117          ,"11,164.00",SWALLOWNEST CARE HOME                   ,361827,,NURSING HOMES                 
SHEFFIELD CITY COUNCIL        ,COMMUNITIES                   ,46039,ADULT SOCIAL CARE PURCHASING  ,9210,CONTINUING NURSING CARE       ,04/01/2017,4132975,J1750813 290117          ,"10,280.00",SWALLOWNEST CARE HOME                   ,361827,,NURSING HOMES                 
SHEFFIELD CITY COUNCIL        ,COMMUNITIES                   ,42034,PURCHASING LEARNING DISABILITI,9200,CONTINUING RESIDENTIAL CARE   ,04/01/2017,4132976,J1750817 290117          ,"5,357.48",CHOICE LTD                              ,361893,,RESIDENTIAL CARE HOMES        
SHEFFIELD CITY COUNCIL        ,COMMUNITIES                   ,42034,PURCHASING LEARNING DISABILITI,9200,CONTINUING RESIDENTIAL CARE   ,04/01/2017,4132977,J1750819 290117          ,"121,663.88",SHIREBROOK FIELDS CARE HOME             ,362105,,NURSING HOMES                 
SHEFFIELD CITY COUNCIL        ,COMMUNITIES                   ,46039,ADULT SOCIAL CARE PURCHASING  ,9200,CONTINUING RESIDENTIAL CARE   ,04/01/2017,4132977,J1750819 290117          ,"4,368.00",SHIREBROOK FIELDS CARE HOME             ,362105,,NURSING HOMES                 
SHEFFIELD CITY COUNCIL        ,COMMUNITIES                   ,42034,PURCHASING LEARNING DISABILITI,9210,CONTINUING NURSING CARE       ,04/01/2017,4132977,J1750819 290117          ,"28,050.96",SHIREBROOK FIELDS CARE HOME             ,362105,,NURSING HOMES                 
SHEFFIELD CITY COUNCIL        ,COMMUNITIES                   ,46039,ADULT SOCIAL CARE PURCHASING  ,9200,CONTINUING RESIDENTIAL CARE   ,04/01/2017,4132978,J1750821 290117          ,"8,500.00",LOXLEY HEALTHCARE LTD                   ,362146,,NURSING HOMES                 
SHEFFIELD CITY COUNCIL        ,COMMUNITIES                   ,46039,ADULT SOCIAL CARE PURCHASING  ,9210,CONTINUING NURSING CARE       ,04/01/2017,4132978,J1750821 290117          ,"19,542.72",LOXLEY HEALTHCARE LTD                   ,362146,,NURSING HOMES                 
SHEFFIELD CITY COUNCIL        ,COMMUNITIES                   ,46039,ADULT SOCIAL CARE PURCHASING  ,9200,CONTINUING RESIDENTIAL CARE   ,04/01/2017,4132979,J1750822 290117          ,"13,168.00",HILLCARE LIMITED                        ,361765,,RESIDENTIAL CARE HOMES        
SHEFFIELD CITY COUNCIL        ,COMMUNITIES                   ,46039,ADULT SOCIAL CARE PURCHASING  ,9210,CONTINUING NURSING CARE       ,04/01/2017,4132979,J1750822 290117          ,"16,800.00",HILLCARE LIMITED                        ,361765,,RESIDENTIAL CARE HOMES        
SHEFFIELD CITY COUNCIL        ,COMMUNITIES                   ,46039,ADULT SOCIAL CARE PURCHASING  ,9200,CONTINUING RESIDENTIAL CARE   ,04/01/2017,4132980,J1750823 290117          ,"40,562.86",LEAHYRST RESIDENTIAL CARE HOME          ,361842,,RESIDENTIAL CARE HOMES        
SHEFFIELD CITY COUNCIL        ,COMMUNITIES                   ,46039,ADULT SOCIAL CARE PURCHASING  ,9200,CONTINUING RESIDENTIAL CARE   ,04/01/2017,4132981,J1750825 290117          ,"34,198.00",NIGHTINGALES RES HOME                   ,361897,,RESIDENTIAL CARE HOMES        
SHEFFIELD CITY COUNCIL        ,COMMUNITIES                   ,46039,ADULT SOCIAL CARE PURCHASING  ,9200,CONTINUING RESIDENTIAL CARE   ,04/01/2017,4132982,J1750827 290117          ,"16,840.00",HADDON COURT NURSING HOME               ,361916,,NURSING HOMES                 
SHEFFIELD CITY COUNCIL        ,COMMUNITIES                   ,46039,ADULT SOCIAL CARE PURCHASING  ,9210,CONTINUING NURSING CARE       ,04/01/2017,4132982,J1750827 290117          ,"25,980.00",HADDON COURT NURSING HOME               ,361916,,NURSING HOMES                 
SHEFFIELD CITY COUNCIL        ,COMMUNITIES                   ,42034,PURCHASING LEARNING DISABILITI,9210,CONTINUING NURSING CARE       ,04/01/2017,4132982,J1750827 290117          ,"1,695.56",HADDON COURT NURSING HOME               ,361916,,NURSING HOMES                 
SHEFFIELD CITY COUNCIL        ,COMMUNITIES                   ,42034,PURCHASING LEARNING DISABILITI,9200,CONTINUING RESIDENTIAL CARE   ,04/01/2017,4132983,J1750829 290117          ,"2,351.24",LINKAGE COMMUNITY TRUST                 ,362116,,CHARITIES & VOLUNTARY ORGANISA
SHEFFIELD CITY COUNCIL        ,COMMUNITIES                   ,42034,PURCHASING LEARNING DISABILITI,9200,CONTINUING RESIDENTIAL CARE   ,04/01/2017,4132984,J1750835 290117          ,"9,510.16",ORCHARD CARE RESIDENTIAL HOME           ,362100,,NURSING HOMES                 
SHEFFIELD CITY COUNCIL        ,COMMUNITIES                   ,46039,ADULT SOCIAL CARE PURCHASING  ,9200,CONTINUING RESIDENTIAL CARE   ,04/01/2017,4132984,J1750835 290117          ,"5,440.00",ORCHARD CARE RESIDENTIAL HOME           ,362100,,NURSING HOMES                 
SHEFFIELD CITY COUNCIL        ,COMMUNITIES                   ,46039,ADULT SOCIAL CARE PURCHASING  ,9200,CONTINUING RESIDENTIAL CARE   ,04/01/2017,4132985,J1750836 290117          ,"31,847.00",COUNTRY COURT CARE HOMES LTD            ,361907,,RESIDENTIAL CARE HOMES        
SHEFFIELD CITY COUNCIL        ,COMMUNITIES                   ,46039,ADULT SOCIAL CARE PURCHASING  ,9200,CONTINUING RESIDENTIAL CARE   ,04/01/2017,4132986,J1750838 290117          ,"20,408.00",DARNALL VIEW RESIDENTIAL HOME           ,362170,,RESIDENTIAL CARE HOMES        
SHEFFIELD CITY COUNCIL        ,COMMUNITIES                   ,46039,ADULT SOCIAL CARE PURCHASING  ,9200,CONTINUING RESIDENTIAL CARE   ,04/01/2017,4132987,J1750839 290117          ,"14,552.00",WHITE ROSE COURT RES HOME               ,361964,,RESIDENTIAL CARE HOMES        
SHEFFIELD CITY COUNCIL        ,COMMUNITIES                   ,46039,ADULT SOCIAL CARE PURCHASING  ,9200,CONTINUING RESIDENTIAL CARE   ,04/01/2017,4132988,J1750841 290117          ,"24,056.00",HAZELDENE NURSING HOME                  ,340163,,NURSING HOMES                 
SHEFFIELD CITY COUNCIL        ,COMMUNITIES                   ,46039,ADULT SOCIAL CARE PURCHASING  ,9210,CONTINUING NURSING CARE       ,04/01/2017,4132988,J1750841 290117          ,"22,992.00",HAZELDENE NURSING HOME                  ,340163,,NURSING HOMES                 
SHEFFIELD CITY COUNCIL        ,COMMUNITIES                   ,46039,ADULT SOCIAL CARE PURCHASING  ,9200,CONTINUING RESIDENTIAL CARE   ,04/01/2017,4132989,J1750843 290117          ,"15,076.00",LOWER BOWSHAW VIEW NH                   ,362101,,NURSING HOMES                 
SHEFFIELD CITY COUNCIL        ,COMMUNITIES                   ,46039,ADULT SOCIAL CARE PURCHASING  ,9210,CONTINUING NURSING CARE       ,04/01/2017,4132989,J1750843 290117          ,"11,515.15",LOWER BOWSHAW VIEW NH                   ,362101,,NURSING HOMES                 
SHEFFIELD CITY COUNCIL        ,COMMUNITIES                   ,46039,ADULT SOCIAL CARE PURCHASING  ,9210,CONTINUING NURSING CARE       ,04/01/2017,4132990,J1750844 290117          ,"13,788.00",PEXTON GRANGE LTD                       ,361942,,NURSING HOMES                 
SHEFFIELD CITY COUNCIL        ,COMMUNITIES                   ,44001,PURCHASING                    ,9210,CONTINUING NURSING CARE       ,04/01/2017,4132991,J1750851 290117          ,"35,119.80",WILLOWBECK CARE CENTRE                  ,362132,,NURSING HOMES                 
SHEFFIELD CITY COUNCIL        ,COMMUNITIES                   ,46039,ADULT SOCIAL CARE PURCHASING  ,9210,CONTINUING NURSING CARE       ,04/01/2017,4132991,J1750851 290117          ,"37,010.44",WILLOWBECK CARE CENTRE                  ,362132,,NURSING HOMES                 
SHEFFIELD CITY COUNCIL        ,COMMUNITIES                   ,42034,PURCHASING LEARNING DISABILITI,9210,CONTINUING NURSING CARE       ,04/01/2017,4132991,J1750851 290117          ,"4,634.84",WILLOWBECK CARE CENTRE                  ,362132,,NURSING HOMES                 
SHEFFIELD CITY COUNCIL        ,COMMUNITIES                   ,46039,ADULT SOCIAL CARE PURCHASING  ,9200,CONTINUING RESIDENTIAL CARE   ,04/01/2017,4132992,J1750852 290117          ,"6,347.57",NETHERMORE CARE HOME (PREVIOUSLY KILLAMA,361936,,REST & RETIREMENT HOMES       
SHEFFIELD CITY COUNCIL        ,COMMUNITIES                   ,46039,ADULT SOCIAL CARE PURCHASING  ,9200,CONTINUING RESIDENTIAL CARE   ,04/01/2017,4132993,J1750855 290117          ,"3,914.00",WESTBOURNE HOUSE                        ,362111,,NURSING HOMES                 
SHEFFIELD CITY COUNCIL        ,COMMUNITIES                   ,42034,PURCHASING LEARNING DISABILITI,9210,CONTINUING NURSING CARE       ,04/01/2017,4132993,J1750855 290117          ,"1,680.00",WESTBOURNE HOUSE                        ,362111,,NURSING HOMES                 
SHEFFIELD CITY COUNCIL        ,COMMUNITIES                   ,46039,ADULT SOCIAL CARE PURCHASING  ,9210,CONTINUING NURSING CARE       ,04/01/2017,4132993,J1750855 290117          ,"28,976.00",WESTBOURNE HOUSE                        ,362111,,NURSING HOMES                 
SHEFFIELD CITY COUNCIL        ,COMMUNITIES                   ,46039,ADULT SOCIAL CARE PURCHASING  ,9200,CONTINUING RESIDENTIAL CARE   ,04/01/2017,4132994,J1750856 290117          ,"4,700.00",NEWFIELD NURSING HOME                   ,361980,,NURSING HOMES                 
SHEFFIELD CITY COUNCIL        ,COMMUNITIES                   ,46039,ADULT SOCIAL CARE PURCHASING  ,9210,CONTINUING NURSING CARE       ,04/01/2017,4132994,J1750856 290117          ,"24,090.00",NEWFIELD NURSING HOME                   ,361980,,NURSING HOMES                 
SHEFFIELD CITY COUNCIL        ,COMMUNITIES                   ,42034,PURCHASING LEARNING DISABILITI,9210,CONTINUING NURSING CARE       ,04/01/2017,4132994,J1750856 290117          ,"1,704.00",NEWFIELD NURSING HOME                   ,361980,,NURSING HOMES                 
SHEFFIELD CITY COUNCIL        ,COMMUNITIES                   ,46039,ADULT SOCIAL CARE PURCHASING  ,9200,CONTINUING RESIDENTIAL CARE   ,04/01/2017,4132995,J1750857 290117          ,"1,508.00",NORTHFIELD NURSING HOME                 ,361770,,NURSING HOMES                 
SHEFFIELD CITY COUNCIL        ,COMMUNITIES                   ,46039,ADULT SOCIAL CARE PURCHASING  ,9210,CONTINUING NURSING CARE       ,04/01/2017,4132995,J1750857 290117          ,"23,238.40",NORTHFIELD NURSING HOME                 ,361770,,NURSING HOMES                 
SHEFFIELD CITY COUNCIL        ,COMMUNITIES                   ,46039,ADULT SOCIAL CARE PURCHASING  ,9200,CONTINUING RESIDENTIAL CARE   ,04/01/2017,4132996,J1750858 290117          ,"2,200.00",OVERDALE                                ,361771,,REST & RETIREMENT HOMES       
SHEFFIELD CITY COUNCIL        ,COMMUNITIES                   ,44001,PURCHASING                    ,9200,CONTINUING RESIDENTIAL CARE   ,04/01/2017,4132997,J1750861 290117          ,"10,982.28",FITZWILLIAM LODGE NH (PD)               ,361908,,NURSING HOMES                 
SHEFFIELD CITY COUNCIL        ,COMMUNITIES                   ,46039,ADULT SOCIAL CARE PURCHASING  ,9200,CONTINUING RESIDENTIAL CARE   ,04/01/2017,4132998,J1750865 290117          ,"1,668.00",PARK LANE HEALTHCARE MOORGATE           ,362023,,NURSING HOMES                 
SHEFFIELD CITY COUNCIL        ,COMMUNITIES                   ,46039,ADULT SOCIAL CARE PURCHASING  ,9210,CONTINUING NURSING CARE       ,04/01/2017,4132998,J1750865 290117          ,"1,684.00",PARK LANE HEALTHCARE MOORGATE           ,362023,,NURSING HOMES                 
SHEFFIELD CITY COUNCIL        ,COMMUNITIES                   ,42034,PURCHASING LEARNING DISABILITI,9200,CONTINUING RESIDENTIAL CARE   ,04/01/2017,4132999,J1750868 290117          ,"22,431.60",NORSACA TRADING                         ,361931,,ESTATE AGENTS                 
SHEFFIELD CITY COUNCIL        ,COMMUNITIES                   ,46039,ADULT SOCIAL CARE PURCHASING  ,9200,CONTINUING RESIDENTIAL CARE   ,04/01/2017,4133000,J1750870 290117          ,"33,680.00",AKARI CARE LTD (SILVER LODGE)           ,361763,,RESIDENTIAL CARE HOMES        
SHEFFIELD CITY COUNCIL        ,COMMUNITIES                   ,44001,PURCHASING                    ,9200,CONTINUING RESIDENTIAL CARE   ,04/01/2017,4133001,J1750874 290117          ,"22,704.80",TOGETHER                                ,361880,,CHARITIES & VOLUNTARY ORGANISA
SHEFFIELD CITY COUNCIL        ,COMMUNITIES                   ,46039,ADULT SOCIAL CARE PURCHASING  ,9210,CONTINUING NURSING CARE       ,04/01/2017,4133002,J1750878 290117          ,"19,480.00",HOLMWOOD CARE HOME                      ,331238,,NURSING HOMES                 
SHEFFIELD CITY COUNCIL        ,COMMUNITIES                   ,44001,PURCHASING                    ,9200,CONTINUING RESIDENTIAL CARE   ,04/01/2017,4133003,J1750880 290117          ,"3,279.44",ROSEBERRY CARE CENTRES GB LTD           ,362099,,RESIDENTIAL CARE HOMES        
SHEFFIELD CITY COUNCIL        ,COMMUNITIES                   ,46039,ADULT SOCIAL CARE PURCHASING  ,9200,CONTINUING RESIDENTIAL CARE   ,04/01/2017,4133003,J1750880 290117          ,"41,636.00",ROSEBERRY CARE CENTRES GB LTD           ,362099,,RESIDENTIAL CARE HOMES        
SHEFFIELD CITY COUNCIL        ,COMMUNITIES                   ,42034,PURCHASING LEARNING DISABILITI,9200,CONTINUING RESIDENTIAL CARE   ,04/01/2017,4133003,J1750880 290117          ,"2,540.00",ROSEBERRY CARE CENTRES GB LTD           ,362099,,RESIDENTIAL CARE HOMES        
SHEFFIELD CITY COUNCIL        ,COMMUNITIES                   ,46039,ADULT SOCIAL CARE PURCHASING  ,9210,CONTINUING NURSING CARE       ,04/01/2017,4133003,J1750880 290117          ,"78,665.04",ROSEBERRY CARE CENTRES GB LTD           ,362099,,RESIDENTIAL CARE HOMES        
SHEFFIELD CITY COUNCIL        ,COMMUNITIES                   ,42034,PURCHASING LEARNING DISABILITI,9210,CONTINUING NURSING CARE       ,04/01/2017,4133003,J1750880 290117          ,"1,704.00",ROSEBERRY CARE CENTRES GB LTD           ,362099,,RESIDENTIAL CARE HOMES        
SHEFFIELD CITY COUNCIL        ,COMMUNITIES                   ,44001,PURCHASING                    ,9210,CONTINUING NURSING CARE       ,04/01/2017,4133003,J1750880 290117          ,"7,927.28",ROSEBERRY CARE CENTRES GB LTD           ,362099,,RESIDENTIAL CARE HOMES        
SHEFFIELD CITY COUNCIL        ,COMMUNITIES                   ,47028,PDSI PURCHASING               ,9210,CONTINUING NURSING CARE       ,04/01/2017,4133003,J1750880 290117          ,"2,586.68",ROSEBERRY CARE CENTRES GB LTD           ,362099,,RESIDENTIAL CARE HOMES        
SHEFFIELD CITY COUNCIL        ,COMMUNITIES                   ,46039,ADULT SOCIAL CARE PURCHASING  ,9200,CONTINUING RESIDENTIAL CARE   ,04/01/2017,4133004,J1750881 290117          ,"18,700.00",ROSEBERRY CARE CENTRES GB LTD           ,361904,,NURSING HOMES                 
SHEFFIELD CITY COUNCIL        ,COMMUNITIES                   ,46039,ADULT SOCIAL CARE PURCHASING  ,9210,CONTINUING NURSING CARE       ,04/01/2017,4133004,J1750881 290117          ,"26,340.00",ROSEBERRY CARE CENTRES GB LTD           ,361904,,NURSING HOMES                 
SHEFFIELD CITY COUNCIL        ,COMMUNITIES                   ,46039,ADULT SOCIAL CARE PURCHASING  ,9200,CONTINUING RESIDENTIAL CARE   ,04/01/2017,4133005,J1750883 290117          ,"26,608.00",NORTH HILL RESIDENTIAL HOME             ,362254,,RESIDENTIAL CARE HOMES        
SHEFFIELD CITY COUNCIL        ,COMMUNITIES                   ,46039,ADULT SOCIAL CARE PURCHASING  ,9200,CONTINUING RESIDENTIAL CARE   ,04/01/2017,4133006,J1750884 290117          ,"1,668.00",SCARSDALE GRANGE NH                     ,361915,,NURSING HOMES                 
SHEFFIELD CITY COUNCIL        ,COMMUNITIES                   ,46039,ADULT SOCIAL CARE PURCHASING  ,9210,CONTINUING NURSING CARE       ,04/01/2017,4133006,J1750884 290117          ,"38,222.52",SCARSDALE GRANGE NH                     ,361915,,NURSING HOMES                 
SHEFFIELD CITY COUNCIL        ,COMMUNITIES                   ,44001,PURCHASING                    ,9200,CONTINUING RESIDENTIAL CARE   ,04/01/2017,4133007,J1750886 290117          ,"2,899.56",WESTFIELD HOUSE                         ,362081,,RESIDENTIAL CARE HOMES        
SHEFFIELD CITY COUNCIL        ,COMMUNITIES                   ,44001,PURCHASING                    ,9200,CONTINUING RESIDENTIAL CARE   ,04/01/2017,4133008,J1750888 290117          ,"6,378.12",WESTBOURNE HOUSE                        ,361791,,NURSING HOMES                 
SHEFFIELD CITY COUNCIL        ,COMMUNITIES                   ,46039,ADULT SOCIAL CARE PURCHASING  ,9200,CONTINUING RESIDENTIAL CARE   ,04/01/2017,4133008,J1750888 290117          ,"4,084.12",WESTBOURNE HOUSE                        ,361791,,NURSING HOMES                 
SHEFFIELD CITY COUNCIL        ,COMMUNITIES                   ,42034,PURCHASING LEARNING DISABILITI,9200,CONTINUING RESIDENTIAL CARE   ,04/01/2017,4133008,J1750888 290117          ,"2,824.00",WESTBOURNE HOUSE                        ,361791,,NURSING HOMES                 
SHEFFIELD CITY COUNCIL        ,COMMUNITIES                   ,44001,PURCHASING                    ,9200,CONTINUING RESIDENTIAL CARE   ,04/01/2017,4133009,J1750891 290117          ,"2,492.12",SANDFORD HOUSE LTD                      ,578938,,RESIDENTIAL CARE HOMES        
SHEFFIELD CITY COUNCIL        ,COMMUNITIES                   ,42034,PURCHASING LEARNING DISABILITI,9200,CONTINUING RESIDENTIAL CARE   ,04/01/2017,4133010,J1750896 290117          ,"7,979.16",LITTLE ARCHES RESIDENTIAL HOME          ,361869,,RESIDENTIAL CARE HOMES        
SHEFFIELD CITY COUNCIL        ,COMMUNITIES                   ,42034,PURCHASING LEARNING DISABILITI,9200,CONTINUING RESIDENTIAL CARE   ,04/01/2017,4133011,J1750916 290117          ,"19,999.16",ROSEBERRY CARE CENTRES UK LTD           ,412186,,RESIDENTIAL CARE HOMES        
SHEFFIELD CITY COUNCIL        ,COMMUNITIES                   ,44001,PURCHASING                    ,9200,CONTINUING RESIDENTIAL CARE   ,04/01/2017,4133011,J1750916 290117          ,"9,137.64",ROSEBERRY CARE CENTRES UK LTD           ,412186,,RESIDENTIAL CARE HOMES        
SHEFFIELD CITY COUNCIL        ,COMMUNITIES                   ,46039,ADULT SOCIAL CARE PURCHASING  ,9200,CONTINUING RESIDENTIAL CARE   ,04/01/2017,4133012,J1750917 290117          ,"1,604.00",METHODIST HOMES FOR THE AGED            ,415177,,RESIDENTIAL CARE HOMES        
SHEFFIELD CITY COUNCIL        ,COMMUNITIES                   ,44001,PURCHASING                    ,9200,CONTINUING RESIDENTIAL CARE   ,04/01/2017,4133013,J1750924 290117          ,"9,947.84",REDACTED PERSONAL DATA,433430,,RESIDENTIAL CARE HOMES        
SHEFFIELD CITY COUNCIL        ,COMMUNITIES                   ,44001,PURCHASING                    ,9210,CONTINUING NURSING CARE       ,04/01/2017,4133013,J1750924 290117          ,"6,926.84",REDACTED PERSONAL DATA,433430,,RESIDENTIAL CARE HOMES        
SHEFFIELD CITY COUNCIL        ,COMMUNITIES                   ,46039,ADULT SOCIAL CARE PURCHASING  ,9200,CONTINUING RESIDENTIAL CARE   ,04/01/2017,4133014,J1750925 290117          ,"35,700.00",NORTON LEES HALL/LODGE                  ,433750,,SCHOOLS - LOCAL AUTHORITY     
SHEFFIELD CITY COUNCIL        ,COMMUNITIES                   ,46039,ADULT SOCIAL CARE PURCHASING  ,9200,CONTINUING RESIDENTIAL CARE   ,04/01/2017,4133015,J1750926 290117          ,"46,736.52",NORTON LEES HALL/LODGE                  ,433750,,SCHOOLS - LOCAL AUTHORITY     
SHEFFIELD CITY COUNCIL        ,COMMUNITIES                   ,46039,ADULT SOCIAL CARE PURCHASING  ,9210,CONTINUING NURSING CARE       ,04/01/2017,4133016,J1750930 290117          ,"7,384.52",DEARNEVALE                              ,444825,,RESIDENTIAL CARE HOMES        
SHEFFIELD CITY COUNCIL        ,COMMUNITIES                   ,44001,PURCHASING                    ,9200,CONTINUING RESIDENTIAL CARE   ,04/01/2017,4133017,J1750931 290117          ,"29,543.84",LISTER AVENUE PROJECT                   ,368348,,"HOUSING ASSOCIATIONS, SOCIETIE"
SHEFFIELD CITY COUNCIL        ,COMMUNITIES                   ,46039,ADULT SOCIAL CARE PURCHASING  ,9200,CONTINUING RESIDENTIAL CARE   ,04/01/2017,4133017,J1750931 290117          ,"4,595.16",LISTER AVENUE PROJECT                   ,368348,,"HOUSING ASSOCIATIONS, SOCIETIE"
SHEFFIELD CITY COUNCIL        ,COMMUNITIES                   ,42034,PURCHASING LEARNING DISABILITI,9200,CONTINUING RESIDENTIAL CARE   ,04/01/2017,4133018,J1750939 290117          ,"3,571.24",HOLLY HOUSE                             ,464393,,RESIDENTIAL CARE HOMES        
SHEFFIELD CITY COUNCIL        ,COMMUNITIES                   ,42034,PURCHASING LEARNING DISABILITI,9210,CONTINUING NURSING CARE       ,04/01/2017,4133019,J1750940 290117          ,"6,370.72",THE LODGE                               ,475754,,RESIDENTIAL CARE HOMES        
SHEFFIELD CITY COUNCIL        ,COMMUNITIES                   ,42034,PURCHASING LEARNING DISABILITI,9200,CONTINUING RESIDENTIAL CARE   ,04/01/2017,4133020,J1750944 290117          ,"5,412.32",OAK HOUSE                               ,491029,,RESIDENTIAL CARE HOMES        
SHEFFIELD CITY COUNCIL        ,COMMUNITIES                   ,46039,ADULT SOCIAL CARE PURCHASING  ,4260,RESIDENTIAL COSTS RECOVERED   ,04/01/2017,4133021,J1184426 210615          ,"1,008.38",COUNTRY COURT CARE HOMES LTD            ,361907,,RESIDENTIAL CARE HOMES        
SHEFFIELD CITY COUNCIL        ,COMMUNITIES                   ,42034,PURCHASING LEARNING DISABILITI,9200,CONTINUING RESIDENTIAL CARE   ,04/01/2017,4133022,J1750945 290117          ,"19,279.08",JANE HOUSE  LTD                         ,492184,,RESIDENTIAL CARE HOMES        
SHEFFIELD CITY COUNCIL        ,COMMUNITIES                   ,42034,PURCHASING LEARNING DISABILITI,9200,CONTINUING RESIDENTIAL CARE   ,04/01/2017,4133023,J1750950 290117          ,"4,616.44",THE MEWS                                ,525602,,RESIDENTIAL CARE HOMES        
SHEFFIELD CITY COUNCIL        ,COMMUNITIES                   ,42034,PURCHASING LEARNING DISABILITI,9200,CONTINUING RESIDENTIAL CARE   ,04/01/2017,4133024,J1750957 290117          ,"8,184.96",KNOLLBECK (HEATHCOTES)                  ,552816,,RESIDENTIAL CARE HOMES        
SHEFFIELD CITY COUNCIL        ,COMMUNITIES                   ,42034,PURCHASING LEARNING DISABILITI,9200,CONTINUING RESIDENTIAL CARE   ,04/01/2017,4133025,J1750960 290117          ,"28,064.40",THE MANSE T/AS KINGFIELD CARE HOME      ,559873,,RESIDENTIAL CARE HOMES        
SHEFFIELD CITY COUNCIL        ,COMMUNITIES                   ,42034,PURCHASING LEARNING DISABILITI,9200,CONTINUING RESIDENTIAL CARE   ,04/01/2017,4133026,J1750961 290117          ,"5,400.00",ROTHERHAM HEALTHCARE LTD                ,562485,,RESIDENTIAL CARE HOMES        
SHEFFIELD CITY COUNCIL        ,COMMUNITIES                   ,46039,ADULT SOCIAL CARE PURCHASING  ,9210,CONTINUING NURSING CARE       ,04/01/2017,4133026,J1750961 290117          ,"11,331.20",ROTHERHAM HEALTHCARE LTD                ,562485,,RESIDENTIAL CARE HOMES        
SHEFFIELD CITY COUNCIL        ,COMMUNITIES                   ,44001,PURCHASING                    ,9200,CONTINUING RESIDENTIAL CARE   ,04/01/2017,4133027,J1750962 290117          ,"2,979.28",WESTFIELD MEWS -                        ,563592,,RESIDENTIAL CARE HOMES        
SHEFFIELD CITY COUNCIL        ,COMMUNITIES                   ,46039,ADULT SOCIAL CARE PURCHASING  ,9200,CONTINUING RESIDENTIAL CARE   ,04/01/2017,4133028,J1750965 290117          ,"1,754.00",BUPA CARE SERVICES                      ,568893,,RESIDENTIAL CARE HOMES        
SHEFFIELD CITY COUNCIL        ,COMMUNITIES                   ,44001,PURCHASING                    ,9200,CONTINUING RESIDENTIAL CARE   ,04/01/2017,4133029,J1750966 290117          ,"14,244.84",MOORVILLE RESIDENTIAL                   ,569422,,RESIDENTIAL CARE HOMES        
SHEFFIELD CITY COUNCIL        ,COMMUNITIES                   ,42034,PURCHASING LEARNING DISABILITI,9200,CONTINUING RESIDENTIAL CARE   ,04/01/2017,4133030,J1717785 041216          ,"35,103.20",HEATHCOTES CB LLP NORTON HOUSE          ,620254,,RESIDENTIAL CARE HOMES        
SHEFFIELD CITY COUNCIL        ,COMMUNITIES                   ,46039,ADULT SOCIAL CARE PURCHASING  ,9210,CONTINUING NURSING CARE       ,04/01/2017,4133031,J1723468 010117          ,"1,680.00",HAIGHFIELD NURSING HOME                 ,629712,,NURSING HOMES                 
SHEFFIELD CITY COUNCIL        ,COMMUNITIES                   ,46039,ADULT SOCIAL CARE PURCHASING  ,9200,CONTINUING RESIDENTIAL CARE   ,04/01/2017,4133032,J1723563 010117          ,"18,027.71",AARON HOUSE                             ,361752,,RESIDENTIAL CARE HOMES        
SHEFFIELD CITY COUNCIL        ,COMMUNITIES                   ,42034,PURCHASING LEARNING DISABILITI,9200,CONTINUING RESIDENTIAL CARE   ,04/01/2017,4133033,J1725624 010117          ,"16,811.09",HEATHCOTES CB LLP NORTON HOUSE          ,620254,,RESIDENTIAL CARE HOMES        
SHEFFIELD CITY COUNCIL        ,COMMUNITIES                   ,46039,ADULT SOCIAL CARE PURCHASING  ,4260,NURSING COSTS RECOVERED       ,04/01/2017,4133034,J1729627 010117          ,"1,924.77",JASMIN COURT NURSING HOME               ,361764,,NURSING HOMES                 
SHEFFIELD CITY COUNCIL        ,COMMUNITIES                   ,46039,ADULT SOCIAL CARE PURCHASING  ,4260,RESIDENTIAL COSTS RECOVERED   ,04/01/2017,4133034,J1729627 010117          ,314.86,JASMIN COURT NURSING HOME               ,361764,,NURSING HOMES                 
SHEFFIELD CITY COUNCIL        ,COMMUNITIES                   ,46039,ADULT SOCIAL CARE PURCHASING  ,4260,RESIDENTIAL COSTS RECOVERED   ,04/01/2017,4133035,J1729636 010117          ,"4,314.62",NORTON LEES HALL/LODGE                  ,433750,,SCHOOLS - LOCAL AUTHORITY     
SHEFFIELD CITY COUNCIL        ,COMMUNITIES                   ,46039,ADULT SOCIAL CARE PURCHASING  ,9200,CONTINUING RESIDENTIAL CARE   ,04/01/2017,4133037,J1731694 010117          ,"1,489.29",LOWER BOWSHAW VIEW NH                   ,362101,,NURSING HOMES                 
SHEFFIELD CITY COUNCIL        ,COMMUNITIES                   ,46039,ADULT SOCIAL CARE PURCHASING  ,9210,CONTINUING NURSING CARE       ,04/01/2017,4133037,J1731694 010117          ,"3,164.56",LOWER BOWSHAW VIEW NH                   ,362101,,NURSING HOMES                 
SHEFFIELD CITY COUNCIL        ,COMMUNITIES                   ,46039,ADULT SOCIAL CARE PURCHASING  ,4260,NURSING COSTS RECOVERED       ,04/01/2017,4133038,J1731695 010117          ,"1,045.60",PEXTON GRANGE LTD                       ,361942,,NURSING HOMES                 
SHEFFIELD CITY COUNCIL        ,COMMUNITIES                   ,46039,ADULT SOCIAL CARE PURCHASING  ,9200,CONTINUING RESIDENTIAL CARE   ,04/01/2017,4133040,J1746828 010117          ,"1,675.60",WATER ROYD HOUSE                        ,383521,,NURSING HOMES                 
SHEFFIELD CITY COUNCIL        ,COMMUNITIES                   ,46039,ADULT SOCIAL CARE PURCHASING  ,9200,CONTINUING RESIDENTIAL CARE   ,04/01/2017,4133041,J1748586 010117          ,"2,489.29",ROSEBERRY CARE CENTRES GB LTD           ,362099,,RESIDENTIAL CARE HOMES        
SHEFFIELD CITY COUNCIL        ,COMMUNITIES                   ,46039,ADULT SOCIAL CARE PURCHASING  ,9200,CONTINUING RESIDENTIAL CARE   ,04/01/2017,4133042,J1749747 010117          ,601.43,COUNTRY COURT CARE HOMES LTD            ,361754,,RESIDENTIAL CARE HOMES        
SHEFFIELD CITY COUNCIL        ,COMMUNITIES                   ,46039,ADULT SOCIAL CARE PURCHASING  ,4260,RESIDENTIAL COSTS RECOVERED   ,04/01/2017,4133043,J1749748 010117          ,604.40,LEAHYRST RESIDENTIAL CARE HOME          ,361842,,RESIDENTIAL CARE HOMES        
SHEFFIELD CITY COUNCIL        ,COMMUNITIES                   ,46039,ADULT SOCIAL CARE PURCHASING  ,9200,CONTINUING RESIDENTIAL CARE   ,04/01/2017,4133044,J1749749 010117          ,"4,793.29",NIGHTINGALES RES HOME                   ,361897,,RESIDENTIAL CARE HOMES        
SHEFFIELD CITY COUNCIL        ,COMMUNITIES                   ,46039,ADULT SOCIAL CARE PURCHASING  ,9210,CONTINUING NURSING CARE       ,04/01/2017,4133046,J1750708 010117          ,439.00,ROSEBERRY CARE CENTRES (YORKSHIRE) LTD  ,580595,,RESIDENTIAL CARE HOMES        
SHEFFIELD CITY COUNCIL        ,COMMUNITIES                   ,46039,ADULT SOCIAL CARE PURCHASING  ,9210,CONTINUING NURSING CARE       ,04/01/2017,4133047,J1750711 010117          ,"5,355.43",NEWFIELD NURSING HOME                   ,361980,,NURSING HOMES                 
SHEFFIELD CITY COUNCIL        ,COMMUNITIES                   ,46039,ADULT SOCIAL CARE PURCHASING  ,9210,CONTINUING NURSING CARE       ,04/01/2017,4133048,J1750712 010117          ,309.29,COUNTRY COURT CARE HOMES LTD            ,361753,,RESIDENTIAL CARE HOMES        
SHEFFIELD CITY COUNCIL        ,COMMUNITIES                   ,42034,PURCHASING LEARNING DISABILITI,9200,CONTINUING RESIDENTIAL CARE   ,04/01/2017,4133049,J1750713 010117          ,"15,079.68",THE DAVID LEWIS CENTRE                  ,335613,,CHARITIES & VOLUNTARY ORGANISA
SHEFFIELD CITY COUNCIL        ,COMMUNITIES                   ,46039,ADULT SOCIAL CARE PURCHASING  ,9200,SHORT TERM RESIDENTIAL CARE   ,04/01/2017,4133051,J1750739 010117          ,846.86,IDEAL CAREHOMES LTD                     ,566537,,RESIDENTIAL CARE HOMES        
SHEFFIELD CITY COUNCIL        ,COMMUNITIES                   ,46039,ADULT SOCIAL CARE PURCHASING  ,9200,SHORT TERM RESIDENTIAL CARE   ,04/01/2017,4133052,J1062611 040115          ,655.58,NETHERMORE CARE HOME (PREVIOUSLY KILLAMA,361936,,REST & RETIREMENT HOMES       
SHEFFIELD CITY COUNCIL        ,COMMUNITIES                   ,42034,PURCHASING LEARNING DISABILITI,9200,SHORT TERM RESIDENTIAL CARE   ,04/01/2017,4133053,J1643604 110916          ,364.29,SHIREBROOK FIELDS CARE HOME             ,362105,,NURSING HOMES                 
SHEFFIELD CITY COUNCIL        ,COMMUNITIES                   ,46039,ADULT SOCIAL CARE PURCHASING  ,9200,SHORT TERM RESIDENTIAL CARE   ,04/01/2017,4133055,J1748564 041216          ,"1,517.86",NORTON LEES HALL/LODGE                  ,433750,,SCHOOLS - LOCAL AUTHORITY     
SHEFFIELD CITY COUNCIL        ,COMMUNITIES                   ,46039,ADULT SOCIAL CARE PURCHASING  ,9200,SHORT TERM RESIDENTIAL CARE   ,04/01/2017,4133056,J1749744 041216          ,750.00,BROOMGROVE TRUST NURSING                ,361755,,NURSING HOMES                 
SHEFFIELD CITY COUNCIL        ,COMMUNITIES                   ,46039,ADULT SOCIAL CARE PURCHASING  ,9200,SHORT TERM RESIDENTIAL CARE   ,04/01/2017,4133057,J1750705 041216          ,421.00,DARNALL VIEW RESIDENTIAL HOME           ,362170,,RESIDENTIAL CARE HOMES        
SHEFFIELD CITY COUNCIL        ,COMMUNITIES                   ,46039,ADULT SOCIAL CARE PURCHASING  ,9200,SHORT TERM RESIDENTIAL CARE   ,04/01/2017,4133058,J1750706 041216          ,"3,915.57",HARTWELL HOUSE                          ,361785,,NURSING HOMES                 
SHEFFIELD CITY COUNCIL        ,COMMUNITIES                   ,46039,ADULT SOCIAL CARE PURCHASING  ,9200,SHORT TERM RESIDENTIAL CARE   ,04/01/2017,4133059,J1750707 041216          ,"1,630.00",ROSEBERRY CARE CENTRES GB LTD           ,362099,,RESIDENTIAL CARE HOMES        
SHEFFIELD CITY COUNCIL        ,COMMUNITIES                   ,44028,DRUG & ALCOHOL MH -PURCHASING ,9200,SHORT TERM RESIDENTIAL CARE   ,04/01/2017,4133060,J1750724 010117          ,"3,185.00",TURNING POINT SERVICES LTD              ,482885,,HOME SUPPORT SERVICES         
SHEFFIELD CITY COUNCIL        ,COMMUNITIES                   ,46039,ADULT SOCIAL CARE PURCHASING  ,9200,SHORT TERM RESIDENTIAL CARE   ,04/01/2017,4133061,J1750725 010117          ,477.43,HORIZON CARE HOMES LTD WOOD HILL GRANGE ,552397,,RESIDENTIAL CARE HOMES        
SHEFFIELD CITY COUNCIL        ,COMMUNITIES                   ,46039,ADULT SOCIAL CARE PURCHASING  ,9200,SHORT TERM RESIDENTIAL CARE   ,04/01/2017,4133063,J1750727 010117          ,"2,136.28",THE WHITE HOUSE CARE HOME               ,362083,,RESIDENTIAL CARE HOMES        
SHEFFIELD CITY COUNCIL        ,COMMUNITIES                   ,46039,ADULT SOCIAL CARE PURCHASING  ,9200,SHORT TERM RESIDENTIAL CARE   ,04/01/2017,4133064,J1750728 010117          ,601.43,COUNTRY COURT CARE HOMES LTD            ,361754,,RESIDENTIAL CARE HOMES        
SHEFFIELD CITY COUNCIL        ,COMMUNITIES                   ,46039,ADULT SOCIAL CARE PURCHASING  ,9200,SHORT TERM RESIDENTIAL CARE   ,04/01/2017,4133067,J1750731 010117          ,969.43,DEVAGLADE LTD T/A AARON VIEW            ,486043,,NURSING HOMES                 
SHEFFIELD CITY COUNCIL        ,COMMUNITIES                   ,46039,ADULT SOCIAL CARE PURCHASING  ,9200,SHORT TERM RESIDENTIAL CARE   ,04/01/2017,4133068,J1750732 010117          ,"1,416.00",WHITE ROSE COURT RES HOME               ,361964,,RESIDENTIAL CARE HOMES        
SHEFFIELD CITY COUNCIL        ,COMMUNITIES                   ,46039,ADULT SOCIAL CARE PURCHASING  ,9200,SHORT TERM RESIDENTIAL CARE   ,04/01/2017,4133070,J1750734 010117          ,842.00,AKARI CARE LTD (SILVER LODGE)           ,361763,,RESIDENTIAL CARE HOMES        
SHEFFIELD CITY COUNCIL        ,COMMUNITIES                   ,46039,ADULT SOCIAL CARE PURCHASING  ,9200,SHORT TERM RESIDENTIAL CARE   ,04/01/2017,4133071,J1750735 010117          ,"4,427.03",ROSEBERRY CARE CENTRES GB LTD           ,362099,,RESIDENTIAL CARE HOMES        
SHEFFIELD CITY COUNCIL        ,COMMUNITIES                   ,44028,DRUG & ALCOHOL MH -PURCHASING ,9200,SHORT TERM RESIDENTIAL CARE   ,04/01/2017,4133072,J1750737 010117          ,"1,980.00",ARK HOUSE REHAB LTD                     ,383520,,RESIDENTIAL CARE HOMES        
SHEFFIELD CITY COUNCIL        ,PLACE                         ,21197,OFF THE SHELF                 ,8440,FEE EXPENSES                  ,05/01/2017,4133831,ERS INVOICE148535        ,300.00,MS LINDA LEE WELCH                      ,503594,,ARTISTS & ILLUSTRATORS        
SHEFFIELD CITY COUNCIL        ,PLACE                         ,21221,CULTURAL DIRECTOR             ,8440,FEE EXPENSES                  ,05/01/2017,4133833,ERS INVOICE148537        ,"25,000.00",S1 ARTSPACE                             ,544681,,ARTS CENTRES                  
SHEFFIELD CITY COUNCIL        ,COMMUNITIES                   ,49704,CENTRAL                       ,8180,GRANTS                        ,05/01/2017,4133834,ERS INVOICE148538        ,400.00,183RD SHEFFIELD SCOUT GROUP             ,641480,,CHARITIES & VOLUNTARY ORGANISA
SHEFFIELD CITY COUNCIL        ,COMMUNITIES                   ,49704,CENTRAL                       ,8180,GRANTS                        ,05/01/2017,4133835,ERS INVOICE148539        ,584.00,ENDCLIFFE CORNER COMMUNITY ORGANISATION ,641833,,COMMUNITY PROJECTS            
SHEFFIELD CITY COUNCIL        ,COMMUNITIES                   ,49005,NATIONAL ASSISTANCE CONTRACT  ,6210,RENTS                         ,05/01/2017,4133837,ERS INVOICE148541        ,375.00,TAPTON ESTATES PROPERTIES LTD           ,449360,,PROPERTY & ESTATE MANAGEMENT  
SHEFFIELD CITY COUNCIL        ,COMMUNITIES                   ,49005,NATIONAL ASSISTANCE CONTRACT  ,6210,RENTS                         ,05/01/2017,4133838,ERS INVOICE148542        ,390.00,MU PROPERTIES                           ,583024,,LETTING AGENTS                
SHEFFIELD CITY COUNCIL        ,COMMUNITIES                   ,49005,NATIONAL ASSISTANCE CONTRACT  ,6210,RENTS                         ,05/01/2017,4133839,ERS INVOICE148543        ,410.00,MR R L WILLEY                           ,622704,,ACCOMMODATION AGENCIES - RESID
SHEFFIELD CITY COUNCIL        ,COMMUNITIES                   ,49005,NATIONAL ASSISTANCE CONTRACT  ,6210,RENTS                         ,05/01/2017,4133840,ERS INVOICE148544        ,336.61,ARCHES HOUSING LIMITED                  ,366877,,"HOUSING ASSOCIATIONS, SOCIETIE"
SHEFFIELD CITY COUNCIL        ,RESOURCES                     ,19097,COMMERCIAL DIRECTOR           ,8490,EXAM FEES                     ,05/01/2017,4133842,ERS INVOICE148546        ,490.00,CHARTERED INSTITUTE OF PURCHASING       ,348050,,INSTITUTES - PROFESSIONAL     
SHEFFIELD CITY COUNCIL        ,CYPF                          ,39532,EARLY YEARS SEN TEAM          ,8440,FEE EXPENSES                  ,05/01/2017,4133916,ERS INVOICE148549        ,400.00,TEDDIES NURSERY                         ,311925,,NURSERIES & CRECHES           
SHEFFIELD CITY COUNCIL        ,CYPF                          ,39532,EARLY YEARS SEN TEAM          ,8440,FEE EXPENSES                  ,05/01/2017,4133917,ERS INVOICE148550        ,520.00,INTAKE PRE-SCHOOL                       ,339645,,PLAYGROUPS & PRE-SCHOOL EDUCAT
SHEFFIELD CITY COUNCIL        ,CYPF                          ,36051,ACADEMY LEGAL FEES & RD SAFETY,9650,LEGAL AND GOVERNANCE          ,05/01/2017,4089902,1175507,"1,012.80",LEE BOLTON MONIER-WILLIAMS              ,634370,,SOLICITORS                    
SHEFFIELD CITY COUNCIL        ,COMMUNITIES                   ,49228,MEETING ROOMS GENERAL         ,6080,CONTRACT CLEANING             ,05/01/2017,4113749,3681,"1,424.00",ATKIN & SON                             ,203113,,WINDOW CLEANERS               
SHEFFIELD CITY COUNCIL        ,COMMUNITIES                   ,42007,QUALITY & GOVERNANCE          ,8060,MATERIALS AND SUPPLIES GENERAL,05/01/2017,4119039,687402,"2,320.00",TEXTANYWHERE LIMITED                    ,482465,,TELECOMMUNICATION SERVICES    
SHEFFIELD CITY COUNCIL        ,COMMUNITIES                   ,49827,PARSON CROSS LIBRARY          ,6210,RENTS                         ,05/01/2017,4119781,SOARCO/2616              ,"8,750.00",SOAR - THE LEARNING ZONE                ,557728,,CHARITIES & VOLUNTARY ORGANISA
SHEFFIELD CITY COUNCIL        ,CYPF                          ,90737,GLEADLESS PRIMARY - REBUILD   ,1183,PURCHASE OF EQUIPMENT         ,05/01/2017,4119965,951222,"2,950.00",PICKFORDS                               ,573763,,REMOVALS - OVERSEAS           
SHEFFIELD CITY COUNCIL        ,PLACE                         ,28152,BUSINESS IMPROVEMENT DIST-LDV ,8490,OTHER PROFESSIONAL FEES       ,05/01/2017,4121619,1337,"16,695.00",RIVER STEWARDSHIP COMPANY LTD           ,547441,,CHARITIES & VOLUNTARY ORGANISA
SHEFFIELD CITY COUNCIL        ,COMMUNITIES                   ,49318,ACCOMMODATION & SUPPORT SERVIC,8050,FURNITURE PURCHASES           ,05/01/2017,4121684,"3,484","2,100.00",HOMEFLAIR (MEXBOROUGH) LTD              ,620126,,FURNITURE - RETAIL            
SHEFFIELD CITY COUNCIL        ,COMMUNITIES                   ,49318,ACCOMMODATION & SUPPORT SERVIC,8050,FURNITURE PURCHASES           ,05/01/2017,4121685,"3,489","3,784.00",HOMEFLAIR (MEXBOROUGH) LTD              ,620126,,FURNITURE - RETAIL            
SHEFFIELD CITY COUNCIL        ,COMMUNITIES                   ,49318,ACCOMMODATION & SUPPORT SERVIC,8050,FURNITURE PURCHASES           ,05/01/2017,4121690,"3,499","6,654.00",HOMEFLAIR (MEXBOROUGH) LTD              ,620126,,FURNITURE - RETAIL            
SHEFFIELD CITY COUNCIL        ,COMMUNITIES                   ,49228,MEETING ROOMS GENERAL         ,6080,CONTRACT CLEANING             ,05/01/2017,4123094,3726,584.00,ATKIN & SON                             ,203113,,WINDOW CLEANERS               
SHEFFIELD CITY COUNCIL        ,PLACE                         ,22052,LAEF                          ,8440,FEE EXPENSES                  ,05/01/2017,4124708,4225,"4,363.33",3G CONTROLS LTD                         ,640263,,ENERGY MANAGEMENT CONTROL SYST
SHEFFIELD CITY COUNCIL        ,CYPF                          ,33065,PROVIDER CONTRACT AUG16-JUL17 ,9120,OTHER AGENCIES                ,05/01/2017,4125119,3535,667.50,ZEST                                    ,492467,,CHARITIES & VOLUNTARY ORGANISA
SHEFFIELD CITY COUNCIL        ,PLACE                         ,22069,TRADED OPERATIONS             ,8620,COMPUTER SOFTWARE LICENCES    ,05/01/2017,4125917,47794517,984.00,BENTLEY SYSTEMS INTERNATIONAL LTD       ,576687,,NEWSPAPER & MAGAZINE PUBLISHER
SHEFFIELD CITY COUNCIL        ,RESOURCES                     ,17107,MANAGEMENT & SUPPORT SERVICES ,8400,PUBLICATIONS AND PERIODICALS  ,05/01/2017,4126840,6800343044,"8,503.00",THOMSON REUTERS                         ,340190,,INFORMATION SERVICES          
SHEFFIELD CITY COUNCIL        ,RESOURCES                     ,19318,PREMIUMS                      ,8740,PREMIUMS                      ,05/01/2017,4127042,407000970,"7,500.00",ZURICH RISK ENGINEERING                 ,575255,,SOLICITORS                    
SHEFFIELD CITY COUNCIL        ,COMMUNITIES                   ,47009,MINOR WORKS & ADAPTATIONS     ,6020,REPAIRS AND MTCE - PROGRAMMED ,05/01/2017,4127252,V151                     ,"1,254.00",REDACTED PERSONAL DATA,459864,,BUILDING SERVICES             
SHEFFIELD CITY COUNCIL        ,COMMUNITIES                   ,47009,MINOR WORKS & ADAPTATIONS     ,6030,REPAIRS AND MTCE - RESPONSIVE ,05/01/2017,4127253,V152                     ,529.00,REDACTED PERSONAL DATA,459864,,BUILDING SERVICES             
SHEFFIELD CITY COUNCIL        ,COMMUNITIES                   ,49315,SOUTH SHEFFIELD               ,8010,ESTATES EQUIP PURCHASE & REPAI,05/01/2017,4129263,928937228,512.50,ARCO LTD                                ,203022,,SAFETY EQUIPMENT & CLOTHING   
SHEFFIELD CITY COUNCIL        ,PLACE                         ,22049,ENERGY -SCHEME                ,6150,ELECTRICITY - INVOICE         ,05/01/2017,4130966,2714-018                 ,"154,148.44",NPOWER NORTHERN LTD                     ,207191,,ELECTRICITY COMPANIES         
SHEFFIELD CITY COUNCIL        ,PLACE                         ,97414,ARBOURTHORNE 5M'S REFURB      ,1143,COMPENSATION                  ,05/01/2017,4131576,8434,"1,243.00",GBH UTILITIES LTD                       ,588022,,GAS INSTALLERS                
SHEFFIELD CITY COUNCIL        ,PLACE                         ,22072,ADMIN SUPPORT                 ,7150,CAR ALLOWANCES                ,05/01/2017,4131811,917733,474.86,CITY CAR CLUB T/A ENTERPRISE CAR CLUB   ,465053,,CAR RENTAL                    
SHEFFIELD CITY COUNCIL        ,PLACE                         ,97552,NEW BUILD COUNCIL HSG PHASE 1 ,1163,NC&A SUB CONTRACTORS          ,05/01/2017,4131884,OP100546-006             ,367.20,METER MANAGER LTD                       ,584350,,SOLAR ENERGY EQUIPMENT - SUPPL
SHEFFIELD CITY COUNCIL        ,PLACE                         ,97147,ADAPTATIONS                   ,1157,DWELLINGS MAIN CONTRACT       ,05/01/2017,4131900,SIP-171007               ,"3,095.81",THYSSENKRUPP ENCASA                     ,627802,,LIFT MNFRS                    
SHEFFIELD CITY COUNCIL        ,PLACE                         ,25070,TREE TEAM                     ,6370,GROUNDS MTCE AND ARBORICULTURE,05/01/2017,4131974,2636,580.00,SHEFFIELD TREE CARE                     ,462546,,TREE WORK & FORESTRY SERVICES 
SHEFFIELD CITY COUNCIL        ,PLACE                         ,22237,CYCLE REPAIR AND RECYCLE      ,8440,FEE EXPENSES                  ,05/01/2017,4132057,5598,"12,291.25",HEELEY DEVELOPMENT TRUST                ,472941,,CHARITIES & VOLUNTARY ORGANISA
SHEFFIELD CITY COUNCIL        ,PLACE                         ,22237,CYCLE REPAIR AND RECYCLE      ,8440,FEE EXPENSES                  ,05/01/2017,4132084,1002,"1,500.00",BIKE REHAB LTD                          ,635945,,CYCLING                       
SHEFFIELD CITY COUNCIL        ,COMMUNITIES                   ,49800,LIBRARY THEATRE               ,8130,CATERING SUPPLIES             ,05/01/2017,4132117,5682123,"1,041.83",LWC YORKSHIRE                           ,574709,,WINES SPIRITS & BEER - WHOLESA
SHEFFIELD CITY COUNCIL        ,COMMUNITIES                   ,49320,OLDER PERSON INDEPENDENT LIVIN,8010,EQUIPMENT PURCHASE AND REPAIR ,05/01/2017,4132128,928946974,293.52,ARCO LTD                                ,203022,,SAFETY EQUIPMENT & CLOTHING   
SHEFFIELD CITY COUNCIL        ,PLACE                         ,97442,KITCHEN/BATHRM PLANNED REPLMT ,1157,DWELLINGS MAIN CONTRACT       ,05/01/2017,4132232,64621,563.93,PTS (PLUMBING TRADE SUPPLIERS)          ,616318,,PLUMBERS' MERCHANTS           
SHEFFIELD CITY COUNCIL        ,RESOURCES                     ,12007,INSURANCE AND RISK            ,8490,OTHER PROFESSIONAL FEES       ,05/01/2017,4132243,INV260                   ,800.00,MOTOR INSURERS BUREAU                   ,384516,,COMPENSATION CLAIMS           
SHEFFIELD CITY COUNCIL        ,COMMUNITIES                   ,49869,SUPPLIES & SERVICES           ,8010,EQUIPMENT PURCHASE AND REPAIR ,05/01/2017,4132252,259101406,"1,838.40",YORKSHIRE PURCHASING ORGANISATION       ,295997,,PURCHASING SERVICES           
SHEFFIELD CITY COUNCIL        ,CYPF                          ,39282,CARE PROCEEDINGS (LEGAL FEES) ,8470,LEGAL FEES                    ,05/01/2017,4132269,1021673,600.00,REDACTED PERSONAL DATA,544033,,BARRISTERS                    
SHEFFIELD CITY COUNCIL        ,RESOURCES                     ,18032,MOORFOOT LEARNING CENTRE      ,8490,OTHER PROFESSIONAL FEES       ,05/01/2017,4132286,14936,475.00,SMARTSTYLE TECHNOLOGY TRAINING          ,481447,,TRAINING SERVICES             
SHEFFIELD CITY COUNCIL        ,RESOURCES                     ,18032,MOORFOOT LEARNING CENTRE      ,8490,OTHER PROFESSIONAL FEES       ,05/01/2017,4132287,14935,475.00,SMARTSTYLE TECHNOLOGY TRAINING          ,481447,,TRAINING SERVICES             
SHEFFIELD CITY COUNCIL        ,PLACE                         ,97414,ARBOURTHORNE 5M'S REFURB      ,1147,DEMOLITION                    ,05/01/2017,4132295,YD20260036               ,"1,420.00",YEDL CASHIER                            ,353721,,ELECTRICITY COMPANIES         
SHEFFIELD CITY COUNCIL        ,CYPF                          ,38220,GENETIC WORKS                 ,9030,HEALTH                        ,05/01/2017,4132299,1800149054,"10,000.00",UNIVERSITY OF SHEFFIELD                 ,396227,,UNIVERSITIES & MEDICAL SCHOOLS
SHEFFIELD CITY COUNCIL        ,POLICY PERFORMANCE AND COMMS  ,18003,COMMUNICATIONS                ,8550,OTHER SERVICES                ,05/01/2017,4132312,11875A                   ,908.08,THE PRINT AND DESIGN FACTORY LTD        ,207663,,PRINTERS                      
SHEFFIELD CITY COUNCIL        ,CYPF                          ,39282,CARE PROCEEDINGS (LEGAL FEES) ,8470,LEGAL FEES                    ,05/01/2017,4132327,1022316,600.00,LOUISE STANBURY                         ,616298,,BARRISTERS                    
SHEFFIELD CITY COUNCIL        ,CYPF                          ,39282,CARE PROCEEDINGS (LEGAL FEES) ,8470,LEGAL FEES                    ,05/01/2017,4132329,1022113,600.00,REDACTED PERSONAL DATA,487888,,BARRISTERS                    
SHEFFIELD CITY COUNCIL        ,CYPF                          ,39282,CARE PROCEEDINGS (LEGAL FEES) ,8470,LEGAL FEES                    ,05/01/2017,4132330,999184,450.00,KATE MORLEY                             ,599526,,BARRISTERS                    
SHEFFIELD CITY COUNCIL        ,CYPF                          ,39282,CARE PROCEEDINGS (LEGAL FEES) ,8470,LEGAL FEES                    ,05/01/2017,4132332,1022419,450.00,KATE MORLEY                             ,599526,,BARRISTERS                    
SHEFFIELD CITY COUNCIL        ,PLACE                         ,97442,KITCHEN/BATHRM PLANNED REPLMT ,1157,DWELLINGS MAIN CONTRACT       ,05/01/2017,4132403,64180,"1,830.66",PTS (PLUMBING TRADE SUPPLIERS)          ,616318,,PLUMBERS' MERCHANTS           
SHEFFIELD CITY COUNCIL        ,RESOURCES                     ,17153,MEMBERS ALLOWANCES            ,7140,PUBLIC TRANSPORT COSTS        ,05/01/2017,4132429,01/7125672               ,381.00,CLARITY TRAVEL MANAGEMENT               ,202987,,TRAVEL AGENTS & HOLIDAY COMPAN
SHEFFIELD CITY COUNCIL        ,COMMUNITIES                   ,49387,PERFORMANCE PLANNING          ,8270,SUBSCRIPTIONS                 ,05/01/2017,4132471,LA0229-62025             ,"40,815.36",THE HOUSING OMBUDSMAN                   ,597033,,TRADE ASSOC & REGULATORY BODIE
SHEFFIELD CITY COUNCIL        ,POLICY PERFORMANCE AND COMMS  ,18003,COMMUNICATIONS                ,8550,OTHER SERVICES                ,05/01/2017,4132504,INV183014                ,944.16,A PINDER LTD                            ,202627,,COPYING & DUPLICATING SERVICES
SHEFFIELD CITY COUNCIL        ,RESOURCES                     ,12004,FINANCE LEADERSHIP TEAM       ,9610,ACCOMMODATION                 ,05/01/2017,4132522,958973,986.95,PICKFORDS                               ,573763,,REMOVALS - OVERSEAS           
SHEFFIELD CITY COUNCIL        ,COMMUNITIES                   ,47009,MINOR WORKS & ADAPTATIONS     ,6020,REPAIRS AND MTCE - PROGRAMMED ,05/01/2017,4132624,556,395.00,WESTWOOD JOINERY & CONSTRUCTION LTD     ,558811,,CONSTRUCTION CONTRACTORS - GEN
SHEFFIELD CITY COUNCIL        ,COMMUNITIES                   ,49010,GATEWAY PP 16-20              ,8060,MATERIALS AND SUPPLIES GENERAL,05/01/2017,4132639,CMD2698736               ,"1,073.25",DOMESTIC APPLIANCE DISTRIBUTORS         ,527171,,ELECTRICAL GOODS - SALES      
SHEFFIELD CITY COUNCIL        ,PLACE                         ,22236,CYCLE TRAINING                ,8440,FEE EXPENSES                  ,05/01/2017,4132652,1498,"6,765.00",PEDAL READY CO-OPERATIVE LTD            ,404979,,TRAINING SERVICES             
SHEFFIELD CITY COUNCIL        ,CYPF                          ,39282,CARE PROCEEDINGS (LEGAL FEES) ,8470,LEGAL FEES                    ,05/01/2017,4132815,236870,"1,250.00",ZENITH CHAMBERS                         ,526906,,BARRISTERS                    
SHEFFIELD CITY COUNCIL        ,CYPF                          ,39282,CARE PROCEEDINGS (LEGAL FEES) ,8470,LEGAL FEES                    ,05/01/2017,4132816,236870,450.00,ZENITH CHAMBERS                         ,526906,,BARRISTERS                    
SHEFFIELD CITY COUNCIL        ,CYPF                          ,39282,CARE PROCEEDINGS (LEGAL FEES) ,8470,LEGAL FEES                    ,05/01/2017,4132818,1003612,600.00,OLIVIA WEIR                             ,616302,,BARRISTERS                    
SHEFFIELD CITY COUNCIL        ,COMMUNITIES                   ,46039,ADULT SOCIAL CARE PURCHASING  ,8470,LEGAL FEES                    ,05/01/2017,4132834,378758,450.00,KINGS CHAMBERS                          ,567569,,LEGAL SERVICES                
SHEFFIELD CITY COUNCIL        ,PLACE                         ,97222,PSH EMPTY PROPERTIES          ,1165,NC&A OTHER                    ,05/01/2017,4132925,KJ5418                   ,375.00,KEN JENKINSON BUILDERS LTD              ,206194,,BUILDERS                      
SHEFFIELD CITY COUNCIL        ,COMMUNITIES                   ,49869,SUPPLIES & SERVICES           ,8010,EQUIPMENT PURCHASE AND REPAIR ,05/01/2017,4132927,23792,975.00,COMPLETE SHUTTER SERVICES LTD           ,204021,,DOORS & SHUTTERS - SALES & INS
SHEFFIELD CITY COUNCIL        ,CYPF                          ,32042,MUSIC EDUCATION HUBS 2012-15  ,6280,HIRE OF PREMISES              ,05/01/2017,4132947,KW42167                  ,"1,037.50",KINGSWOOD LEARNING & LEISURE GROUP LTD  ,457678,,CHILDREN'S ACTIVITY CENTRES   
SHEFFIELD CITY COUNCIL        ,PLACE                         ,23038,PEST CONTROL                  ,8530,TIPPING CHARGES               ,05/01/2017,4133144,1698,261.97,G W BUTLER LTD                          ,205041,,WASTE DISPOSAL SERVICES       
SHEFFIELD CITY COUNCIL        ,COMMUNITIES                   ,42011,DAY SERVICES                  ,6280,HIRE OF PREMISES              ,05/01/2017,4133152,LDDS100                  ,560.00,HANDSWORTH COMMUNITY NURSERY            ,325463,,NURSERIES & CRECHES           
SHEFFIELD CITY COUNCIL        ,COMMUNITIES                   ,49852,SCHOOLS LIBRARY SERVICE       ,8080,LIBRARY MATERIALS             ,05/01/2017,4133158,1620437,"1,384.50",PETERS LTD                              ,312836,,BOOKSELLERS                   
SHEFFIELD CITY COUNCIL        ,PLACE                         ,22077,AFFORDABLE HOUSING            ,8440,FEE EXPENSES                  ,05/01/2017,4133159,2.50E+13,"2,500.00",VALUATION OFFICE AGENCY                 ,511469,,CENTRAL GOVERNMENT            
SHEFFIELD CITY COUNCIL        ,RESOURCES                     ,15139,TRANSPORT FLEET MANAGEMENT    ,7020,VEHICLE FUEL COSTS            ,05/01/2017,4133161,2814719,559.40,FLOGAS UK LIMITED                       ,442962,,GAS SUPPLIERS                 
SHEFFIELD CITY COUNCIL        ,COMMUNITIES                   ,49855,ARCHIVES & CONSERVATION       ,8060,MATERIALS AND SUPPLIES GENERAL,05/01/2017,4133204,1569080,300.00,BDO LLP                                 ,505911,,ACCOUNTANTS                   
SHEFFIELD CITY COUNCIL        ,RESOURCES                     ,15135,DRIVER TRAINING/TESTING       ,5610,AGENCY STAFF                  ,05/01/2017,4133209,64568,308.00,LYNX EMPLOYMENT SERVICES LTD            ,626929,,EMPLOYMENT & RECRUITMENT AGENC
SHEFFIELD CITY COUNCIL        ,COMMUNITIES                   ,49153,OTHER REPAIRS & FEES          ,6030,NON CONTRACT TV AERIALS       ,05/01/2017,4133218,5255,"2,236.93",NEW CHANNELS TECHNOLOGY LTD             ,207092,,SATELLITE TELEVISION - EQUIPME
SHEFFIELD CITY COUNCIL        ,PLACE                         ,23036,CORONIAL SERVICES             ,8100,RECHARGEABLE PURCHASES        ,05/01/2017,4133225,6010673,"9,081.60",BARNSLEY HOSPITAL NHS FT                ,308864,,HOSPITALS                     
SHEFFIELD CITY COUNCIL        ,PLACE                         ,25001,GRAVES PARK - ANIMAL FARM INC ,8060,MATERIALS AND SUPPLIES GENERAL,05/01/2017,4133314,427682,660.33,ARGO FEEDS LTD                          ,203028,,PET FOODS & ANIMAL FEEDS      
SHEFFIELD CITY COUNCIL        ,PLACE                         ,25054,RANGER SERVICE                ,8010,EQUIPMENT PURCHASE AND REPAIR ,05/01/2017,4133315,1612/12441               ,835.00,TURNER HIRE & SALES                     ,209182,,TOOL & EQUIPMENT HIRE         
SHEFFIELD CITY COUNCIL        ,COMMUNITIES                   ,49312,BURNGREAVE & SHIREGREEN       ,6060,DECANTING/REMOVAL COSTS       ,05/01/2017,4133493,960249,379.06,PICKFORDS                               ,573763,,REMOVALS - OVERSEAS           
SHEFFIELD CITY COUNCIL        ,PLACE                         ,94050,SHEFFIELD RETAIL QUARTER 2    ,1193,CONSULTANTS FEES              ,05/01/2017,4133582,50DE300002122            ,"30,000.00",CBRE                                    ,428951,,INVESTMENT COMPANIES          
SHEFFIELD CITY COUNCIL        ,PLACE                         ,94052,SRQ DEMOLITIONS               ,1147,DEMOLITION                    ,05/01/2017,4133591,A27A-F2G6LC/4            ,"77,356.05",DSM DEMOLITION LTD                      ,330166,,DEMOLITION & DISMANTLING CONTR
SHEFFIELD CITY COUNCIL        ,RESOURCES                     ,15139,TRANSPORT FLEET MANAGEMENT    ,8070,STOCKS AND STORES             ,05/01/2017,4133865,I08933746                ,"20,123.06",WFL (UK) LTD HALL FUELS                 ,633989,,FUEL DEALERS                  
SHEFFIELD CITY COUNCIL        ,COMMUNITIES                   ,49190,CITY WIDE ALARM - GENERAL     ,8590,LANDLINE TELEPHONES           ,05/01/2017,4133482,VP79239170M18001LS       ,901.07,BRITISH TELECOMMUNICATIONS PLC          ,295860,,TELECOMMUNICATION SERVICES    
SHEFFIELD CITY COUNCIL        ,PLACE                         ,24418,SYFP & FC                     ,6150,ELECTRICITY                   ,05/01/2017,4133485,27140029,549.02,NPOWER NORTHERN LTD                     ,207191,,ELECTRICITY COMPANIES         
SHEFFIELD CITY COUNCIL        ,RESOURCES                     ,15133,STANIFORTH ROAD WORKSHOPS     ,8070,STOCKS AND STORES             ,05/01/2017,4133499,01I07908                 ,270.00,DEXEL TYRE CO LTD                       ,204367,,CAR ACCESSORIES & PARTS       
SHEFFIELD CITY COUNCIL        ,RESOURCES                     ,15133,STANIFORTH ROAD WORKSHOPS     ,8070,STOCKS AND STORES             ,05/01/2017,4133501,38148,445.80,CLAYTONS (1908) LTD                     ,367059,,CAR TRIMMERS & UPHOLSTERERS   
SHEFFIELD CITY COUNCIL        ,RESOURCES                     ,15133,STANIFORTH ROAD WORKSHOPS     ,7010,ROUTINE VEHICLE REPAIR & MTCE ,05/01/2017,4133507,38138,314.50,CLAYTONS (1908) LTD                     ,367059,,CAR TRIMMERS & UPHOLSTERERS   
SHEFFIELD CITY COUNCIL        ,RESOURCES                     ,15133,STANIFORTH ROAD WORKSHOPS     ,8070,STOCKS AND STORES             ,05/01/2017,4133515,14455053,259.80,LOOKERS FORD                            ,474939,,CAR DEALERS                   
SHEFFIELD CITY COUNCIL        ,RESOURCES                     ,15133,STANIFORTH ROAD WORKSHOPS     ,8070,STOCKS AND STORES             ,05/01/2017,4133516,14455252,657.11,LOOKERS FORD                            ,474939,,CAR DEALERS                   
SHEFFIELD CITY COUNCIL        ,RESOURCES                     ,15133,STANIFORTH ROAD WORKSHOPS     ,7010,ROUTINE VEHICLE REPAIR & MTCE ,05/01/2017,4133518,14455435,"1,589.75",LOOKERS FORD                            ,474939,,CAR DEALERS                   
SHEFFIELD CITY COUNCIL        ,RESOURCES                     ,15133,STANIFORTH ROAD WORKSHOPS     ,8070,STOCKS AND STORES             ,05/01/2017,4133519,14455054,516.94,LOOKERS FORD                            ,474939,,CAR DEALERS                   
SHEFFIELD CITY COUNCIL        ,RESOURCES                     ,15133,STANIFORTH ROAD WORKSHOPS     ,7040,OTHER VEHICLE RUNNING COSTS   ,05/01/2017,4133521,9348,619.00,GPG 2000 LTD                            ,416225,,CAR BODY REPAIRS              
SHEFFIELD CITY COUNCIL        ,RESOURCES                     ,15133,STANIFORTH ROAD WORKSHOPS     ,7040,OTHER VEHICLE RUNNING COSTS   ,05/01/2017,4133525,9351,672.00,GPG 2000 LTD                            ,416225,,CAR BODY REPAIRS              
SHEFFIELD CITY COUNCIL        ,RESOURCES                     ,15133,STANIFORTH ROAD WORKSHOPS     ,7010,ROUTINE VEHICLE REPAIR & MTCE ,05/01/2017,4133534,SI329491                 ,256.14,AUTO BATTERY SERVICE LTD                ,483634,,CAR ACCESSORIES & PARTS       
SHEFFIELD CITY COUNCIL        ,RESOURCES                     ,15133,STANIFORTH ROAD WORKSHOPS     ,7010,ROUTINE VEHICLE REPAIR & MTCE ,05/01/2017,4133547,133438,"3,286.80",F R SHARROCK LTD                        ,440994,,AGRICULTURAL SERVICES         
SHEFFIELD CITY COUNCIL        ,RESOURCES                     ,15133,STANIFORTH ROAD WORKSHOPS     ,7010,ROUTINE VEHICLE REPAIR & MTCE ,05/01/2017,4133548,132933,635.38,F R SHARROCK LTD                        ,440994,,AGRICULTURAL SERVICES         
SHEFFIELD CITY COUNCIL        ,RESOURCES                     ,15133,STANIFORTH ROAD WORKSHOPS     ,7010,ROUTINE VEHICLE REPAIR & MTCE ,05/01/2017,4133551,133441,437.43,F R SHARROCK LTD                        ,440994,,AGRICULTURAL SERVICES         
SHEFFIELD CITY COUNCIL        ,RESOURCES                     ,15133,STANIFORTH ROAD WORKSHOPS     ,8070,STOCKS AND STORES             ,05/01/2017,4133553,133443,"1,022.85",F R SHARROCK LTD                        ,440994,,AGRICULTURAL SERVICES         
